Workbook

Sheet جستجو
D1: =SUM(E1:AC1) -> 1 | E1: =IF((ISNUMBER(E5))=TRUE,1,0) -> 0 | F1: =IF((ISNUMBER(F5))=TRUE,1,0) -> 0 | G1: 0 | H1: 0 | I1: 0 | J1: 0 | K1: 0 | L1: 0 | M1: 1 | N1: 0 | O1: 0 | P1: 0 | Q1: 0 | R1: 0 | S1: 0 | T1: =IF((ISNUMBER(T5))=TRUE,1,0) -> 0 | U1: 0 | V1: 0 | W1: 0 | X1: 0 | Y1: 0 | Z1: 0 | AA1: 0 | AB1: 0 | AC1: 0
D2: =SUM(E2:AC2) -> 9 | E2: =IF((ISNUMBER(E5))=TRUE,E37,0) -> 0 | F2: =IF((ISNUMBER(F5))=TRUE,F37,0) -> 0 | G2: 0 | H2: 0 | I2: 0 | J2: 0 | K2: 0 | L2: 0 | M2: 9 | N2: 0 | O2: 0 | P2: 0 | Q2: 0 | R2: 0 | S2: 0 | T2: 0 | U2: 0 | V2: 0 | W2: 0 | X2: 0 | Y2: 0 | Z2: 0 | AA2: 0 | AB2: 0 | AC2: 0
C3: www.amin-r.blog.ir | D3: راهنمای خانه های ابی رنگ : برای یافتن پروفیل مورد نظر بر اساس یکی از مشخصات(مثلا A) ابتدا نوع پروفیل و ردیف را مشخص کرده و عدد مورد نظر را بالای واحد ها در یک خانه آبی رنگ وارد کرده و دکمه GO را زده تا علامت اختصاری مشخص شود(اندازه کوچکتر از عدد وارده انتخاب میشود)
E4: =IF(D1>1,"فـقــــط یـکــــی از خـــانــه هــای آبــی رنگ پر شــود","") -> 
M5: 456
E6: =T(IFERROR(INDEX(INDIRECT($F$28),2,E37),"")) ->  | F6: =T(IFERROR(INDEX(INDIRECT($F$28),2,F37),"")) ->  | L6: A | M6: G | N6: ey | O6: y-y | P6: y-y | Q6: y-y | R6: z-z | S6: =T(IFERROR(INDEX(INDIRECT($F$28),2,S37),"")) -> z-z | T6: =T(IFERROR(INDEX(INDIRECT($F$28),2,T37),"")) -> z-z | U6: d₁
B7: نوع پروفيل | C7: رديف | D7: علامت اختصاري | E7: =T(IFERROR(INDEX(INDIRECT($F$28),3,E37),"")) -> h | F7: =T(IFERROR(INDEX(INDIRECT($F$28),3,F37),"")) -> b | G7: ts=tg=r1 | H7: r2 | I7: r3 | J7: C | K7: h-c | L7: ديواره | O7: Iу | P7: Wy | Q7: iy | R7: Iz | S7: =T(IFERROR(INDEX(INDIRECT($F$28),3,S37),"")) -> Wz | T7: =T(IFERROR(INDEX(INDIRECT($F$28),3,T37),"")) -> iz | AB7: =IFERROR(INDEX(INDIRECT($F$28),3,AB36),"") ->  | AC7: =IFERROR(INDEX(INDIRECT($F$28),3,AC36),"") -> 
E8: =T(IFERROR(INDEX(INDIRECT($F$28),4,E37),"")) -> mm | F8: =T(IFERROR(INDEX(INDIRECT($F$28),4,F37),"")) -> mm | G8: mm | H8: mm | I8: mm | J8: mm | K8: mm | L8: cm² | M8: kg/m | N8: cm | O8: cm⁴ | P8: cm³ | Q8: cm | R8: cm⁴ | S8: =T(IFERROR(INDEX(INDIRECT($F$28),4,S37),"")) -> cm³ | T8: =T(IFERROR(INDEX(INDIRECT($F$28),4,T37),"")) -> cm | U8: mm | AA8: =IFERROR(INDEX(INDIRECT($F$28),4,AA37),"") ->  | AB8: =IFERROR(INDEX(INDIRECT($F$28),4,AB37),"") ->  | AC8: =IFERROR(INDEX(INDIRECT($F$28),4,AC37),"") -> 
E9: =IFERROR(INDEX((INDIRECT($O$13)),جستجو!$E$30,F37),"") -> 140 | F9: =IFERROR(INDEX((INDIRECT($O$13)),جستجو!$E$30,G37),"") -> 140 | G9: =IFERROR(INDEX((INDIRECT($O$13)),جستجو!$E$30,H37),"") -> 15 | H9: =IFERROR(INDEX((INDIRECT($O$13)),جستجو!$E$30,I37),"") -> 7.5 | I9: =IFERROR(INDEX((INDIRECT($O$13)),جستجو!$E$30,J37),"") -> 4 | J9: =IFERROR(INDEX((INDIRECT($O$13)),جستجو!$E$30,K37),"") -> 31 | K9: =IFERROR(INDEX((INDIRECT($O$13)),جستجو!$E$30,L37),"") -> 109 | L9: =IFERROR(INDEX((INDIRECT($O$13)),جستجو!$E$30,M37),"") -> 39.9 | M9: =IFERROR(INDEX((INDIRECT($O$13)),جستجو!$E$30,N37),"") -> 31.2 | N9: =IFERROR(INDEX((INDIRECT($O$13)),جستجو!$E$30,O37),"") -> 3.8 | O9: =IFERROR(INDEX((INDIRECT($O$13)),جستجو!$E$30,P37),"") -> 660 | P9: =IFERROR(INDEX((INDIRECT($O$13)),جستجو!$E$30,Q37),"") -> 64.7 | Q9: =IFERROR(INDEX((INDIRECT($O$13)),جستجو!$E$30,R37),"") -> 4.07 | R9: =IFERROR(INDEX((INDIRECT($O$13)),جستجو!$E$30,S37),"") -> 330 | S9: =IFERROR(INDEX((INDIRECT($O$13)),جستجو!$E$30,T37),"") -> 47.2 | T9: =IFERROR(INDEX((INDIRECT($O$13)),جستجو!$E$30,U37),"") -> 2.88 | U9: =IFERROR(INDEX((INDIRECT($O$13)),جستجو!$E$30,V37),"") ->  | V9: =IFERROR(INDEX((INDIRECT($O$13)),جستجو!$E$30,W37),"") ->  | W9: =IFERROR(INDEX((INDIRECT($O$13)),جستجو!$E$30,X37),"") ->  | X9: =IFERROR(INDEX((INDIRECT($O$13)),جستجو!$E$30,Y37),"") ->  | Y9: =IFERROR(INDEX((INDIRECT($O$13)),جستجو!$E$30,Z37),"") ->  | Z9: =IFERROR(INDEX((INDIRECT($O$13)),جستجو!$E$30,AA37),"") ->  | AA9: =IFERROR(INDEX((INDIRECT($O$13)),جستجو!$E$30,AB37),"") ->  | AB9: =IFERROR(INDEX((INDIRECT($O$13)),جستجو!$E$30,AC37),"") ->  | AC9: =IFERROR(INDEX((INDIRECT($O$13)),جستجو!$E$30,AD37),"") -> 
Q12: نبشي_بال_مساوي!
B13: UNP | C13: IPE | D13: T | E13: بال_مساوي | F13: توليد_گرم | G13: توليد.گرم | H13: توليد_سرد_گرم | I13: z_شكل | N13: =INDEX(all,D38,$E$28) -> T | O13: =INDEX(all,E29,E28) -> T | Q13: ناوداني! | S13: 5 | T13: 28 | U13: 5 | V13: 22 | W13: 5 | X13: 14 | Y13: 5 | Z13: 48 | AA13: 4 | AB13: 69 | AC13: 4 | AD13: 75 | AE13: 4 | AF13: 147 | AG13: 5 | AH13: 13
B14: UPA | C14: IPE_o | D14: - | E14: بال_مساوي_غيراستاندارد | F14: توليد_سرد | G14: توليد.سرد | H14: - | I14: - | N14: - | Q14: شكلI! | S14: 30 | T14: 38 | U14: 24 | V14: 36 | Y14: 50 | Z14: 83 | AA14: 71 | AB14: 142 | AC14: 77 | AD14: 148
B15: UPE | C15: IPE_v | D15: - | E15: بال_نامساوي | F15: - | G15: - | H15: - | I15: - | N15: - | Q15: سپري! | S15: 40 | T15: 53 | U15: 38 | V15: 42 | Y15: 5 | Z15: 50
B16: - | C16: IPE_a | D16: - | E16: بال_نامساوي_غيراستاندارد | F16: - | G16: - | H16: - | I16: - | N16: - | Q16: نبشي_بال_نامساوي! | U16: 44 | V16: 61 | Y16: 52 | Z16: 93
B17: - | C17: IPE_750 | D17: - | E17: - | F17: - | G17: - | H17: - | I17: - | N17: - | Q17: قوطي_مربع! | U17: 63 | V17: 66
B18: - | C18: IPB_LL | D18: - | E18: - | F18: - | G18: - | H18: - | I18: - | N18: - | Q18: قوطي_مستطيل! | U18: 68 | V18: 91
B19: - | C19: IPB_L | D19: - | E19: - | F19: - | G19: - | H19: - | I19: - | N19: - | Q19: قوطي_دايره! | U19: 93 | V19: 116
B20: - | C20: IPB | D20: - | E20: - | F20: - | G20: - | H20: - | I20: - | N20: - | Q20: zشكل! | U20: 118 | V20: 141
B21: - | C21: IPB_v | D21: - | E21: - | F21: - | G21: - | H21: - | I21: - | N21: - | Q21: : | U21: 143 | V21: 167
B22: - | C22: INP | D22: - | E22: - | F22: - | G22: - | H22: - | I22: - | N22: - | Q22: =INDEX(E36:AF36,1,D2+2) -> K | U22: 169 | V22: 188
Q23: =INDEX(Q13:Q20,E28,1) -> سپري!
Q24: =IF(AND(E28=4,E29<=2),CONCATENATE(Q12,Q22,S26,Q21,Q22,T26),CONCATENATE(Q23,Q22,S26,Q21,Q22,T26)) -> سپري!K5:K14
P26: 1 | Q26: =MATCH(Q27,INDIRECT(Q24),P26) -> 10 | S26: =INDEX(S13:AJ22,E29,E28*2-1) -> 5 | T26: =INDEX(S13:AJ22,E29,E28*2) -> 14
Q27: =SUM(E5:AC5) -> 456
B28: ناوداني | E28: 3 | F28: =IF(F29="nb",IF(OR(E29=3,E29=4)=TRUE,"nb.1",INDEX(G28:N28,1,E28)),INDEX(G28:N28,1,E28)) -> s | G28: n | H28: i | I28: s | J28: nb | K28: m | L28: ms | M28: g | N28: z
B29: I شكل | E29: 1 | F29: =INDEX(G28:N28,1,E28) -> s
B30: سپري | E30: 10
B31: نبشي
B32: قوطي مربع
B33: قوطي مستطيل
B34: قوطي گرد
B35: شكل Z
E36: A | F36: B | G36: C | H36: D | I36: E | J36: F | K36: G | L36: H | M36: I | N36: J | O36: K | P36: L | Q36: M | R36: N | S36: O | T36: P | U36: Q | V36: R | W36: S | X36: T | Y36: U | Z36: V | AA36: W | AB36: X | AC36: Y | AD36: Z | AE36: AA | AF36: AB
E37: 1 | F37: 2 | G37: 3 | H37: 4 | I37: 5 | J37: 6 | K37: 7 | L37: 8 | M37: 9 | N37: 10 | O37: 11 | P37: 12 | Q37: 13 | R37: 14 | S37: 15 | T37: 16 | U37: 17 | V37: 18 | W37: 19 | X37: 20 | Y37: 21 | Z37: 22 | AA37: 23 | AB37: 24 | AC37: 25 | AD37: 26 | AE37: 27 | AF37: 28 | AG37: 29 | AH37: 30 | AI37: 31
B38: =IF(OR($E$28=5,$E$28=6,$E$28=7)=TRUE,IFERROR(INDEX(INDIRECT($O$13),D38,1)&"*"&INDEX(INDIRECT($O$13),D38,2),""),IFERROR(INDEX(INDIRECT($O$13),D38,1),"-")) -> 30 | D38: 1
B39: 35 | D39: 2
B40: 40 | D40: 3 | F40: =IF($E$28=1,ناوداني!$A$54,IF(جستجو!$E$28=2,شكلI!A43,IF(جستجو!$E$28=3,"",""))) -> 
B41: 50 | D41: 4 | F41: =IF($E$28=1,"",IF(جستجو!$E$28=2,شكلI!A62,IF(جستجو!$E$28=3,"",""))) -> 
B42: 60 | D42: 5 | F42: =IF($E$28=1,"",IF(جستجو!$E$28=2,شكلI!A67,IF(جستجو!$E$28=3,"",""))) -> 
B43: 70 | D43: 6 | F43: =IF($E$28=1,"",IF(جستجو!$E$28=2,شكلI!A92,IF(جستجو!$E$28=3,"",""))) -> 
B44: 80 | D44: 7
B45: 100 | D45: 8
B46: 120 | D46: 9
B47: 140 | D47: 10
B48: - | D48: 11
B49: - | D49: 12
B50: - | D50: 13
B51: - | D51: 14
B52: - | D52: 15
B53: - | D53: 16
B54: - | D54: 17
B55: - | D55: 18
B56: - | D56: 19
B57: - | D57: 20
B58: - | D58: 21
B59: - | D59: 22
B60: - | D60: 23
B61: - | D61: 24
B62: - | D62: 25
B63: - | D63: 26
B64: - | D64: 27
B65: - | D65: 28
B66: - | D66: 29
B67: - | D67: 30
B68: - | D68: 31
B69: - | D69: 32
B70: =IF(OR($E$28=5,$E$28=6,$E$28=7)=TRUE,IFERROR(INDEX(INDIRECT($O$13),D70,1)&"*"&INDEX(INDIRECT($O$13),D70,2),""),IFERROR(INDEX(INDIRECT($O$13),D70,1),"-")) -> - | D70: 33
B71: - | D71: 34
B72: - | D72: 35
B73: - | D73: 36
B74: - | D74: 37
B75: - | D75: 38
B76: - | D76: 39
B77: - | D77: 40
B78: - | D78: 41
B79: - | D79: 42
B80: - | D80: 43
B81: - | D81: 44
B82: - | D82: 45
B83: - | D83: 46
B84: - | D84: 47
B85: - | D85: 48
B86: - | D86: 49
B87: - | D87: 50
B88: - | D88: 51
B89: - | D89: 52
B90: - | D90: 53
B91: - | D91: 54
B92: - | D92: 55
B93: - | D93: 56
B94: - | D94: 57
B95: - | D95: 58
B96: - | D96: 59
B97: - | D97: 60
B98: - | D98: 61
B99: - | D99: 62
B100: - | D100: 63
B101: - | D101: 64
B102: =IF(OR($E$28=5,$E$28=6,$E$28=7)=TRUE,IFERROR(INDEX(INDIRECT($O$13),D102,1)&"*"&INDEX(INDIRECT($O$13),D102,2),""),IFERROR(INDEX(INDIRECT($O$13),D102,1),"-")) -> - | D102: 65
B103: - | D103: 66
B104: - | D104: 67
B105: - | D105: 68
B106: - | D106: 69
B107: - | D107: 70
B108: - | D108: 71
B109: - | D109: 72
B110: - | D110: 73
B111: - | D111: 74
B112: - | D112: 75
B113: - | D113: 76
B114: - | D114: 77
B115: - | D115: 78
B116: - | D116: 79
B117: - | D117: 80
B118: - | D118: 81
B119: - | D119: 82
B120: - | D120: 83
B121: - | D121: 84
B122: - | D122: 85
B123: - | D123: 86
B124: - | D124: 87
B125: - | D125: 88
B126: - | D126: 89
B127: - | D127: 90
B128: - | D128: 91
B129: - | D129: 92
B130: - | D130: 93
B131: - | D131: 94
B132: - | D132: 95
B133: - | D133: 96
B134: =IF(OR($E$28=5,$E$28=6,$E$28=7)=TRUE,IFERROR(INDEX(INDIRECT($O$13),D134,1)&"*"&INDEX(INDIRECT($O$13),D134,2),""),IFERROR(INDEX(INDIRECT($O$13),D134,1),"-")) -> - | D134: 97
B135: - | D135: 98
B136: - | D136: 99
B137: - | D137: 100
B138: - | D138: 101
B139: - | D139: 102
B140: - | D140: 103
B141: - | D141: 104
B142: - | D142: 105
B143: - | D143: 106
B144: - | D144: 107
B145: - | D145: 108
B146: - | D146: 109
B147: - | D147: 110
B148: - | D148: 111
B149: - | D149: 112
B150: - | D150: 113
B151: - | D151: 114
B152: - | D152: 115
B153: - | D153: 116
B154: - | D154: 117
B155: - | D155: 118
B156: - | D156: 119
B157: - | D157: 120
B158: - | D158: 121
B159: - | D159: 122
B160: - | D160: 123
B161: - | D161: 124
B162: - | D162: 125
B163: - | D163: 126
B164: - | D164: 127
B165: - | D165: 128
B166: =IF(OR($E$28=5,$E$28=6,$E$28=7)=TRUE,IFERROR(INDEX(INDIRECT($O$13),D166,1)&"*"&INDEX(INDIRECT($O$13),D166,2),""),IFERROR(INDEX(INDIRECT($O$13),D166,1),"-")) -> - | D166: 129
B167: - | D167: 130
B168: - | D168: 131
B169: - | D169: 132
B170: - | D170: 133
B171: - | D171: 134
B172: - | D172: 135
B173: - | D173: 136
B174: - | D174: 137
B175: - | D175: 138
B176: - | D176: 139
B177: - | D177: 140
B178: - | D178: 141
B179: - | D179: 142
B180: - | D180: 143
B181: - | D181: 144

Sheet ناوداني
B1: علامت ختصاري | C1: اندازه به ميليمتر | M1: براي محور خمش
J2: A | K2: A | L2: G | M2: y-y | N2: y-y | O2: y-y | P2: z-z | Q2: z-z | R2: z-z | S2: ez | T2: ym | U2: sy | V2: d₁ | W2: w₁ | X2: a₁
C3: h | D3: b | E3: ts | F3: tg | G3: r2 | H3: c | I3: h-2c | J3: ديواره | M3: Iу | N3: Wy | O3: iy | P3: Iz | Q3: Wz | R3: iz
C4: mm | D4: mm | E4: mm | F4: mm | G4: mm | H4: mm | I4: mm | J4: cm² | K4: cm² | L4: kg/m | M4: cm⁴ | N4: cm³ | O4: cm | P4: cm⁴ | Q4: cm³ | R4: cm | S4: cm | T4: cm | U4: cm | V4: mm | W4: mm | X4: mm
A5: ناوداني U | B5: 30x15 | C5: 30 | D5: 15 | E5: 4 | F5: 4.5 | G5: 2 | H5: 9 | I5: 12 | J5: 1.02 | K5: 2.21 | L5: 1.74 | M5: 2.53 | N5: 1.69 | O5: 1.07 | P5: 0.38 | Q5: 0.39 | R5: 0.42 | S5: 0.52 | T5: 0.74 | U5: _
B6: 30 | C6: 30 | D6: 33 | E6: 5 | F6: 7 | G6: 3.5 | H6: 14.5 | I6: 1 | J6: 1.15 | K6: 5.44 | L6: 4.27 | M6: 6.39 | N6: 4.26 | O6: 1.08 | P6: 5.33 | Q6: 2.68 | R6: 0.99 | S6: 1.31 | T6: 2.22 | U6: _
B7: 40x20 | C7: 40 | D7: 20 | E7: 5 | F7: 5.5 | G7: 2.5 | H7: 11 | I7: 18 | J7: 1.72 | K7: 3.66 | L7: 2.87 | M7: 7.58 | N7: 3.79 | O7: 1.44 | P7: 1.14 | Q7: 0.86 | R7: 0.56 | S7: 0.67 | T7: 1.01 | U7: _
B8: 40 | C8: 40 | D8: 35 | E8: 5 | F8: 7 | G8: 3.5 | H8: 14.5 | I8: 11 | J8: 1.65 | K8: 6.21 | L8: 4.87 | M8: 14.1 | N8: 7.05 | O8: 1.5 | P8: 6.68 | Q8: 3.08 | R8: 1.04 | S8: 1.33 | T8: 2.32 | U8: _
B9: 50x25 | C9: 50 | D9: 25 | E9: 5 | F9: 6 | G9: 3 | H9: 12.5 | I9: 25 | J9: 2.2 | K9: 4.92 | L9: 3.86 | M9: 16.8 | N9: 6.73 | O9: 1.85 | P9: 2.49 | Q9: 1.48 | R9: 0.71 | S9: 0.81 | T9: 1.34 | U9: _
B10: 50 | C10: 50 | D10: 38 | E10: 5 | F10: 7 | G10: 3.5 | H10: 15 | I10: 20 | J10: 2.15 | K10: 7.12 | L10: 5.59 | M10: 26.4 | N10: 10.6 | O10: 1.92 | P10: 9.12 | Q10: 3.75 | R10: 1.13 | S10: 1.37 | T10: 2.47 | U10: _
B11: 60 | C11: 60 | D11: 30 | E11: 6 | F11: 6 | G11: 3 | H11: 12.5 | I11: 35 | J11: 3.24 | K11: 6.46 | L11: 5.07 | M11: 31.6 | N11: 10.5 | O11: 2.21 | P11: 4.51 | Q11: 2.16 | R11: 0.84 | S11: 0.91 | T11: 1.5 | U11: _
B12: 65 | C12: 65 | D12: 42 | E12: 5.5 | F12: 7.5 | G12: 4 | H12: 16 | I12: 33 | J12: 3.16 | K12: 9.03 | L12: 7.09 | M12: 57.5 | N12: 17.7 | O12: 2.52 | P12: 14.1 | Q12: 5.07 | R12: 1.25 | S12: 1.42 | T12: 2.6 | U12: _
B13: 80 | C13: 80 | D13: 45 | E13: 6 | F13: 8 | G13: 4 | H13: 16.5 | I13: 47 | J13: 4.32 | K13: 11 | L13: 8.64 | M13: 106 | N13: 26.5 | O13: 3.1 | P13: 19.4 | Q13: 6.36 | R13: 1.33 | S13: 1.45 | T13: 2.67 | U13: 6.65
B14: 100 | C14: 100 | D14: 50 | E14: 6 | F14: 8.5 | G14: 4.5 | H14: 18 | I14: 64 | J14: 5.49 | K14: 13.5 | L14: 10.6 | M14: 206 | N14: 41.2 | O14: 3.91 | P14: 29.3 | Q14: 8.49 | R14: 1.47 | S14: 1.55 | T14: 2.93 | U14: 8.42
B15: 120 | C15: 120 | D15: 55 | E15: 7 | F15: 9 | G15: 4.5 | H15: 19 | I15: 82 | J15: 7.77 | K15: 17 | L15: 13.4 | M15: 364 | N15: 60.7 | O15: 4.62 | P15: 43.2 | Q15: 11.1 | R15: 1.59 | S15: 1.6 | T15: 3.03 | U15: 10
B16: 140 | C16: 140 | D16: 60 | E16: 7 | F16: 10 | G16: 5 | H16: 21.5 | I16: 97 | J16: 9.1 | K16: 20.4 | L16: 16 | M16: 605 | N16: 86.4 | O16: 5.45 | P16: 62.7 | Q16: 14.8 | R16: 1.75 | S16: 1.75 | T16: 3.37 | U16: 11.8
B17: 160 | C17: 160 | D17: 65 | E17: 7.5 | F17: 10.5 | G17: 5.5 | H17: 22 | I17: 116 | J17: 11.2 | K17: 24 | L17: 18.8 | M17: 925 | N17: 116 | O17: 6.21 | P17: 85.3 | Q17: 18.3 | R17: 1.89 | S17: 1.84 | T17: 3.56 | U17: 13.3
B18: 180 | C18: 180 | D18: 70 | E18: 8 | F18: 11 | G18: 5.5 | H18: 23.5 | I18: 133 | J18: 13.5 | K18: 28 | L18: 22 | M18: 1350 | N18: 150 | O18: 6.95 | P18: 114 | Q18: 22.4 | R18: 2.02 | S18: 1.92 | T18: 3.75 | U18: 15.1
B19: 200 | C19: 200 | D19: 75 | E19: 8.5 | F19: 11.5 | G19: 6 | H19: 24.5 | I19: 151 | J19: 16 | K19: 32.2 | L19: 25.3 | M19: 1910 | N19: 191 | O19: 7.7 | P19: 148 | Q19: 27 | R19: 2.14 | S19: 2.01 | T19: 3.94 | U19: 16.8
B20: 220 | C20: 220 | D20: 80 | E20: 9 | F20: 12.5 | G20: 6.5 | H20: 27 | I20: 166 | J20: 18.7 | K20: 37.4 | L20: 29.4 | M20: 2690 | N20: 245 | O20: 8.48 | P20: 197 | Q20: 33.6 | R20: 2.3 | S20: 2.14 | T20: 4.2 | U20: 18.5
B21: 240 | C21: 240 | D21: 85 | E21: 9.5 | F21: 13 | G21: 6.5 | H21: 27.5 | I21: 185 | J21: 21.6 | K21: 42.3 | L21: 33.2 | M21: 3600 | N21: 300 | O21: 9.22 | P21: 248 | Q21: 39.6 | R21: 2.42 | S21: 2.23 | T21: 4.39 | U21: 20.1
B22: 260 | C22: 260 | D22: 90 | E22: 10 | F22: 14 | G22: 7 | H22: 29.5 | I22: 201 | J22: 24.6 | K22: 48.3 | L22: 37.9 | M22: 4820 | N22: 371 | O22: 9.99 | P22: 317 | Q22: 47.7 | R22: 2.56 | S22: 2.36 | T22: 4.66 | U22: 21.8
B23: 280 | C23: 280 | D23: 95 | E23: 10 | F23: 15 | G23: 7.5 | H23: 32 | I23: 216 | J23: 26.5 | K23: 53.3 | L23: 41.8 | M23: 6280 | N23: 448 | O23: 10.9 | P23: 399 | Q23: 57.2 | R23: 2.74 | S23: 2.53 | T23: 5.02 | U23: 23.6
B24: 300 | C24: 300 | D24: 100 | E24: 10 | F24: 16 | G24: 8 | H24: 34 | I24: 232 | J24: 28.4 | K24: 58.8 | L24: 46.2 | M24: 8030 | N24: 535 | O24: 11.7 | P24: 495 | Q24: 67.8 | R24: 2.9 | S24: 2.7 | T24: 5.41 | U24: 25.4
B25: 320 | C25: 320 | D25: 100 | E25: 14 | F25: 17.5 | G25: 8.75 | H25: 36.5 | I25: 247 | J25: 42.3 | K25: 75.8 | L25: 59.5 | M25: 10870 | N25: 679 | O25: 12.1 | P25: 597 | Q25: 80.6 | R25: 2.81 | S25: 2.6 | T25: 4.82 | U25: 26.3
B26: 350 | C26: 350 | D26: 100 | E26: 14 | F26: 16 | G26: 8 | H26: 33.5 | I26: 283 | J26: 46.8 | K26: 77.3 | L26: 60.6 | M26: 12840 | N26: 734 | O26: 12.9 | P26: 570 | Q26: 75 | R26: 2.72 | S26: 2.4 | T26: 4.45 | U26: 28.6
B27: 380 | C27: 380 | D27: 102 | E27: 13.5 | F27: 16 | G27: 8 | H27: 33.5 | I27: 313 | J27: 49.1 | K27: 80.4 | L27: 63.1 | M27: 15760 | N27: 829 | O27: 14 | P27: 615 | Q27: 78.7 | R27: 2.77 | S27: 2.38 | T27: 4.58 | U27: 31.1
B28: 400 | C28: 400 | D28: 110 | E28: 14 | F28: 18 | G28: 9 | H28: 37.5 | I28: 325 | J28: 53.5 | K28: 91.5 | L28: 71.8 | M28: 20350 | N28: 1020 | O28: 14.9 | P28: 846 | Q28: 102 | R28: 3.04 | S28: 2.65 | T28: 5.11 | U28: 32.9
A29: ناوداني U
A30: ناوداني U با لبه موازي | B30: 80 | C30: 80 | D30: 45 | E30: 5 | F30: 8 | G30: 8 | H30: 16 | I30: 48 | J30: 3.6 | K30: 10.7 | L30: 8.38 | M30: 107 | N30: 26.8 | O30: 3.17 | P30: 21.3 | Q30: 7.38 | R30: 1.41 | S30: 1.61 | T30: 3.17 | U30: 6.72
B31: 100 | C31: 100 | D31: 50 | E31: 5.5 | F31: 8.5 | G31: 8.5 | H31: 17 | I31: 66 | J31: 5.03 | K31: 13.4 | L31: 10.5 | M31: 210 | N31: 41.9 | O31: 3.96 | P31: 32.8 | Q31: 9.95 | R31: 1.57 | S31: 1.7 | T31: 3.38 | U31: 8.45
B32: 130 | C32: 130 | D32: 55 | E32: 6 | F32: 9.5 | G32: 9.5 | H32: 19 | I32: 92 | J32: 7.23 | K32: 17.5 | L32: 13.7 | M32: 460 | N32: 70.7 | O32: 5.12 | P32: 51.3 | Q32: 13.8 | R32: 1.71 | S32: 1.77 | T32: 3.56 | U32: 11
B33: 150 | C33: 150 | D33: 65 | E33: 7 | F33: 10.25 | G33: 10.25 | H33: 20.5 | I33: 109 | J33: 9.78 | K33: 22.8 | L33: 17.9 | M33: 796 | N33: 106 | O33: 5.9 | P33: 93.3 | Q33: 21 | R33: 2.02 | S33: 2.05 | T33: 4.1 | U33: 12.7
B34: 175 | C34: 175 | D34: 70 | E34: 7.5 | F34: 10.75 | G34: 10.75 | H34: 21.5 | I34: 132 | J34: 12.3 | K34: 27.1 | L34: 21.2 | M34: 1270 | N34: 145 | O34: 6.85 | P34: 126 | Q34: 25.9 | R34: 2.16 | S34: 2.12 | T34: 4.32 | U34: 14.8
B35: 200 | C35: 200 | D35: 75 | E35: 8 | F35: 11.5 | G35: 11.5 | H35: 23 | I35: 154 | J35: 15.1 | K35: 32 | L35: 25.1 | M35: 1946 | N35: 195 | O35: 7.8 | P35: 170 | Q35: 32.1 | R35: 2.3 | S35: 2.22 | T35: 4.53 | U35: 16.9
B36: 220 | C36: 220 | D36: 80 | E36: 8 | F36: 12.5 | G36: 12.5 | H36: 25 | I36: 170 | J36: 16.6 | K36: 36.3 | L36: 28.5 | M36: 2710 | N36: 246 | O36: 8.64 | P36: 222 | Q36: 39.7 | R36: 2.48 | S36: 2.4 | T36: 4.94 | U36: 18.7
B37: 250 | C37: 250 | D37: 85 | E37: 9 | F37: 13.5 | G37: 13.5 | H37: 27 | I37: 196 | J37: 21.3 | K37: 43.8 | L37: 34.4 | M37: 4137 | N37: 331 | O37: 9.72 | P37: 295 | Q37: 48.9 | R37: 2.6 | S37: 2.45 | T37: 5.04 | U37: 21.1
B38: 300 | C38: 300 | D38: 100 | E38: 9.5 | F38: 16 | G38: 16 | H38: 32 | I38: 236 | J38: 27 | K38: 58.6 | L38: 46 | M38: 8171 | N38: 545 | O38: 11.8 | P38: 562 | Q38: 79.7 | R38: 3.1 | S38: 2.96 | T38: 6.17 | U38: 25.6
A39: UPA | B39: تير آهن U با لبه موازي از طرف داخل بر حسب معيار استاندارد فرانسه
A40: ناوداني U با لبه موازي | B40: 80 | C40: 80 | D40: 50 | E40: 4 | F40: 7 | G40: 10 | H40: 17 | I40: 46 | J40: 2.92 | K40: 10.1 | L40: 7.9 | M40: 107 | N40: 26.8 | O40: 3.26 | P40: 25.4 | Q40: 7.98 | R40: 1.59 | S40: 1.82 | T40: 3.71 | U40: 6.87
B41: 100 | C41: 100 | D41: 55 | E41: 4.5 | F41: 7.5 | G41: 10 | H41: 17.5 | I41: 65 | J41: 4.16 | K41: 12.5 | L41: 9.82 | M41: 207 | N41: 41.4 | O41: 4.07 | P41: 38.2 | Q41: 10.6 | R41: 1.75 | S41: 1.91 | T41: 3.93 | U41: 8.62
B42: 120 | C42: 120 | D42: 60 | E42: 5 | F42: 8 | G42: 12 | H42: 20 | I42: 80 | J42: 5.6 | K42: 15.4 | L42: 12.1 | M42: 364 | N42: 60.6 | O42: 4.86 | P42: 55.4 | Q42: 13.8 | R42: 1.9 | S42: 1.98 | T42: 4.12 | U42: 10.3
B43: 140 | C43: 140 | D43: 65 | E43: 5 | F43: 9 | G43: 12 | H43: 21 | I43: 98 | J43: 6.55 | K43: 18.4 | L43: 14.5 | M43: 599 | N43: 85.6 | O43: 5.71 | P43: 78.7 | Q43: 18.2 | R43: 2.07 | S43: 2.17 | T43: 4.54 | U43: 12.1
B44: 160 | C44: 160 | D44: 70 | E44: 5.5 | F44: 9.5 | G44: 12 | H44: 21.5 | I44: 117 | J44: 8.28 | K44: 21.7 | L44: 17 | M44: 911 | N44: 114 | O44: 6.48 | P44: 107 | Q44: 22.6 | R44: 2.22 | S44: 2.27 | T44: 4.76 | U44: 13.8
B45: 180 | C45: 180 | D45: 75 | E45: 5.5 | F45: 10.5 | G45: 12 | H45: 22.5 | I45: 135 | J45: 9.32 | K45: 25.1 | L45: 19.7 | M45: 1353 | N45: 150 | O45: 7.34 | P45: 144 | Q45: 28.6 | R45: 2.39 | S45: 2.47 | T45: 5.19 | U45: 15.6
B46: 200 | C46: 200 | D46: 80 | E46: 6 | F46: 11 | G46: 13 | H46: 24 | I46: 152 | J46: 11.3 | K46: 29 | L46: 22.8 | M46: 1909 | N46: 191 | O46: 8.11 | P46: 187 | Q46: 34.4 | R46: 2.54 | S46: 2.56 | T46: 5.41 | U46: 17.4
B47: 220 | C47: 220 | D47: 85 | E47: 6.5 | F47: 12 | G47: 13 | H47: 25 | I47: 170 | J47: 13.5 | K47: 33.9 | L47: 26.6 | M47: 2682 | N47: 244 | O47: 8.9 | P47: 246 | Q47: 42.5 | R47: 2.7 | S47: 2.7 | T47: 5.7 | U47: 19.1
B48: 240 | C48: 240 | D48: 90 | E48: 7 | F48: 12.5 | G48: 15 | H48: 27.5 | I48: 185 | J48: 15.9 | K48: 38.5 | L48: 30.2 | M48: 3599 | N48: 300 | O48: 9.67 | P48: 311 | Q48: 50.1 | R48: 2.84 | S48: 2.79 | T48: 5.91 | U48: 20.7
B49: 270 | C49: 270 | D49: 95 | E49: 7.5 | F49: 13.5 | G49: 15 | H49: 28.5 | I49: 213 | J49: 19.2 | K49: 44.8 | L49: 35.2 | M49: 5255 | N49: 389 | O49: 10.8 | P49: 401 | Q49: 60.7 | R49: 2.99 | S49: 2.89 | T49: 6.14 | U49: 23.3
B50: 300 | C50: 300 | D50: 100 | E50: 9.5 | F50: 15 | G50: 15 | H50: 30 | I50: 240 | J50: 27.1 | K50: 56.6 | L50: 44.4 | M50: 7823 | N50: 522 | O50: 11.8 | P50: 538 | Q50: 75.6 | R50: 3.08 | S50: 2.89 | T50: 6.03 | U50: 25.5
B51: 330 | C51: 330 | D51: 105 | E51: 11 | F51: 16 | G51: 18 | H51: 34 | I51: 262 | J51: 34.5 | K51: 67.8 | L51: 53.2 | M51: 11008 | N51: 667 | O51: 12.7 | P51: 681 | Q51: 89.7 | R51: 3.17 | S51: 2.9 | T51: 6 | U51: 27.8
B52: 360 | C52: 360 | D52: 110 | E52: 12 | F52: 17 | G52: 18 | H52: 35 | I52: 290 | J52: 41.2 | K52: 77.9 | L52: 61.2 | M52: 14825 | N52: 824 | O52: 13.8 | P52: 844 | Q52: 105 | R52: 3.29 | S52: 2.97 | T52: 6.12 | U52: 30.2
B53: 400 | C53: 400 | D53: 115 | E53: 13.5 | F53: 18 | G53: 18 | H53: 36 | I53: 328 | J53: 51.6 | K53: 91.9 | L53: 72.2 | M53: 20981 | N53: 1049 | O53: 15.1 | P53: 1045 | Q53: 123 | R53: 3.37 | S53: 2.98 | T53: 6.06 | U53: 33.2
A54: UPE | B54: تير آهن U با لبه موازي از طرف داخل ارتفاع پروفيل همانند IPE ميباشد

Sheet شكلI
B1: علامت اختصاري | C1: اندازه به ميليمتر | M1: براي محور خمش
J2: A | K2: A | L2: G | M2: y-y | N2: y-y | O2: y-y | P2: z-z | Q2: z-z | R2: z-z | S2: Sy | T2: d₁ | U2: w₁ | V2: a₁
C3: h | D3: b | E3: ts | F3: tg | G3: r | H3: c | I3: h-2c | J3: ديواره | M3: Iу | N3: Wy | O3: iy | P3: Iz | Q3: Wz | R3: iz
C4: mm | D4: mm | E4: mm | F4: mm | G4: mm | H4: mm | I4: mm | J4: cm² | K4: cm² | L4: kg/m | M4: cm⁴ | N4: cm³ | O4: cm | P4: cm⁴ | Q4: cm³ | R4: cm | S4: cm | T4: mm | U4: mm | V4: mm
A5: IPE | B5: 80 | C5: 80 | D5: 46 | E5: 3.8 | F5: 5.2 | G5: 5 | H5: 10.5 | I5: 59 | J5: 2.84 | K5: 7.64 | L5: 6 | M5: 80.1 | N5: 20 | O5: 3.24 | P5: 8.49 | Q5: 3.69 | R5: 1.05 | S5: 6.9
B6: 100 | C6: 100 | D6: 55 | E6: 4.1 | F6: 5.7 | G6: 7 | H6: 13 | I6: 74 | J6: 3.87 | K6: 10.3 | L6: 8.1 | M6: 171 | N6: 34.2 | O6: 4.07 | P6: 15.9 | Q6: 5.79 | R6: 1.24 | S6: 8.6
B7: 120 | C7: 120 | D7: 64 | E7: 4.4 | F7: 6.3 | G7: 7 | H7: 13.5 | I7: 93 | J7: 5 | K7: 13.2 | L7: 10.4 | M7: 318 | N7: 53 | O7: 4.9 | P7: 27.7 | Q7: 8.65 | R7: 1.45 | S7: 10.5
B8: 140 | C8: 140 | D8: 73 | E8: 4.7 | F8: 6.9 | G8: 7 | H8: 14 | I8: 112 | J8: 6.26 | K8: 16.4 | L8: 12.9 | M8: 541 | N8: 77.3 | O8: 5.74 | P8: 44.9 | Q8: 12.3 | R8: 1.65 | S8: 12.3
B9: 160 | C9: 160 | D9: 82 | E9: 5 | F9: 7.4 | G9: 9 | H9: 16.5 | I9: 127 | J9: 7.63 | K9: 20.1 | L9: 15.8 | M9: 869 | N9: 109 | O9: 6.58 | P9: 68.3 | Q9: 16.7 | R9: 1.84 | S9: 14
B10: 180 | C10: 180 | D10: 91 | E10: 5.3 | F10: 8 | G10: 9 | H10: 17 | I10: 146 | J10: 9.12 | K10: 23.9 | L10: 18.8 | M10: 1320 | N10: 146 | O10: 7.42 | P10: 101 | Q10: 22.2 | R10: 2.05 | S10: 15.8
B11: 200 | C11: 200 | D11: 100 | E11: 5.6 | F11: 8.5 | G11: 12 | H11: 20.5 | I11: 159 | J11: 10.7 | K11: 28.5 | L11: 22.4 | M11: 1940 | N11: 194 | O11: 8.26 | P11: 142 | Q11: 28.5 | R11: 2.24 | S11: 17.6
B12: 220 | C12: 220 | D12: 110 | E12: 5.9 | F12: 9.2 | G12: 12 | H12: 21.5 | I12: 177 | J12: 12.4 | K12: 33.4 | L12: 26.2 | M12: 2770 | N12: 252 | O12: 9.11 | P12: 205 | Q12: 37.3 | R12: 2.48 | S12: 19.4
B13: 240 | C13: 240 | D13: 120 | E13: 6.2 | F13: 9.8 | G13: 15 | H13: 25 | I13: 190 | J13: 14.3 | K13: 39.1 | L13: 30.7 | M13: 3890 | N13: 324 | O13: 9.97 | P13: 284 | Q13: 47.3 | R13: 2.69 | S13: 21.2
B14: 270 | C14: 270 | D14: 135 | E14: 6.6 | F14: 10.2 | G14: 15 | H14: 25.5 | I14: 219 | J14: 17.1 | K14: 45.9 | L14: 36.1 | M14: 5790 | N14: 429 | O14: 11.2 | P14: 420 | Q14: 62.2 | R14: 3.02 | S14: 23.9
B15: 300 | C15: 300 | D15: 150 | E15: 7.1 | F15: 10.7 | G15: 15 | H15: 26 | I15: 248 | J15: 20.5 | K15: 53.8 | L15: 42.2 | M15: 8360 | N15: 557 | O15: 12.5 | P15: 604 | Q15: 80.5 | R15: 3.35 | S15: 26.6
B16: 330 | C16: 330 | D16: 160 | E16: 7.5 | F16: 11.5 | G16: 18 | H16: 29.5 | I16: 271 | J16: 23.9 | K16: 62.6 | L16: 49.1 | M16: 11770 | N16: 713 | O16: 13.7 | P16: 788 | Q16: 98.5 | R16: 3.55 | S16: 29.3
B17: 360 | C17: 360 | D17: 170 | E17: 8 | F17: 12.7 | G17: 18 | H17: 31 | I17: 298 | J17: 27.8 | K17: 72.7 | L17: 57.1 | M17: 16270 | N17: 904 | O17: 15 | P17: 1040 | Q17: 123 | R17: 3.79 | S17: 31.9
B18: 400 | C18: 400 | D18: 180 | E18: 8.6 | F18: 13.5 | G18: 21 | H18: 34.5 | I18: 331 | J18: 33.2 | K18: 84 | L18: 66.3 | M18: 23130 | N18: 1160 | O18: 16.5 | P18: 1320 | Q18: 146 | R18: 3.95 | S18: 35.4
B19: 450 | C19: 450 | D19: 190 | E19: 9.4 | F19: 14.6 | G19: 21 | H19: 36 | I19: 378 | J19: 40.9 | K19: 98.8 | L19: 77.6 | M19: 33740 | N19: 1500 | O19: 18.5 | P19: 1680 | Q19: 176 | R19: 4.12 | S19: 40.1
B20: 500 | C20: 500 | D20: 200 | E20: 10.2 | F20: 16 | G20: 21 | H20: 37 | I20: 426 | J20: 49.4 | K20: 116 | L20: 90.7 | M20: 48200 | N20: 1930 | O20: 20.4 | P20: 2140 | Q20: 214 | R20: 4.31 | S20: 43.9
B21: 550 | C21: 550 | D21: 210 | E21: 11.1 | F21: 17.2 | G21: 24 | H21: 41.5 | I21: 467 | J21: 59.1 | K21: 134 | L21: 106 | M21: 67120 | N21: 2440 | O21: 22.3 | P21: 2670 | Q21: 254 | R21: 4.45 | S21: 48.2
B22: 600 | C22: 600 | D22: 220 | E22: 12 | F22: 19 | G22: 24 | H22: 43 | I22: 514 | J22: 69.7 | K22: 156 | L22: 122 | M22: 92080 | N22: 3070 | O22: 24.3 | P22: 3390 | Q22: 308 | R22: 4.66 | S22: 52.4
A23: IPE | B23: تير آهن باريك I با لبه موازي (گرم غلطك خورده)
A24: IPE o | B24: 180 | C24: 182 | D24: 92 | E24: 6 | F24: 9 | G24: 9 | H24: 18 | I24: 146 | J24: 10.3 | K24: 27.1 | L24: 21.3 | M24: 1510 | N24: 165 | O24: 7.45 | P24: 117 | Q24: 25.5 | R24: 2.08 | S24: 15.9
B25: 200 | C25: 202 | D25: 102 | E25: 6.2 | F25: 9.5 | G25: 12 | H25: 21.5 | I25: 159 | J25: 11.9 | K25: 32 | L25: 25.1 | M25: 2210 | N25: 219 | O25: 8.32 | P25: 169 | Q25: 33.1 | R25: 2.3 | S25: 17.7
B26: 220 | C26: 222 | D26: 112 | E26: 6.6 | F26: 10.2 | G26: 12 | H26: 22.5 | I26: 177 | J26: 14 | K26: 37.4 | L26: 29.4 | M26: 3130 | N26: 282 | O26: 9.16 | P26: 240 | Q26: 42.8 | R26: 2.53 | S26: 19.5
B27: 240 | C27: 242 | D27: 122 | E27: 7 | F27: 10.8 | G27: 15 | H27: 26 | I27: 190 | J27: 16.2 | K27: 43.7 | L27: 34.3 | M27: 4370 | N27: 361 | O27: 10 | P27: 329 | Q27: 53.9 | R27: 2.74 | S27: 21.3
B28: 270 | C28: 274 | D28: 136 | E28: 7.5 | F28: 12.2 | G28: 15 | H28: 27.5 | I28: 219 | J28: 19.6 | K28: 53.8 | L28: 42.3 | M28: 6950 | N28: 507 | O28: 11.4 | P28: 514 | Q28: 75.5 | R28: 3.09 | S28: 24.2
B29: 300 | C29: 304 | D29: 152 | E29: 8 | F29: 12.7 | G29: 15 | H29: 28 | I29: 248 | J29: 23.3 | K29: 62.8 | L29: 49.3 | M29: 9990 | N29: 658 | O29: 12.6 | P29: 746 | Q29: 98.1 | R29: 3.45 | S29: 26.9
B30: 330 | C30: 334 | D30: 162 | E30: 8.5 | F30: 13.5 | G30: 18 | H30: 31.5 | I30: 271 | J30: 27.2 | K30: 72.6 | L30: 57 | M30: 13910 | N30: 833 | O30: 13.8 | P30: 960 | Q30: 119 | R30: 3.64 | S30: 29.5
B31: 360 | C31: 364 | D31: 172 | E31: 9.2 | F31: 14.7 | G31: 18 | H31: 33 | I31: 298 | J31: 32.1 | K31: 84.1 | L31: 66 | M31: 19050 | N31: 1050 | O31: 15.1 | P31: 1250 | Q31: 146 | R31: 3.86 | S31: 32.1
B32: 400 | C32: 404 | D32: 182 | E32: 9.7 | F32: 15.5 | G32: 21 | H32: 36.5 | I32: 331 | J32: 37.6 | K32: 96.4 | L32: 75.7 | M32: 26750 | N32: 1320 | O32: 16.7 | P32: 1560 | Q32: 172 | R32: 4.03 | S32: 35.6
B33: 450 | C33: 456 | D33: 192 | E33: 11 | F33: 17.6 | G33: 21 | H33: 39 | I33: 378 | J33: 48.2 | K33: 118 | L33: 92.4 | M33: 40920 | N33: 1790 | O33: 18.7 | P33: 2090 | Q33: 217 | R33: 4.21 | S33: 40
B34: 500 | C34: 506 | D34: 202 | E34: 12 | F34: 19 | G34: 21 | H34: 40 | I34: 426 | J34: 58.4 | K34: 137 | L34: 107 | M34: 57780 | N34: 2280 | O34: 20.6 | P34: 2620 | Q34: 260 | R34: 4.38 | S34: 44.2
B35: 550 | C35: 556 | D35: 212 | E35: 12.7 | F35: 20.2 | G35: 24 | H35: 44.5 | I35: 467 | J35: 68 | K35: 156 | L35: 123 | M35: 79160 | N35: 2850 | O35: 22.5 | P35: 3220 | Q35: 304 | R35: 4.55 | S35: 48.5
B36: 600 | C36: 610 | D36: 224 | E36: 15 | F36: 24 | G36: 24 | H36: 48 | I36: 514 | J36: 87.9 | K36: 197 | L36: 154 | M36: 118300 | N36: 3880 | O36: 24.5 | P36: 4520 | Q36: 404 | R36: 4.79 | S36: 52.9
A37: IPE o
A38: IPE v | B38: 400 | C38: 408 | D38: 182 | E38: 10.6 | F38: 17.5 | G38: 21 | H38: 38.5 | I38: 331 | J38: 41.4 | K38: 107 | L38: 84 | M38: 30140 | N38: 1480 | O38: 16.8 | P38: 1770 | Q38: 194 | R38: 4.06 | S38: 35.8
B39: 450 | C39: 460 | D39: 194 | E39: 12.4 | F39: 19.6 | G39: 21 | H39: 41 | I39: 378 | J39: 54.6 | K39: 132 | L39: 104 | M39: 46200 | N39: 2010 | O39: 18.7 | P39: 2400 | Q39: 247 | R39: 4.26 | S39: 39.8
B40: 500 | C40: 514 | D40: 204 | E40: 14.2 | F40: 23 | G40: 21 | H40: 44 | I40: 426 | J40: 69.7 | K40: 164 | L40: 129 | M40: 70720 | N40: 2750 | O40: 20.8 | P40: 3270 | Q40: 321 | R40: 4.46 | S40: 44.7
B41: 550 | C41: 566 | D41: 216 | E41: 17.1 | F41: 25.2 | G41: 24 | H41: 49.5 | I41: 467 | J41: 92.4 | K41: 202 | L41: 159 | M41: 102300 | N41: 3620 | O41: 22.5 | P41: 4260 | Q41: 395 | R41: 4.59 | S41: 48.7
B42: 600 | C42: 618 | D42: 228 | E42: 18 | F42: 28 | G42: 24 | H42: 52 | I42: 514 | J42: 106 | K42: 234 | L42: 184 | M42: 141600 | N42: 4580 | O42: 24.6 | P42: 5570 | Q42: 489 | R42: 4.88 | S42: 53.2
A43: IPE v
A44: IPEa ,IPEi | B44: 80 | C44: 78 | D44: 46 | E44: 3.3 | F44: 4.2 | G44: 5 | H44: 9.2 | I44: 59.6 | J44: 2.44 | K44: 6.38 | L44: 5 | M44: 64.4 | N44: 16.5 | O44: 3.18 | P44: 6.85 | Q44: 2.98 | R44: 1.04 | S44: 6.79
B45: 100 | C45: 98 | D45: 55 | E45: 3.6 | F45: 4.7 | G45: 7 | H45: 11.7 | I45: 74.6 | J45: 3.35 | K45: 8.78 | L45: 6.89 | M45: 141 | N45: 28.8 | O45: 4.01 | P45: 13.1 | Q45: 4.77 | R45: 1.22 | S45: 8.56
B46: 120 | C46: 117.6 | D46: 64 | E46: 3.8 | F46: 5.1 | G46: 7 | H46: 12.1 | I46: 93.4 | J46: 4.27 | K46: 11 | L46: 8.66 | M46: 257 | N46: 43.8 | O46: 4.83 | P46: 22.4 | Q46: 7 | R46: 1.43 | S46: 10.3
B47: 140 | C47: 137.4 | D47: 73 | E47: 3.8 | F47: 5.6 | G47: 7 | H47: 12.7 | I47: 112 | J47: 5.01 | K47: 13.4 | L47: 10.5 | M47: 435 | N47: 63.3 | O47: 5.7 | P47: 36.4 | Q47: 9.98 | R47: 1.65 | S47: 12.2
B48: 160 | C48: 157 | D48: 82 | E48: 4 | F48: 5.9 | G48: 7 | H48: 15 | I48: 127 | J48: 6.04 | K48: 16.2 | L48: 12.7 | M48: 689 | N48: 87.8 | O48: 6.53 | P48: 54.4 | Q48: 13.3 | R48: 1.83 | S48: 13.9
B49: 180 | C49: 177 | D49: 91 | E49: 4.3 | F49: 6.5 | G49: 9 | H49: 15.5 | I49: 146 | J49: 7.33 | K49: 19.6 | L49: 15.4 | M49: 1063 | N49: 120 | O49: 7.37 | P49: 81.9 | Q49: 18 | R49: 2.05 | S49: 15.7
B50: 200 | C50: 197 | D50: 100 | E50: 4.5 | F50: 7 | G50: 12 | H50: 19 | I50: 159 | J50: 8.55 | K50: 23.5 | L50: 18.4 | M50: 1592 | N50: 162 | O50: 8.23 | P50: 117 | Q50: 23.4 | R50: 2.23 | S50: 17.5
B51: 220 | C51: 217 | D51: 110 | E51: 5 | F51: 7.7 | G51: 12 | H51: 19.5 | I51: 178 | J51: 10.5 | K51: 28.3 | L51: 22.2 | M51: 2317 | N51: 214 | O51: 9.05 | P51: 171 | Q51: 31.2 | R51: 2.46 | S51: 19.3
B52: 240 | C52: 237 | D52: 120 | E52: 5.2 | F52: 8.3 | G52: 15 | H52: 23.5 | I52: 190 | J52: 11.9 | K52: 33.3 | L52: 26.2 | M52: 3291 | N52: 278 | O52: 9.94 | P52: 240 | Q52: 40 | R52: 2.69 | S52: 21.1
B53: 270 | C53: 267 | D53: 135 | E53: 5.5 | F53: 8.7 | G53: 15 | H53: 23.5 | I53: 220 | J53: 14.2 | K53: 39.1 | L53: 30.7 | M53: 4917 | N53: 368 | O53: 11.2 | P53: 358 | Q53: 53 | R53: 3.02 | S53: 23.8
B54: 300 | C54: 297 | D54: 150 | E54: 6.1 | F54: 9.2 | G54: 15 | H54: 24 | I54: 249 | J54: 17.6 | K54: 46.5 | L54: 36.5 | M54: 7174 | N54: 483 | O54: 12.4 | P54: 519 | Q54: 69.2 | R54: 3.34 | S54: 26.5
B55: 330 | C55: 327 | D55: 160 | E55: 6.5 | F55: 10 | G55: 18 | H55: 28 | I55: 271 | J55: 20.6 | K55: 54.7 | L55: 43 | M55: 10230 | N55: 626 | O55: 13.7 | P55: 685 | Q55: 85.6 | R55: 3.54 | S55: 29.2
B56: 360 | C56: 357.6 | D56: 170 | E56: 6.6 | F56: 11.5 | G56: 18 | H56: 29.3 | I56: 299 | J56: 22.8 | K56: 64 | L56: 50.2 | M56: 14520 | N56: 812 | O56: 15.1 | P56: 944 | Q56: 111 | R56: 3.84 | S56: 32
B57: 400 | C57: 397 | D57: 180 | E57: 7 | F57: 12 | G57: 21 | H57: 33 | I57: 331 | J57: 26.9 | K57: 73.1 | L57: 57.4 | M57: 20290 | N57: 1022 | O57: 16.7 | P57: 1171 | Q57: 130 | R57: 4 | S57: 35.5
B58: 450 | C58: 447 | D58: 190 | E58: 7.6 | F58: 13.1 | G58: 21 | H58: 34 | I58: 379 | J58: 33 | K58: 85.6 | L58: 67.2 | M58: 29760 | N58: 1331 | O58: 18.7 | P58: 1502 | Q58: 158 | R58: 4.19 | S58: 39.8
B59: 500 | C59: 497 | D59: 200 | E59: 8.4 | F59: 14.5 | G59: 21 | H59: 35.5 | I59: 426 | J59: 40.5 | K59: 101 | L59: 79.4 | M59: 42930 | N59: 1728 | O59: 20.6 | P59: 1939 | Q59: 194 | R59: 4.38 | S59: 44.1
B60: 550 | C60: 547 | D60: 210 | E60: 9 | F60: 15.7 | G60: 24 | H60: 39.5 | I60: 468 | J60: 47.8 | K60: 117 | L60: 92.1 | M60: 59980 | N60: 2193 | O60: 22.6 | P60: 2432 | Q60: 232 | R60: 4.55 | S60: 48.5
B61: 600 | C61: 597 | D61: 220 | E61: 9.8 | F61: 17.5 | G61: 24 | H61: 41.5 | I61: 514 | J61: 56.8 | K61: 137 | L61: 108 | M61: 82920 | N61: 2778 | O61: 24.6 | P61: 3116 | Q61: 283 | R61: 4.77 | S61: 52.8
A62: IPEa
A63: IPE 750 | B63: 137 | C63: 753 | D63: 263 | E63: 11.5 | F63: 17 | G63: 17 | H63: 34 | I63: 685 | J63: 84.6 | K63: 175 | L63: 137 | M63: 159900 | N63: 4246 | O63: 30.3 | P63: 5166 | Q63: 393 | R63: 5.44 | S63: 65.7
B64: 147 | C64: 753 | D64: 265 | E64: 13.2 | F64: 17 | G64: 17 | H64: 34 | I64: 685 | J64: 97.2 | K64: 187 | L64: 147 | M64: 166100 | N64: 4411 | O64: 29.8 | P64: 5289 | Q64: 399 | R64: 5.31 | S64: 65
B65: 173 | C65: 762 | D65: 267 | E65: 14.4 | F65: 21.6 | G65: 17 | H65: 38.5 | I65: 685 | J65: 107 | K65: 221 | L65: 173 | M65: 205800 | N65: 5402 | O65: 30.5 | P65: 6873 | Q65: 515 | R65: 5.57 | S65: 66.2
B66: 196 | C66: 770 | D66: 268 | E66: 15.6 | F66: 25.4 | G66: 17 | H66: 42.5 | I66: 685 | J66: 116 | K66: 251 | L66: 196 | M66: 240300 | N66: 6241 | O66: 31 | P66: 8175 | Q66: 610 | R66: 5.71 | S66: 67
A67: IPE 750 | B67: تير آهن باريك I رديف IPE 750 (استاندارد نشده) حداقل ميزان ذكر شده ضروري مي باشد.
A68: IPB LL | B68: 100 | C68: 91 | D68: 100 | E68: 4.2 | F68: 5.5 | G68: 12 | H68: 17.5 | I68: 56 | J68: 3.6 | K68: 15.6 | L68: 12.2 | M68: 237 | N68: 52 | O68: 3.89 | P68: 92.1 | Q68: 18.4 | R68: 2.43 | S68: 8.11
B69: 120 | C69: 109 | D69: 120 | E69: 4.2 | F69: 5.5 | G69: 12 | H69: 17.5 | I69: 74 | J69: 4.35 | K69: 18.6 | L69: 14.6 | M69: 413 | N69: 75.8 | O69: 4.72 | P69: 159 | Q69: 26.5 | R69: 2.93 | S69: 9.83
B70: 140 | C70: 128 | D70: 140 | E70: 4.3 | F70: 6 | G70: 12 | H70: 18 | I70: 92 | J70: 5.25 | K70: 23 | L70: 18.1 | M70: 719 | N70: 112 | O70: 5.59 | P70: 275 | Q70: 39.3 | R70: 3.45 | S70: 11.6
B71: 160 | C71: 148 | D71: 160 | E71: 4.5 | F71: 7 | G71: 15 | H71: 22 | I71: 104 | J71: 6.34 | K71: 30.4 | L71: 23.8 | M71: 1283 | N71: 173 | O71: 6.5 | P71: 479 | Q71: 59.8 | R71: 3.97 | S71: 13.5
B72: 180 | C72: 167 | D72: 180 | E72: 5 | F72: 7.5 | G72: 15 | H72: 22.5 | I72: 122 | J72: 7.97 | K72: 36.5 | L72: 28.7 | M72: 1967 | N72: 263 | O72: 7.34 | P72: 730 | Q72: 81.1 | R72: 4.47 | S72: 15.2
B73: 200 | C73: 186 | D73: 200 | E73: 5.5 | F73: 8 | G73: 18 | H73: 26 | I73: 134 | J73: 9.79 | K73: 44.1 | L73: 34.6 | M73: 2944 | N73: 317 | O73: 8.17 | P73: 1068 | Q73: 107 | R73: 4.92 | S73: 17
B74: 220 | C74: 205 | D74: 220 | E74: 6 | F74: 8.5 | G74: 18 | H74: 26.5 | I74: 152 | J74: 11.8 | K74: 51.5 | L74: 40.4 | M74: 4170 | N74: 407 | O74: 9 | P74: 1510 | Q74: 137 | R74: 5.42 | S74: 18.7
B75: 240 | C75: 224 | D75: 240 | E75: 6.5 | F75: 9 | G75: 21 | H75: 30 | I75: 164 | J75: 14 | K75: 60.4 | L75: 47.4 | M75: 5835 | N75: 521 | O75: 9.83 | P75: 2077 | Q75: 173 | R75: 5.87 | S75: 20.5
B76: 260 | C76: 244 | D76: 260 | E76: 6.5 | F76: 9.5 | G76: 24 | H76: 33.5 | I76: 177 | J76: 15.2 | K76: 69 | L76: 54.1 | M76: 7981 | N76: 654 | O76: 10.8 | P76: 2788 | Q76: 214 | R76: 6.38 | S76: 22.3
B77: 280 | C77: 264 | D77: 280 | E77: 7 | F77: 10 | G77: 24 | H77: 34 | I77: 196 | J77: 17.8 | K77: 78 | L77: 61.2 | M77: 10560 | N77: 800 | O77: 11.6 | P77: 3664 | Q77: 262 | R77: 6.85 | S77: 24.2
B78: 300 | C78: 283 | D78: 300 | E78: 7.5 | F78: 10.5 | G78: 27 | H78: 37.5 | I78: 208 | J78: 20.4 | K78: 88.9 | L78: 69.8 | M78: 13800 | N78: 976 | O78: 12.5 | P78: 4734 | Q78: 316 | R78: 7.3 | S78: 25.9
B79: 320 | C79: 301 | D79: 300 | E79: 8 | F79: 11 | G79: 27 | H79: 38 | I79: 225 | J79: 23.2 | K79: 94.6 | L79: 74.2 | M79: 16450 | N79: 1093 | O79: 13.2 | P79: 4959 | Q79: 331 | R79: 7.24 | S79: 27.5
B80: 340 | C80: 320 | D80: 300 | E80: 8.5 | F80: 11.5 | G80: 27 | H80: 38.5 | I80: 243 | J80: 26.2 | K80: 101 | L80: 78.9 | M80: 19550 | N80: 1222 | O80: 13.9 | P80: 5185 | Q80: 346 | R80: 7.18 | S80: 29.1
B81: 360 | C81: 339 | D81: 300 | E81: 9 | F81: 12 | G81: 27 | H81: 39 | I81: 261 | J81: 29.4 | K81: 107 | L81: 83.7 | M81: 23040 | N81: 1359 | O81: 14.7 | P81: 5410 | Q81: 361 | R81: 7.12 | S81: 30.8
B82: 400 | C82: 378 | D82: 300 | E82: 9.5 | F82: 13 | G82: 27 | H82: 40 | I82: 298 | J82: 34.7 | K82: 118 | L82: 92.4 | M82: 31250 | N82: 1654 | O82: 16.3 | P82: 5861 | Q82: 391 | R82: 7.06 | S82: 34.3
B83: 450 | C83: 425 | D83: 300 | E83: 10 | F83: 13.5 | G83: 27 | H83: 40.5 | I83: 344 | J83: 41.1 | K83: 127 | L83: 99.7 | M83: 41890 | N83: 1971 | O83: 18.2 | P83: 6088 | Q83: 406 | R83: 6.92 | S83: 38.4
B84: 500 | C84: 472 | D84: 300 | E84: 10.5 | F84: 14 | G84: 27 | H84: 41 | I84: 390 | J84: 48.1 | K84: 137 | L84: 107 | M84: 54640 | N84: 2315 | O84: 20 | P84: 6314 | Q84: 421 | R84: 6.79 | S84: 42.4
B85: 550 | C85: 522 | D85: 300 | E85: 11.5 | F85: 15 | G85: 27 | H85: 42 | I85: 438 | J85: 58.3 | K85: 153 | L85: 120 | M85: 72870 | N85: 2792 | O85: 21.8 | P85: 6767 | Q85: 251 | R85: 6.65 | S85: 46.6
B86: 600 | C86: 571 | D86: 300 | E86: 12 | F86: 15.6 | G86: 27 | H86: 42.5 | I86: 486 | J86: 66.7 | K86: 164 | L86: 129 | M86: 91870 | N86: 3218 | O86: 23.7 | P86: 6993 | Q86: 466 | R86: 6.53 | S86: 50.7
B87: 650 | C87: 620 | D87: 300 | E87: 12.5 | F87: 16 | G87: 27 | H87: 43 | I87: 534 | J87: 75.5 | K87: 176 | L87: 138 | M87: 113900 | N87: 3676 | O87: 25.5 | P87: 7221 | Q87: 481 | R87: 6.41 | S87: 54.8
B88: 700 | C88: 670 | D88: 300 | E88: 13 | F88: 17 | G88: 27 | H88: 44 | I88: 582 | J88: 84.9 | K88: 191 | L88: 150 | M88: 142700 | N88: 4260 | O88: 27.3 | P88: 7673 | Q88: 512 | R88: 6.34 | S88: 59
B89: 800 | C89: 770 | D89: 300 | E89: 14 | F89: 18 | G89: 30 | H89: 48 | I89: 674 | J89: 105 | K89: 218 | L89: 172 | M89: 208900 | N89: 5426 | O89: 30.9 | P89: 8134 | Q89: 542 | R89: 6.1 | S89: 67.1
B90: 900 | C90: 870 | D90: 300 | E90: 15 | F90: 20 | G90: 30 | H90: 50 | I90: 770 | J90: 127 | K90: 252 | L90: 198 | M90: 301100 | N90: 6923 | O90: 34.6 | P90: 9041 | Q90: 603 | R90: 5.99 | S90: 75.3
B91: 1000 | C91: 970 | D91: 300 | E91: 16 | F91: 21 | G91: 30 | H91: 51 | I91: 868 | J91: 152 | K91: 282 | L91: 222 | M91: 406500 | N91: 8380 | O91: 38 | P91: 9501 | Q91: 633 | R91: 5.8 | S91: 83.2
A92: IPB LL | B92: تير آهن عريض I به ويژه نوع سبك HE-AA=IPBLL (استاندارد نشده)
A93: IPB L | B93: 100 | C93: 96 | D93: 100 | E93: 5 | F93: 8 | G93: 12 | H93: 20 | I93: 56 | J93: 4.4 | K93: 21.2 | L93: 16.7 | M93: 349 | N93: 72.8 | O93: 4.06 | P93: 134 | Q93: 26.8 | R93: 2.51 | S93: 8.41
B94: 120 | C94: 114 | D94: 120 | E94: 5 | F94: 8 | G94: 12 | H94: 20 | I94: 74 | J94: 5.3 | K94: 25.3 | L94: 19.9 | M94: 606 | N94: 106 | O94: 4.89 | P94: 231 | Q94: 38.5 | R94: 3.02 | S94: 10.1
B95: 140 | C95: 133 | D95: 140 | E95: 5.5 | F95: 8.5 | G95: 12 | H95: 20.5 | I95: 92 | J95: 6.85 | K95: 31.4 | L95: 24.7 | M95: 1030 | N95: 155 | O95: 5.73 | P95: 389 | Q95: 55.6 | R95: 3.52 | S95: 11.9
B96: 160 | C96: 152 | D96: 160 | E96: 6 | F96: 9 | G96: 15 | H96: 24 | I96: 104 | J96: 8.58 | K96: 38.8 | L96: 30.4 | M96: 1670 | N96: 220 | O96: 6.57 | P96: 616 | Q96: 76.9 | R96: 3.98 | S96: 13.6
B97: 180 | C97: 171 | D97: 180 | E97: 6 | F97: 9.5 | G97: 15 | H97: 24.5 | I97: 122 | J97: 9.69 | K97: 45.3 | L97: 35.5 | M97: 2510 | N97: 294 | O97: 7.45 | P97: 925 | Q97: 103 | R97: 4.52 | S97: 15.5
B98: 200 | C98: 190 | D98: 200 | E98: 6.5 | F98: 10 | G98: 18 | H98: 28 | I98: 134 | J98: 11.7 | K98: 53.8 | L98: 42.3 | M98: 3690 | N98: 389 | O98: 8.28 | P98: 1340 | Q98: 134 | R98: 4.98 | S98: 17.2
B99: 220 | C99: 210 | D99: 220 | E99: 7 | F99: 11 | G99: 18 | H99: 29 | I99: 152 | J99: 13.9 | K99: 64.3 | L99: 50.5 | M99: 5410 | N99: 515 | O99: 9.17 | P99: 1950 | Q99: 178 | R99: 5.51 | S99: 19
B100: 240 | C100: 230 | D100: 240 | E100: 7.5 | F100: 12 | G100: 21 | H100: 33 | I100: 164 | J100: 16.3 | K100: 76.8 | L100: 60.3 | M100: 7760 | N100: 675 | O100: 10.1 | P100: 2770 | Q100: 231 | R100: 6 | S100: 20.9
B101: 260 | C101: 250 | D101: 260 | E101: 7.5 | F101: 12.5 | G101: 24 | H101: 36.5 | I101: 177 | J101: 17.8 | K101: 86.8 | L101: 68.2 | M101: 10450 | N101: 836 | O101: 11 | P101: 3670 | Q101: 282 | R101: 6.5 | S101: 22.7
B102: 280 | C102: 270 | D102: 280 | E102: 8 | F102: 13 | G102: 24 | H102: 37 | I102: 196 | J102: 20.6 | K102: 97.3 | L102: 76.4 | M102: 13670 | N102: 1010 | O102: 11.9 | P102: 4760 | Q102: 340 | R102: 7 | S102: 24.6
B103: 300 | C103: 290 | D103: 300 | E103: 8.5 | F103: 14 | G103: 27 | H103: 41 | I103: 208 | J103: 23.5 | K103: 113 | L103: 88.3 | M103: 18260 | N103: 1260 | O103: 12.7 | P103: 6310 | Q103: 421 | R103: 7.49 | S103: 26.4
B104: 320 | C104: 310 | D104: 300 | E104: 9 | F104: 15.5 | G104: 27 | H104: 42.5 | I104: 225 | J104: 26.5 | K104: 124 | L104: 97.6 | M104: 22930 | N104: 1480 | O104: 13.6 | P104: 6990 | Q104: 466 | R104: 7.49 | S104: 28.2
B105: 340 | C105: 330 | D105: 300 | E105: 9.5 | F105: 16.5 | G105: 27 | H105: 43.5 | I105: 243 | J105: 29.8 | K105: 133 | L105: 105 | M105: 27690 | N105: 1680 | O105: 14.4 | P105: 7440 | Q105: 496 | R105: 7.46 | S105: 29.9
B106: 360 | C106: 350 | D106: 300 | E106: 10 | F106: 17.5 | G106: 27 | H106: 44.5 | I106: 261 | J106: 33.2 | K106: 143 | L106: 112 | M106: 33090 | N106: 1890 | O106: 15.2 | P106: 7890 | Q106: 526 | R106: 7.43 | S106: 31.7
B107: 400 | C107: 390 | D107: 300 | E107: 11 | F107: 19 | G107: 27 | H107: 46 | I107: 298 | J107: 40.8 | K107: 159 | L107: 125 | M107: 45070 | N107: 2310 | O107: 16.8 | P107: 8560 | Q107: 571 | R107: 7.34 | S107: 35.2
B108: 450 | C108: 440 | D108: 300 | E108: 11.5 | F108: 21 | G108: 27 | H108: 48 | I108: 344 | J108: 48.2 | K108: 178 | L108: 140 | M108: 63720 | N108: 2900 | O108: 18.9 | P108: 9470 | Q108: 631 | R108: 7.29 | S108: 39.6
B109: 500 | C109: 490 | D109: 300 | E109: 12 | F109: 23 | G109: 27 | H109: 50 | I109: 390 | J109: 56 | K109: 198 | L109: 155 | M109: 68970 | N109: 3550 | O109: 21 | P109: 10370 | Q109: 691 | R109: 7.24 | S109: 44.1
B110: 550 | C110: 540 | D110: 300 | E110: 12.5 | F110: 24 | G110: 27 | H110: 51 | I110: 438 | J110: 64.3 | K110: 212 | L110: 166 | M110: 111900 | N110: 4150 | O110: 23 | P110: 10820 | Q110: 721 | R110: 7.15 | S110: 48.4
B111: 600 | C111: 590 | D111: 300 | E111: 13 | F111: 25 | G111: 27 | H111: 52 | I111: 486 | J111: 73.4 | K111: 226 | L111: 178 | M111: 141200 | N111: 4790 | O111: 25 | P111: 11270 | Q111: 751 | R111: 7.05 | S111: 52.8
B112: 650 | C112: 640 | D112: 300 | E112: 13.5 | F112: 26 | G112: 27 | H112: 53 | I112: 534 | J112: 82.9 | K112: 242 | L112: 190 | M112: 175200 | N112: 5470 | O112: 26.9 | P112: 11720 | Q112: 782 | R112: 6.97 | S112: 57.1
B113: 700 | C113: 690 | D113: 300 | E113: 14.5 | F113: 27 | G113: 27 | H113: 54 | I113: 582 | J113: 96.1 | K113: 260 | L113: 204 | M113: 215300 | N113: 6240 | O113: 28.8 | P113: 12180 | Q113: 812 | R113: 6.84 | S113: 61.2
B114: 800 | C114: 790 | D114: 300 | E114: 15 | F114: 28 | G114: 30 | H114: 58 | I114: 674 | J114: 114 | K114: 286 | L114: 224 | M114: 303400 | N114: 7680 | O114: 32.6 | P114: 12640 | Q114: 843 | R114: 6.65 | S114: 69.8
B115: 900 | C115: 890 | D115: 300 | E115: 16 | F115: 30 | G115: 30 | H115: 60 | I115: 770 | J115: 138 | K115: 321 | L115: 252 | M115: 422100 | N115: 9480 | O115: 36.3 | P115: 13550 | Q115: 903 | R115: 6.5 | S115: 78.1
B116: 1000 | C116: 990 | D116: 300 | E116: 16.5 | F116: 31 | G116: 30 | H116: 61 | I116: 868 | J116: 158 | K116: 347 | L116: 272 | M116: 553800 | N116: 11190 | O116: 40 | P116: 14000 | Q116: 934 | R116: 6.35 | S116: 86.4
A117: IPB L | B117: تير آهن عريض I با لبه موازي نوع سبك
A118: IPB | B118: 100 | C118: 100 | D118: 100 | E118: 6 | F118: 10 | G118: 12 | H118: 22 | I118: 56 | J118: 5.4 | K118: 26 | L118: 20.4 | M118: 450 | N118: 89.9 | O118: 4.16 | P118: 167 | Q118: 33.5 | R118: 2.53 | S118: 8.63
B119: 120 | C119: 120 | D119: 120 | E119: 6.5 | F119: 11 | G119: 12 | H119: 23 | I119: 74 | J119: 7.08 | K119: 34 | L119: 26.7 | M119: 864 | N119: 144 | O119: 5.04 | P119: 318 | Q119: 52.9 | R119: 3.06 | S119: 10.5
B120: 140 | C120: 140 | D120: 140 | E120: 7 | F120: 12 | G120: 12 | H120: 24 | I120: 92 | J120: 8.96 | K120: 43 | L120: 33.7 | M120: 1510 | N120: 216 | O120: 5.93 | P120: 550 | Q120: 78.5 | R120: 3.58 | S120: 12.3
B121: 160 | C121: 160 | D121: 160 | E121: 8 | F121: 13 | G121: 15 | H121: 28 | I121: 104 | J121: 11.8 | K121: 54.3 | L121: 42.6 | M121: 2490 | N121: 311 | O121: 6.78 | P121: 889 | Q121: 111 | R121: 4.05 | S121: 14.1
B122: 180 | C122: 180 | D122: 180 | E122: 8.5 | F122: 14 | G122: 15 | H122: 29 | I122: 122 | J122: 14.1 | K122: 65.3 | L122: 51.2 | M122: 3830 | N122: 426 | O122: 7.66 | P122: 1360 | Q122: 151 | R122: 4.57 | S122: 15.9
B123: 200 | C123: 200 | D123: 200 | E123: 9 | F123: 15 | G123: 18 | H123: 33 | I123: 134 | J123: 16.6 | K123: 78.1 | L123: 61.3 | M123: 5700 | N123: 570 | O123: 8.54 | P123: 2000 | Q123: 200 | R123: 5.07 | S123: 17.7
B124: 220 | C124: 220 | D124: 220 | E124: 9.5 | F124: 16 | G124: 18 | H124: 34 | I124: 152 | J124: 19.4 | K124: 91 | L124: 71.5 | M124: 8090 | N124: 736 | O124: 9.43 | P124: 2840 | Q124: 258 | R124: 5.59 | S124: 19.6
B125: 240 | C125: 240 | D125: 240 | E125: 10 | F125: 17 | G125: 21 | H125: 38 | I125: 164 | J125: 22.3 | K125: 106 | L125: 83.2 | M125: 11260 | N125: 938 | O125: 10.3 | P125: 3920 | Q125: 327 | R125: 6.08 | S125: 21.4
B126: 260 | C126: 260 | D126: 260 | E126: 10 | F126: 17.5 | G126: 24 | H126: 41.5 | I126: 177 | J126: 24.2 | K126: 118 | L126: 93 | M126: 14920 | N126: 1150 | O126: 11.2 | P126: 5130 | Q126: 395 | R126: 6.58 | S126: 23.3
B127: 280 | C127: 280 | D127: 280 | E127: 10.5 | F127: 18 | G127: 24 | H127: 42 | I127: 196 | J127: 27.5 | K127: 131 | L127: 103 | M127: 19270 | N127: 1380 | O127: 12.1 | P127: 6590 | Q127: 471 | R127: 7.09 | S127: 25.1
B128: 300 | C128: 300 | D128: 300 | E128: 11 | F128: 19 | G128: 27 | H128: 46 | I128: 208 | J128: 30.9 | K128: 149 | L128: 117 | M128: 25170 | N128: 1680 | O128: 13 | P128: 8560 | Q128: 571 | R128: 7.58 | S128: 26.9
B129: 320 | C129: 320 | D129: 300 | E129: 11.5 | F129: 20.5 | G129: 27 | H129: 47.5 | I129: 225 | J129: 34.4 | K129: 161 | L129: 127 | M129: 30820 | N129: 1930 | O129: 13.8 | P129: 9240 | Q129: 616 | R129: 7.57 | S129: 28.7
B130: 340 | C130: 340 | D130: 300 | E130: 12 | F130: 21.5 | G130: 27 | H130: 48.5 | I130: 243 | J130: 38.2 | K130: 171 | L130: 134 | M130: 36660 | N130: 2160 | O130: 14.6 | P130: 9690 | Q130: 646 | R130: 7.53 | S130: 30.4
B131: 360 | C131: 360 | D131: 300 | E131: 12.5 | F131: 22.5 | G131: 27 | H131: 49.5 | I131: 261 | J131: 42.2 | K131: 181 | L131: 142 | M131: 43190 | N131: 2400 | O131: 15.5 | P131: 10140 | Q131: 676 | R131: 7.49 | S131: 32.2
B132: 400 | C132: 400 | D132: 300 | E132: 13.5 | F132: 24 | G132: 27 | H132: 51 | I132: 298 | J132: 50.8 | K132: 198 | L132: 155 | M132: 57680 | N132: 2880 | O132: 17.1 | P132: 10820 | Q132: 721 | R132: 7.4 | S132: 35.7
B133: 450 | C133: 450 | D133: 300 | E133: 14 | F133: 26 | G133: 27 | H133: 53 | I133: 344 | J133: 59.4 | K133: 218 | L133: 171 | M133: 79890 | N133: 3550 | O133: 19.1 | P133: 11720 | Q133: 781 | R133: 7.33 | S133: 40.1
B134: 500 | C134: 500 | D134: 300 | E134: 14.5 | F134: 28 | G134: 27 | H134: 55 | I134: 390 | J134: 68.4 | K134: 239 | L134: 187 | M134: 107200 | N134: 4290 | O134: 21.2 | P134: 12620 | Q134: 842 | R134: 7.27 | S134: 44.5
B135: 550 | C135: 550 | D135: 300 | E135: 15 | F135: 29 | G135: 27 | H135: 56 | I135: 438 | J135: 78.1 | K135: 254 | L135: 199 | M135: 136700 | N135: 4970 | O135: 23.2 | P135: 13080 | Q135: 872 | R135: 7.17 | S135: 48.9
B136: 600 | C136: 600 | D136: 300 | E136: 15.5 | F136: 30 | G136: 27 | H136: 57 | I136: 486 | J136: 88.3 | K136: 270 | L136: 212 | M136: 171000 | N136: 5700 | O136: 25.2 | P136: 13530 | Q136: 902 | R136: 7.08 | S136: 53.2
B137: 650 | C137: 650 | D137: 300 | E137: 16 | F137: 31 | G137: 27 | H137: 58 | I137: 534 | J137: 99 | K137: 286 | L137: 225 | M137: 210600 | N137: 6480 | O137: 27.1 | P137: 13980 | Q137: 932 | R137: 6.99 | S137: 57.5
B138: 700 | C138: 700 | D138: 300 | E138: 17 | F138: 32 | G138: 27 | H138: 59 | I138: 582 | J138: 114 | K138: 306 | L138: 241 | M138: 256900 | N138: 7340 | O138: 29 | P138: 14400 | Q138: 963 | R138: 6.87 | S138: 61.7
B139: 800 | C139: 800 | D139: 300 | E139: 17.5 | F139: 33 | G139: 30 | H139: 63 | I139: 674 | J139: 134 | K139: 334 | L139: 262 | M139: 359100 | N139: 8980 | O139: 32.8 | P139: 14900 | Q139: 994 | R139: 6.68 | S139: 70.2
B140: 900 | C140: 900 | D140: 300 | E140: 18.5 | F140: 35 | G140: 30 | H140: 65 | I140: 770 | J140: 160 | K140: 371 | L140: 291 | M140: 494100 | N140: 10980 | O140: 36.5 | P140: 15820 | Q140: 1050 | R140: 6.53 | S140: 78.5
B141: 1000 | C141: 1000 | D141: 300 | E141: 19 | F141: 36 | G141: 30 | H141: 66 | I141: 868 | J141: 183 | K141: 400 | L141: 314 | M141: 644700 | N141: 12890 | O141: 40.1 | P141: 16280 | Q141: 1090 | R141: 6.38 | S141: 86.8
A142: IPB
A143: IPB v | B143: 100 | C143: 120 | D143: 106 | E143: 12 | F143: 20 | G143: 12 | H143: 32 | I143: 56 | J143: 12 | K143: 53.2 | L143: 41.8 | M143: 1140 | N143: 190 | O143: 4.63 | P143: 399 | Q143: 75.3 | R143: 2.74 | S143: 9.69
B144: 120 | C144: 140 | D144: 126 | E144: 12.5 | F144: 21 | G144: 12 | H144: 33 | I144: 74 | J144: 14.9 | K144: 66.4 | L144: 52.1 | M144: 2020 | N144: 288 | O144: 5.51 | P144: 703 | Q144: 112 | R144: 3.25 | S144: 11.5
B145: 140 | C145: 160 | D145: 146 | E145: 13 | F145: 22 | G145: 12 | H145: 34 | I145: 92 | J145: 17.9 | K145: 80.6 | L145: 63.2 | M145: 3290 | N145: 411 | O145: 6.39 | P145: 1140 | Q145: 157 | R145: 3.77 | S145: 13.3
B146: 160 | C146: 180 | D146: 166 | E146: 14 | F146: 23 | G146: 15 | H146: 38 | I146: 104 | J146: 22 | K146: 97.1 | L146: 76.2 | M146: 5100 | N146: 566 | O146: 7.25 | P146: 1760 | Q146: 212 | R146: 4.26 | S146: 15.1
B147: 180 | C147: 200 | D147: 186 | E147: 14.5 | F147: 24 | G147: 15 | H147: 39 | I147: 122 | J147: 25.5 | K147: 113 | L147: 88.9 | M147: 7480 | N147: 748 | O147: 8.13 | P147: 2580 | Q147: 277 | R147: 4.77 | S147: 16.9
B148: 200 | C148: 220 | D148: 206 | E148: 15 | F148: 25 | G148: 18 | H148: 43 | I148: 134 | J148: 29.2 | K148: 131 | L148: 103 | M148: 10640 | N148: 967 | O148: 9 | P148: 3650 | Q148: 354 | R148: 5.27 | S148: 18.7
B149: 220 | C149: 240 | D149: 226 | E149: 15.5 | F149: 26 | G149: 18 | H149: 44 | I149: 152 | J149: 33.2 | K149: 149 | L149: 117 | M149: 14600 | N149: 1220 | O149: 9.89 | P149: 5010 | Q149: 444 | R149: 5.79 | S149: 20.6
B150: 240 | C150: 270 | D150: 248 | E150: 18 | F150: 32 | G150: 21 | H150: 53 | I150: 164 | J150: 42.8 | K150: 200 | L150: 157 | M150: 24290 | N150: 1800 | O150: 11 | P150: 8150 | Q150: 657 | R150: 6.39 | S150: 22.9
B151: 260 | C151: 290 | D151: 268 | E151: 18 | F151: 32.5 | G151: 24 | H151: 56.5 | I151: 177 | J151: 46.3 | K151: 220 | L151: 172 | M151: 31310 | N151: 2160 | O151: 11.9 | P151: 10450 | Q151: 780 | R151: 6.9 | S151: 24.8
B152: 280 | C152: 310 | D152: 288 | E152: 18.5 | F152: 33 | G152: 24 | H152: 57 | I152: 196 | J152: 51.2 | K152: 240 | L152: 189 | M152: 39550 | N152: 2550 | O152: 12.8 | P152: 13160 | Q152: 914 | R152: 7.4 | S152: 26.7
B153: 300 | C153: 340 | D153: 310 | E153: 21 | F153: 39 | G153: 27 | H153: 66 | I153: 208 | J153: 63.2 | K153: 303 | L153: 238 | M153: 59200 | N153: 3480 | O153: 14 | P153: 19400 | Q153: 1250 | R153: 8 | S153: 29
B154: 305 | C154: 320 | D154: 305 | E154: 16 | F154: 29 | G154: 27 | H154: 56 | I154: 208 | J154: 46.6 | K154: 225 | L154: 177 | M154: 40950 | N154: 2560 | O154: 13.5 | P154: 13740 | Q154: 901 | R154: 7.81 | S154: 28
B155: 320 | C155: 359 | D155: 309 | E155: 21 | F155: 40 | G155: 27 | H155: 67 | I155: 225 | J155: 67 | K155: 312 | L155: 245 | M155: 68130 | N155: 3800 | O155: 14.8 | P155: 19710 | Q155: 1280 | R155: 7.95 | S155: 30.7
B156: 340 | C156: 377 | D156: 309 | E156: 21 | F156: 40 | G156: 27 | H156: 67 | I156: 243 | J156: 70.8 | K156: 316 | L156: 248 | M156: 76370 | N156: 4050 | O156: 15.6 | P156: 19710 | Q156: 1280 | R156: 7.9 | S156: 32.4
B157: 360 | C157: 395 | D157: 308 | E157: 21 | F157: 40 | G157: 27 | H157: 67 | I157: 261 | J157: 74.6 | K157: 319 | L157: 250 | M157: 84870 | N157: 4300 | O157: 16.3 | P157: 19520 | Q157: 1270 | R157: 7.83 | S157: 34
B158: 400 | C158: 432 | D158: 307 | E158: 21 | F158: 40 | G158: 27 | H158: 67 | I158: 298 | J158: 82.3 | K158: 326 | L158: 256 | M158: 104100 | N158: 4820 | O158: 17.9 | P158: 19340 | Q158: 1260 | R158: 7.7 | S158: 37.4
B159: 450 | C159: 478 | D159: 307 | E159: 21 | F159: 40 | G159: 27 | H159: 67 | I159: 344 | J159: 92 | K159: 335 | L159: 263 | M159: 131500 | N159: 5500 | O159: 19.8 | P159: 19340 | Q159: 1260 | R159: 7.59 | S159: 41.5
B160: 500 | C160: 524 | D160: 306 | E160: 21 | F160: 40 | G160: 27 | H160: 67 | I160: 390 | J160: 102 | K160: 344 | L160: 270 | M160: 161900 | N160: 6180 | O160: 21.7 | P160: 19150 | Q160: 1250 | R160: 7.46 | S160: 45.7
B161: 550 | C161: 572 | D161: 306 | E161: 21 | F161: 40 | G161: 27 | H161: 67 | I161: 438 | J161: 112 | K161: 354 | L161: 278 | M161: 198000 | N161: 6920 | O161: 23.6 | P161: 19160 | Q161: 1250 | R161: 7.35 | S161: 49.9
B162: 600 | C162: 620 | D162: 305 | E162: 21 | F162: 40 | G162: 27 | H162: 67 | I162: 486 | J162: 122 | K162: 364 | L162: 285 | M162: 237400 | N162: 7660 | O162: 25.6 | P162: 18980 | Q162: 1240 | R162: 7.22 | S162: 54.1
B163: 650 | C163: 668 | D163: 305 | E163: 21 | F163: 40 | G163: 27 | H163: 67 | I163: 534 | J163: 132 | K163: 374 | L163: 293 | M163: 281700 | N163: 8430 | O163: 27.5 | P163: 18980 | Q163: 1240 | R163: 7.13 | S163: 58.3
B164: 700 | C164: 716 | D164: 304 | E164: 21 | F164: 40 | G164: 27 | H164: 67 | I164: 582 | J164: 142 | K164: 383 | L164: 301 | M164: 329300 | N164: 9200 | O164: 29.3 | P164: 18800 | Q164: 1240 | R164: 7.01 | S164: 62.5
B165: 800 | C165: 814 | D165: 303 | E165: 21 | F165: 40 | G165: 30 | H165: 70 | I165: 674 | J165: 163 | K165: 404 | L165: 317 | M165: 442600 | N165: 10870 | O165: 33.1 | P165: 18630 | Q165: 1230 | R165: 6.79 | S165: 70.9
B166: 900 | C166: 910 | D166: 302 | E166: 21 | F166: 40 | G166: 30 | H166: 70 | I166: 770 | J166: 183 | K166: 424 | L166: 333 | M166: 570400 | N166: 12540 | O166: 36.7 | P166: 18450 | Q166: 1220 | R166: 6.6 | S166: 79
B167: 1000 | C167: 1008 | D167: 302 | E167: 21 | F167: 40 | G167: 30 | H167: 70 | I167: 868 | J167: 203 | K167: 444 | L167: 349 | M167: 722300 | N167: 14330 | O167: 40.3 | P167: 18460 | Q167: 1220 | R167: 6.45 | S167: 87.2
A168: IPB v | B168: تير آهن عريض I با لبه موازي نوع سنگين
A169: INP | B169: 80 | C169: 80 | D169: 42 | E169: 3.9 | F169: 5.9 | G169: 2.3 | H169: 10.5 | I169: 59 | J169: 2.89 | K169: 7.57 | L169: 5.94 | M169: 77.8 | N169: 19.5 | O169: 3.2 | P169: 6.29 | Q169: 3 | R169: 0.91 | S169: 6.84
B170: 100 | C170: 100 | D170: 50 | E170: 4.5 | F170: 6.8 | G170: 2.7 | H170: 12.5 | I170: 75 | J170: 4.19 | K170: 10.6 | L170: 8.34 | M170: 171 | N170: 34.2 | O170: 4.01 | P170: 12.2 | Q170: 4.88 | R170: 1.07 | S170: 8.57
B171: 120 | C171: 120 | D171: 58 | E171: 5.1 | F171: 7.7 | G171: 3.1 | H171: 14 | I171: 92 | J171: 5.72 | K171: 14.2 | L171: 11.1 | M171: 328 | N171: 54.7 | O171: 4.81 | P171: 21.5 | Q171: 7.41 | R171: 1.23 | S171: 10.3
B172: 140 | C172: 140 | D172: 66 | E172: 5.7 | F172: 8.6 | G172: 3.4 | H172: 15.5 | I172: 109 | J172: 7.49 | K172: 18.2 | L172: 14.3 | M172: 573 | N172: 81.9 | O172: 5.61 | P172: 35.2 | Q172: 10.7 | R172: 1.4 | S172: 12
B173: 160 | C173: 160 | D173: 74 | E173: 6.3 | F173: 9.5 | G173: 3.8 | H173: 17.5 | I173: 125 | J173: 9.48 | K173: 22.8 | L173: 17.9 | M173: 935 | N173: 117 | O173: 6.4 | P173: 54.7 | Q173: 14.8 | R173: 1.55 | S173: 13.7
B174: 180 | C174: 180 | D174: 82 | E174: 6.9 | F174: 10.4 | G174: 4.1 | H174: 19 | I174: 142 | J174: 11.7 | K174: 27.9 | L174: 21.9 | M174: 1450 | N174: 161 | O174: 7.2 | P174: 81.3 | Q174: 19.8 | R174: 1.71 | S174: 15.5
B175: 200 | C175: 200 | D175: 90 | E175: 7.5 | F175: 11.3 | G175: 4.5 | H175: 20.5 | I175: 159 | J175: 14.2 | K175: 33.4 | L175: 26.2 | M175: 2140 | N175: 214 | O175: 8 | P175: 117 | Q175: 26 | R175: 1.87 | S175: 17.2
B176: 220 | C176: 220 | D176: 98 | E176: 8.1 | F176: 12.2 | G176: 4.9 | H176: 22 | I176: 176 | J176: 16.8 | K176: 39.5 | L176: 31.1 | M176: 3060 | N176: 278 | O176: 8.8 | P176: 162 | Q176: 33.1 | R176: 2.02 | S176: 18.9
B177: 240 | C177: 240 | D177: 106 | E177: 8.7 | F177: 13.1 | G177: 5.2 | H177: 24 | I177: 192 | J177: 19.7 | K177: 46.1 | L177: 36.2 | M177: 4250 | N177: 354 | O177: 9.59 | P177: 221 | Q177: 41.7 | R177: 2.2 | S177: 20.6
B178: 260 | C178: 260 | D178: 113 | E178: 9.4 | F178: 14.1 | G178: 5.6 | H178: 26 | I178: 208 | J178: 23.1 | K178: 53.3 | L178: 41.9 | M178: 5740 | N178: 442 | O178: 10.4 | P178: 288 | Q178: 51 | R178: 2.32 | S178: 22.3
B179: 280 | C179: 280 | D179: 119 | E179: 10.1 | F179: 15.2 | G179: 6.1 | H179: 27.5 | I179: 225 | J179: 26.7 | K179: 61 | L179: 47.9 | M179: 7590 | N179: 542 | O179: 11.1 | P179: 364 | Q179: 61.2 | R179: 2.45 | S179: 24
B180: 300 | C180: 300 | D180: 125 | E180: 10.8 | F180: 16.2 | G180: 6.5 | H180: 29.5 | I180: 241 | J180: 30.7 | K180: 69 | L180: 54.2 | M180: 9800 | N180: 653 | O180: 11.9 | P180: 451 | Q180: 72.2 | R180: 2.56 | S180: 25.7
B181: 320 | C181: 320 | D181: 131 | E181: 11.5 | F181: 17.3 | G181: 6.9 | H181: 31 | I181: 258 | J181: 34.8 | K181: 77.7 | L181: 61 | M181: 12510 | N181: 782 | O181: 12.7 | P181: 555 | Q181: 84.7 | R181: 2.67 | S181: 27.4
B182: 340 | C182: 340 | D182: 137 | E182: 12.2 | F182: 18.3 | G182: 7.3 | H182: 33 | I182: 274 | J182: 39.2 | K182: 86.7 | L182: 68 | M182: 15700 | N182: 923 | O182: 13.5 | P182: 674 | Q182: 98.4 | R182: 2.8 | S182: 29.1
B183: 360 | C183: 360 | D183: 143 | E183: 13 | F183: 19.5 | G183: 7.8 | H183: 35 | I183: 290 | J183: 44.3 | K183: 97 | L183: 76.1 | M183: 19610 | N183: 1090 | O183: 14.2 | P183: 818 | Q183: 114 | R183: 2.9 | S183: 30.7
B184: 380 | C184: 380 | D184: 149 | E184: 13.7 | F184: 20.5 | G184: 8.2 | H184: 37 | I184: 306 | J184: 49.3 | K184: 107 | L184: 84 | M184: 24010 | N184: 1260 | O184: 15 | P184: 975 | Q184: 131 | R184: 3.02 | S184: 32.4
B185: 400 | C185: 400 | D185: 155 | E185: 14.4 | F185: 21.6 | G185: 8.6 | H185: 38.5 | I185: 323 | J185: 54.5 | K185: 118 | L185: 92.4 | M185: 29210 | N185: 1460 | O185: 15.7 | P185: 1160 | Q185: 149 | R185: 3.13 | S185: 34.1
B186: 450 | C186: 450 | D186: 170 | E186: 16.2 | F186: 24.3 | G186: 9.7 | H186: 43.5 | I186: 363 | J186: 69 | K186: 147 | L186: 115 | M186: 45850 | N186: 2040 | O186: 17.7 | P186: 1730 | Q186: 203 | R186: 3.43 | S186: 38.4
B187: 500 | C187: 500 | D187: 185 | E187: 18 | F187: 27 | G187: 10.8 | H187: 48 | I187: 404 | J187: 85.1 | K187: 179 | L187: 141 | M187: 68740 | N187: 2750 | O187: 19.6 | P187: 2480 | Q187: 268 | R187: 3.72 | S187: 42.4
B188: 550 | C188: 550 | D188: 200 | E188: 19 | F188: 30 | G188: 11.9 | H188: 52.5 | I188: 445 | J188: 98.8 | K188: 212 | L188: 166 | M188: 99180 | N188: 3610 | O188: 21.6 | P188: 3490 | Q188: 349 | R188: 4.02 | S188: 46.8
A189: INP | B189: تير آهن باريك I با لبه شيبدار از طرف داخل

Sheet سپري
B1: علامت اختصاري | C1: اندازه به ميليمتر | M1: براي محور خمش
J2: A | K2: G | L2: ey | M2: y-y | N2: y-y | O2: y-y | P2: z-z | Q2: z-z | R2: z-z | S2: d₁ | T2: w₁ | U2: w₂
C3: h | D3: b | E3: ts=tg=r1 | F3: r2 | G3: r3 | H3: C | I3: h-c | J3: ديواره | M3: Iу | N3: Wy | O3: iy | P3: Iz | Q3: Wz | R3: iz
C4: mm | D4: mm | E4: mm | F4: mm | G4: mm | H4: mm | I4: mm | J4: cm² | K4: kg/m | L4: cm | M4: cm⁴ | N4: cm³ | O4: cm | P4: cm⁴ | Q4: cm³ | R4: cm | S4: mm | T4: mm | U4: mm
A5: T | B5: 30 | C5: 30 | D5: 30 | E5: 4 | F5: 2 | G5: 1 | H5: 9 | I5: 21 | J5: 2.26 | K5: 1.77 | L5: 0.85 | M5: 1.72 | N5: 0.8 | O5: 0.87 | P5: 0.87 | Q5: 0.58 | R5: 0.62
B6: 35 | C6: 35 | D6: 35 | E6: 4.5 | F6: 2.5 | G6: 1 | H6: 10 | I6: 25 | J6: 2.97 | K6: 2.33 | L6: 0.99 | M6: 3.1 | N6: 1.23 | O6: 1.04 | P6: 1.57 | Q6: 0.9 | R6: 0.73
B7: 40 | C7: 40 | D7: 40 | E7: 5 | F7: 2.5 | G7: 1 | H7: 11 | I7: 29 | J7: 3.77 | K7: 2.96 | L7: 1.12 | M7: 5.28 | N7: 1.84 | O7: 1.18 | P7: 2.58 | Q7: 1.29 | R7: 0.83
B8: 50 | C8: 50 | D8: 50 | E8: 6 | F8: 3 | G8: 1.5 | H8: 13 | I8: 37 | J8: 5.66 | K8: 4.44 | L8: 1.39 | M8: 12.1 | N8: 3.36 | O8: 1.46 | P8: 6.06 | Q8: 2.42 | R8: 1.03
B9: 60 | C9: 60 | D9: 60 | E9: 7 | F9: 3.5 | G9: 2 | H9: 15 | I9: 45 | J9: 7.94 | K9: 6.23 | L9: 1.66 | M9: 23.8 | N9: 5.48 | O9: 1.73 | P9: 12.2 | Q9: 4.07 | R9: 1.24
B10: 70 | C10: 70 | D10: 70 | E10: 8 | F10: 4 | G10: 2 | H10: 17 | I10: 53 | J10: 10.6 | K10: 8.32 | L10: 1.94 | M10: 44.4 | N10: 8.79 | O10: 2.05 | P10: 22.1 | Q10: 6.32 | R10: 1.44
B11: 80 | C11: 80 | D11: 80 | E11: 9 | F11: 4.5 | G11: 2 | H11: 19 | I11: 61 | J11: 13.6 | K11: 10.7 | L11: 2.22 | M11: 73.7 | N11: 12.8 | O11: 2.33 | P11: 37 | Q11: 9.25 | R11: 1.65
B12: 100 | C12: 100 | D12: 100 | E12: 11 | F12: 5.5 | G12: 3 | H12: 23 | I12: 77 | J12: 20.9 | K12: 16.4 | L12: 2.74 | M12: 179 | N12: 24.6 | O12: 2.92 | P12: 88.3 | Q12: 17.7 | R12: 2.05
B13: 120 | C13: 120 | D13: 120 | E13: 13 | F13: 6.5 | G13: 3 | H13: 27 | I13: 93 | J13: 29.6 | K13: 23.2 | L13: 3.28 | M13: 366 | N13: 42 | O13: 3.51 | P13: 178 | Q13: 29.7 | R13: 2.45
B14: 140 | C14: 140 | D14: 140 | E14: 15 | F14: 7.5 | G14: 4 | H14: 31 | I14: 109 | J14: 39.9 | K14: 31.2 | L14: 3.8 | M14: 660 | N14: 64.7 | O14: 4.07 | P14: 330 | Q14: 47.2 | R14: 2.88

Sheet نبشي_بال_نامساوي
C1: اندازه به ميليمتر | J1: براي محور خمش | T1: سوراخهاي لبه
B2: a*b*s | C2: r₁ | D2: r₂ | E2: A | F2: G | I2: ζ-ζ | J2: y-y | K2: y-y | L2: y-y | M2: z-z | N2: z-z | O2: ƞ-ƞ | P2: ƞ-ƞ | Q2: ƞ-ƞ | R2: ζ-ζ | S2: ζ-ζ
B3: علامت اختصاري | G3: ey | H3: ez | I3: tan a | J3: Iу | K3: Wy | L3: iy | M3: Iz | N3: Wz | O3: iz | P3: Iƞ | Q3: iƞ | R3: Iζ | S3: iζ | T3: d₁ | U3: d₂ | V3: w₁ | W3: w₂ | X3: w₃
C4: mm | D4: mm | E4: cm² | F4: kg/m | G4: cm | H4: cm | J4: cm⁴ | K4: cm³ | L4: cm | M4: cm⁴ | N4: cm³ | O4: cm | P4: cm⁴ | Q4: cm | R4: cm⁴ | S4: cm | T4: mm | U4: mm | V4: mm | W4: mm | X4: mm
A5: بال_نامساوي | B5: 30*20*3 | C5: 4 | D5: 2 | E5: 1.43 | F5: 1.12 | G5: 0.99 | H5: 0.502 | I5: 0.427 | J5: 1.25 | K5: 0.621 | L5: 0.935 | M5: 0.437 | N5: 0.292 | O5: 0.553 | P5: 1.43 | Q5: 1 | R5: 0.256 | S5: 0.424 | T5: 8.4 | U5: 4.3 | V5: 17 | X5: 12
B6: 30*20*4 | C6: 4 | D6: 2 | E6: 1.86 | F6: 1.46 | G6: 1.03 | H6: 0.541 | I6: 0.421 | J6: 1.59 | K6: 0.807 | L6: 0.925 | M6: 0.553 | N6: 0.379 | O6: 0.546 | P6: 1.81 | Q6: 0.988 | R6: 0.33 | S6: 0.421 | T6: 8.4 | U6: 4.3 | V6: 17 | X6: 12
B7: 40*20*4 | C7: 4 | D7: 2 | E7: 2.26 | F7: 1.77 | G7: 1.47 | H7: 0.48 | I7: 0.252 | J7: 3.59 | K7: 1.42 | L7: 1.26 | M7: 0.6 | N7: 0.393 | O7: 0.514 | P7: 3.8 | Q7: 1.3 | R7: 0.393 | S7: 0.417 | T7: 11 | U7: 4.3 | V7: 22 | X7: 12
B8: 40*25*4 | C8: 4 | D8: 2 | E8: 2.46 | F8: 1.93 | G8: 1.36 | H8: 0.623 | I8: 0.38 | J8: 3.89 | K8: 1.47 | L8: 1.26 | M8: 1.16 | N8: 0.619 | O8: 0.687 | P8: 4.35 | Q8: 1.33 | R8: 0.7 | S8: 0.534 | T8: 11 | U8: 6.4 | V8: 22 | X8: 15
B9: 45*30*4 | C9: 4.5 | D9: 2.25 | E9: 2.87 | F9: 2.25 | G9: 1.48 | H9: 0.74 | I9: 0.436 | J9: 5.78 | K9: 1.91 | L9: 1.42 | M9: 2.05 | N9: 0.91 | O9: 0.85 | P9: 6.65 | Q9: 1.52 | R9: 1.18 | S9: 0.64 | T9: 13 | U9: 8.4 | V9: 25 | X9: 17
B10: 50*30*5 | C10: 5 | D10: 2.5 | E10: 3.78 | F10: 2.96 | G10: 1.73 | H10: 0.741 | I10: 0.352 | J10: 9.36 | K10: 2.86 | L10: 1.57 | M10: 2.51 | N10: 1.11 | O10: 0.816 | P10: 10.3 | Q10: 1.65 | R10: 1.54 | S10: 0.639 | T10: 13 | U10: 8.4 | V10: 30 | X10: 17
B11: 60*30*5 | C11: 5 | D11: 2.5 | E11: 4.28 | F11: 3.36 | G11: 2.17 | H11: 0.684 | I11: 0.257 | J11: 15.6 | K11: 4.07 | L11: 1.91 | M11: 2.63 | N11: 1.14 | O11: 0.784 | P11: 16.5 | Q11: 1.97 | R11: 1.71 | S11: 0.633 | T11: 17 | U11: 8.4 | V11: 35 | X11: 17
B12: 60*40*5 | C12: 6 | D12: 3 | E12: 4.79 | F12: 3.76 | G12: 1.96 | H12: 0.972 | I12: 0.434 | J12: 17.2 | K12: 4.25 | L12: 1.89 | M12: 6.11 | N12: 2.02 | O12: 1.13 | P12: 19.7 | Q12: 2.03 | R12: 3.54 | S12: 0.86 | T12: 17 | U12: 11 | V12: 35 | X12: 22
B13: 60*40*6 | C13: 6 | D13: 3 | E13: 5.68 | F13: 4.46 | G13: 2 | H13: 1.01 | I13: 0.431 | J13: 20.1 | K13: 5.03 | L13: 1.88 | M13: 7.12 | N13: 2.38 | O13: 1.12 | P13: 23.1 | Q13: 2.02 | R13: 4.16 | S13: 0.855 | T13: 17 | U13: 11 | V13: 35 | X13: 22
B14: 65*50*5 | C14: 6 | D14: 3 | E14: 5.54 | F14: 4.35 | G14: 1.99 | H14: 1.25 | I14: 0.577 | J14: 23.2 | K14: 5.14 | L14: 2.05 | M14: 11.9 | N14: 3.19 | O14: 1.47 | P14: 28.8 | Q14: 2.28 | R14: 6.32 | S14: 1.07 | T14: 21 | U14: 13 | V14: 35 | X14: 30
B15: 70*50*6 | C15: 7 | D15: 3.5 | E15: 6.89 | F15: 5.41 | G15: 2.23 | H15: 1.25 | I15: 0.5 | J15: 33.4 | K15: 7.01 | L15: 2.2 | M15: 14.2 | N15: 3.78 | O15: 1.43 | P15: 39.7 | Q15: 2.4 | R15: 7.92 | S15: 1.07 | T15: 21 | U15: 13 | V15: 40 | X15: 30
B16: 75*50*6 | C16: 7 | D16: 3.5 | E16: 7.19 | F16: 5.65 | G16: 2.44 | H16: 1.21 | I16: 0.435 | J16: 40.5 | K16: 8.01 | L16: 2.37 | M16: 14.4 | N16: 3.81 | O16: 1.42 | P16: 46.6 | Q16: 2.55 | R16: 8.36 | S16: 1.08 | T16: 23 | U16: 13 | V16: 35 | X16: 30
B17: 75*50*8 | C17: 7 | D17: 3.5 | E17: 9.41 | F17: 7.39 | G17: 2.52 | H17: 1.29 | I17: 0.43 | J17: 52 | K17: 10.4 | L17: 2.35 | M17: 18.4 | N17: 4.95 | O17: 1.4 | P17: 59.6 | Q17: 2.52 | R17: 10.8 | S17: 1.07 | T17: 23 | U17: 13 | V17: 35 | X17: 30
B18: 80*40*6 | C18: 7 | D18: 3.5 | E18: 6.89 | F18: 5.41 | G18: 2.85 | H18: 0.884 | I18: 0.258 | J18: 44.9 | K18: 8.73 | L18: 2.55 | M18: 7.59 | N18: 2.44 | O18: 1.05 | P18: 47.6 | Q18: 2.63 | R18: 4.93 | S18: 0.845 | T18: 23 | U18: 11 | V18: 45 | X18: 22
B19: 80*40*8 | C19: 7 | D19: 3.5 | E19: 9.01 | F19: 7.07 | G19: 2.94 | H19: 0.963 | I19: 0.253 | J19: 57.6 | K19: 11.4 | L19: 2.53 | M19: 9.61 | N19: 3.16 | O19: 1.03 | P19: 60.9 | Q19: 2.6 | R19: 6.34 | S19: 0.838 | T19: 23 | U19: 11 | V19: 45 | X19: 22
B20: 80*60*7 | C20: 8 | D20: 4 | E20: 9.38 | F20: 7.36 | G20: 2.51 | H20: 1.52 | I20: 0.546 | J20: 59 | K20: 10.7 | L20: 2.51 | M20: 28.4 | N20: 6.34 | O20: 1.74 | P20: 72 | Q20: 2.77 | R20: 15.4 | S20: 1.28 | T20: 23 | U20: 17 | V20: 45 | X20: 35
B21: 100*50*6 | C21: 8 | D21: 4 | E21: 8.71 | F21: 6.84 | G21: 3.51 | H21: 1.05 | I21: 0.262 | J21: 89.9 | K21: 13.8 | L21: 3.21 | M21: 15.4 | N21: 3.89 | O21: 1.33 | P21: 95.4 | Q21: 3.31 | R21: 9.92 | S21: 1.07 | T21: 25 | U21: 13 | V21: 55 | X21: 30
B22: 100*50*8 | C22: 8 | D22: 4 | E22: 11.4 | F22: 8.97 | G22: 3.6 | H22: 1.13 | I22: 0.258 | J22: 116 | K22: 18.2 | L22: 3.19 | M22: 19.7 | N22: 5.08 | O22: 1.31 | P22: 123 | Q22: 3.28 | R22: 12.8 | S22: 1.06 | T22: 25 | U22: 13 | V22: 55 | X22: 30
B23: 100*65*7 | C23: 10 | D23: 5 | E23: 11.2 | F23: 8.77 | G23: 3.23 | H23: 1.51 | I23: 0.415 | J23: 113 | K23: 16.6 | L23: 3.17 | M23: 37.6 | N23: 7.53 | O23: 1.83 | P23: 128 | Q23: 3.39 | R23: 22 | S23: 1.4 | T23: 25 | U23: 21 | V23: 55 | X23: 35
B24: 100*65*8 | C24: 10 | D24: 5 | E24: 12.7 | F24: 9.94 | G24: 3.27 | H24: 1.55 | I24: 0.413 | J24: 127 | K24: 18.9 | L24: 3.16 | M24: 42.2 | N24: 8.54 | O24: 1.83 | P24: 144 | Q24: 3.37 | R24: 24.8 | S24: 1.4 | T24: 25 | V24: 55 | X24: 35
B25: 100*65*10 | C25: 10 | D25: 5 | E25: 15.6 | F25: 12.3 | G25: 3.36 | H25: 1.63 | I25: 0.41 | J25: 154 | K25: 23.2 | L25: 3.14 | M25: 51 | N25: 10.5 | O25: 1.81 | P25: 175 | Q25: 3.35 | R25: 30.1 | S25: 1.39 | T25: 25 | U25: 21 | V25: 55
B26: 100*75*8 | C26: 10 | D26: 5 | E26: 13.5 | F26: 10.6 | G26: 3.1 | H26: 1.87 | I26: 0.547 | J26: 133 | K26: 19.3 | L26: 3.14 | M26: 64.1 | N26: 11.4 | O26: 2.18 | P26: 162 | Q26: 3.47 | R26: 34.6 | S26: 1.6 | T26: 25 | U26: 23 | V26: 55 | X26: 40
B27: 100*75*10 | C27: 10 | D27: 5 | E27: 16.6 | F27: 13 | G27: 3.19 | H27: 1.95 | I27: 0.544 | J27: 162 | K27: 23.8 | L27: 3.12 | M27: 77.6 | N27: 14 | O27: 2.16 | P27: 197 | Q27: 3.45 | R27: 42.2 | S27: 1.59 | T27: 25 | V27: 55 | X27: 40
B28: 100*75*12 | C28: 10 | D28: 5 | E28: 19.7 | F28: 15.4 | G28: 3.27 | H28: 2.03 | I28: 0.54 | J28: 189 | K28: 28 | L28: 3.1 | M28: 90.2 | N28: 16.5 | O28: 2.14 | P28: 230 | Q28: 3.42 | R28: 49.5 | S28: 1.59 | T28: 25
B29: 120*80*8 | C29: 11 | D29: 5.5 | E29: 15.5 | F29: 12.2 | G29: 3.83 | H29: 1.87 | I29: 0.437 | J29: 226 | K29: 27.6 | L29: 3.82 | M29: 80.8 | N29: 13.2 | O29: 2.28 | P29: 260 | Q29: 4.1 | R29: 46.6 | S29: 1.74 | T29: 25 | U29: 23 | V29: 50 | W29: 80 | X29: 45
B30: 120*80*10 | C30: 11 | D30: 5.5 | E30: 19.1 | F30: 15 | G30: 3.92 | H30: 1.95 | I30: 0.435 | J30: 276 | K30: 34.1 | L30: 3.8 | M30: 98.1 | N30: 16.2 | O30: 2.26 | P30: 317 | Q30: 4.07 | R30: 56.8 | S30: 1.72 | T30: 25 | U30: 23 | V30: 50 | W30: 80 | X30: 45
B31: 120*80*12 | C31: 11 | D31: 5.5 | E31: 22.7 | F31: 17.8 | G31: 4 | H31: 2.03 | I31: 0.431 | J31: 32 | K31: 40.4 | L31: 3.77 | M31: 114 | N31: 19.1 | O31: 2.24 | P31: 371 | Q31: 4.04 | R31: 66.7 | S31: 1.71 | T31: 25 | U31: 23 | V31: 50 | W31: 80 | X31: 45
B32: 125*75*8 | C32: 11 | D32: 5.5 | E32: 15.5 | F32: 12.2 | G32: 4.14 | H32: 1.68 | I32: 0.36 | J32: 247 | K32: 29.6 | L32: 4 | M32: 67.6 | N32: 11.6 | O32: 2.09 | P32: 274 | Q32: 4.21 | R32: 40.9 | S32: 1.63 | T32: 25 | V32: 50
B33: 125*75*10 | C33: 11 | D33: 5.5 | E33: 19.1 | F33: 15 | G33: 4.23 | H33: 1.76 | I33: 0.357 | J33: 302 | K33: 36.5 | L33: 3.97 | M33: 82.1 | N33: 14.3 | O33: 2.07 | P33: 334 | Q33: 4.18 | R33: 49.9 | S33: 1.61 | T33: 25 | V33: 50
B34: 125*75*12 | C34: 11 | D34: 5.5 | E34: 27.7 | F34: 17.8 | G34: 4.31 | H34: 1.84 | I34: 0.354 | J34: 354 | K34: 43.2 | L34: 3.95 | M34: 95.5 | N34: 16.9 | O34: 2.05 | P34: 391 | Q34: 4.15 | R34: 58.5 | S34: 1.61 | T34: 25 | V34: 50
B35: 135*65*8 | C35: 11 | D35: 5.5 | E35: 15.5 | F35: 12.2 | G35: 4.78 | H35: 1.34 | I35: 0.245 | J35: 291 | K35: 33.4 | L35: 4.34 | M35: 45.2 | N35: 8.75 | O35: 1.71 | P35: 307 | Q35: 4.45 | R35: 29.4 | S35: 1.38
B36: 135*65*10 | C36: 11 | D36: 5.5 | E36: 19.1 | F36: 15 | G36: 4.88 | H36: 1.42 | I36: 0.243 | J36: 356 | K36: 41.3 | L36: 4.31 | M36: 54.7 | N36: 10.8 | O36: 1.69 | P36: 375 | Q36: 4.43 | R36: 35.9 | S36: 1.37
B37: 150*75*9 | C37: 12 | D37: 6 | E37: 19.6 | F37: 15.4 | G37: 5.26 | H37: 1.57 | I37: 0.261 | J37: 455 | K37: 46.7 | L37: 4.82 | M37: 77.9 | N37: 13.1 | O37: 1.99 | P37: 483 | Q37: 4.96 | R37: 50.2 | S37: 1.6 | T37: 28 | U37: 23 | V37: 60 | W37: 105 | X37: 40
B38: 150*75*10 | C38: 12 | D38: 6 | E38: 21.7 | F38: 17 | G38: 5.31 | H38: 1.61 | I38: 0.261 | J38: 501 | K38: 51.6 | L38: 4.81 | M38: 85.6 | N38: 14.5 | O38: 1.99 | P38: 531 | Q38: 4.95 | R38: 55.1 | S38: 1.6 | T38: 28 | V38: 60 | W38: 105 | X38: 40
B39: 150*75*12 | C39: 12 | D39: 6 | E39: 25.7 | F39: 20.2 | G39: 5.4 | H39: 1.69 | I39: 0.258 | J39: 588 | K39: 61.3 | L39: 4.78 | M39: 99.6 | N39: 17.1 | O39: 1.97 | P39: 623 | Q39: 4.92 | R39: 64.7 | S39: 1.59 | T39: 28
B40: 150*75*15 | C40: 12 | D40: 6 | E40: 31.7 | F40: 24.8 | G40: 5.52 | H40: 1.81 | I40: 0.253 | J40: 713 | K40: 75.2 | L40: 4.75 | M40: 119 | N40: 21 | O40: 1.94 | P40: 753 | Q40: 4.88 | R40: 78.6 | S40: 1.58 | T40: 28
B41: 150*90*10 | C41: 12 | D41: 6 | E41: 23.2 | F41: 18.2 | G41: 5 | H41: 2.04 | I41: 0.36 | J41: 533 | K41: 53.3 | L41: 4.8 | M41: 146 | N41: 21 | O41: 2.51 | P41: 591 | Q41: 5.05 | R41: 88.3 | S41: 1.95 | T41: 28 | U41: 25 | V41: 60 | W41: 105 | X41: 50
B42: 150*90*12 | C42: 12 | D42: 6 | E42: 27.5 | F42: 21.6 | G42: 5.08 | H42: 2.12 | I42: 0.358 | J42: 627 | K42: 63.3 | L42: 4.77 | M42: 171 | N42: 24.8 | O42: 2.49 | P42: 694 | Q42: 5.02 | R42: 104 | S42: 1.94 | T42: 28 | U42: 25 | V42: 60 | W42: 105 | X42: 50
B43: 150*90*15 | C43: 12 | D43: 6 | E43: 33.9 | F43: 26.6 | G43: 5.21 | H43: 2.23 | I43: 0.354 | J43: 761 | K43: 77.7 | L43: 4.74 | M43: 205 | N43: 30.4 | O43: 2.46 | P43: 841 | Q43: 4.98 | R43: 126 | S43: 1.93 | T43: 28 | U43: 25 | V43: 60
B44: 150*100*10 | C44: 12 | D44: 6 | E44: 24.2 | F44: 19 | G44: 4.81 | H44: 2.34 | I44: 0.438 | J44: 553 | K44: 54.2 | L44: 4.79 | M44: 199 | N44: 25.9 | O44: 2.87 | P44: 637 | Q44: 5.13 | R44: 114 | S44: 2.17 | T44: 28 | U44: 25 | V44: 60 | W44: 105 | X44: 55
B45: 150*100*12 | C45: 12 | D45: 6 | E45: 28.7 | F45: 22.5 | G45: 4.89 | H45: 2.42 | I45: 0.436 | J45: 651 | K45: 64.4 | L45: 4.76 | M45: 233 | N45: 30.7 | O45: 2.85 | P45: 749 | Q45: 5.11 | R45: 134 | S45: 2.16 | T45: 28 | U45: 25 | V45: 60 | W45: 105 | X45: 55
B46: 200*100*10 | C46: 15 | D46: 7.5 | E46: 29.2 | F46: 23 | G46: 6.93 | H46: 2.01 | I46: 0.263 | J46: 1220 | K46: 93.2 | L46: 6.46 | M46: 210 | N46: 26.3 | O46: 2.68 | P46: 1290 | Q46: 6.65 | R46: 135 | S46: 2.15 | T46: 28 | U46: 25 | V46: 65 | W46: 150 | X46: 55
B47: 200*100*12 | C47: 15 | D47: 7.5 | E47: 34.8 | F47: 27.3 | G47: 7.03 | H47: 2.1 | I47: 0.262 | J47: 1440 | K47: 111 | L47: 6.43 | M47: 247 | N47: 31.3 | O47: 2.67 | P47: 1530 | Q47: 6.63 | R47: 159 | S47: 2.14 | T47: 28 | U47: 25 | V47: 65 | W47: 150 | X47: 55
B48: 200*100*15 | C48: 15 | D48: 7.5 | E48: 43 | F48: 33.75 | G48: 7.16 | H48: 2.22 | I48: 0.26 | J48: 1758 | K48: 137 | L48: 6.4 | M48: 299 | N48: 38.5 | O48: 2.64 | P48: 1864 | Q48: 6.59 | R48: 193 | S48: 2.12 | T48: 28 | U48: 25 | V48: 65 | W48: 150 | X48: 55
B49: 200*150*12 | C49: 15 | D49: 7.5 | E49: 40.8 | F49: 32 | G49: 6.08 | H49: 3.61 | I49: 0.552 | J49: 1650 | K49: 119 | L49: 6.36 | M49: 803 | N49: 70.5 | O49: 4.44 | P49: 2030 | Q49: 7.04 | R49: 430 | S49: 3.25
B50: 200*150*15 | C50: 15 | D50: 7.5 | E50: 50.5 | F50: 39.6 | G50: 6.21 | H50: 3.73 | I50: 0.551 | J50: 2022 | K50: 147 | L50: 6.33 | M50: 979 | N50: 86.9 | O50: 4.4 | P50: 2476 | Q50: 7 | R50: 526 | S50: 3.23
A52: بال_نامساوي_غيراستاندارد | B52: 40*20*3 | C52: 3.5 | D52: 2 | E52: 1.72 | F52: 1.35 | G52: 1.43 | H52: 0.44 | I52: 0.259 | J52: 2.79 | K52: 1.08 | L52: 1.27 | M52: 0.47 | N52: 0.3 | O52: 0.52 | P52: 2.96 | Q52: 1.31 | R52: 0.3 | S52: 0.42 | T52: 11 | U52: 4.3 | V52: 22 | W52: _ | X52: 12
B53: 45*30*3 | C53: 4.5 | D53: 2 | E53: 2.19 | F53: 1.72 | G53: 1.43 | H53: 0.7 | I53: 0.436 | J53: 4.47 | K53: 1.46 | L53: 1.43 | M53: 1.6 | N53: 0.7 | O53: 0.86 | P53: 5.15 | Q53: 1.53 | R53: 0.93 | S53: 0.65 | T53: 13 | U53: 8.4 | V53: 25 | W53: _ | X53: 17
B54: 45*30*5 | C54: 4.5 | D54: 2 | E54: 3.53 | F54: 2.77 | G54: 1.52 | H54: 0.78 | I54: 0.43 | J54: 6.99 | K54: 2.35 | L54: 1.41 | M54: 2.47 | N54: 1.11 | O54: 0.84 | P54: 8.02 | Q54: 1.51 | R54: 1.44 | S54: 0.64 | T54: 13 | U54: 8.4 | V54: 25 | W54: _ | X54: 17
B55: 50*30*4 | C55: 4.5 | D55: 2 | E55: 3.07 | F55: 2.41 | G55: 1.68 | H55: 0.7 | I55: 0.356 | J55: 7.71 | K55: 2.33 | L55: 1.59 | M55: 2.09 | N55: 0.91 | O55: 0.82 | P55: 8.53 | Q55: 1.67 | R55: 1.27 | S55: 0.64 | T55: 13 | U55: 8.4 | V55: 30 | W55: _ | X55: 17
B56: 50*40*4 | C56: 4 | D56: 2 | E56: 3.46 | F56: 2.71 | G56: 1.52 | H56: 1.03 | I56: 0.629 | J56: 8.54 | K56: 2.47 | L56: 1.57 | M56: 4.86 | N56: 1.64 | O56: 1.19 | P56: 10.9 | Q56: 1.78 | R56: 2.46 | S56: 0.84 | T56: 13 | U56: 11 | V56: 30 | W56: _ | X56: 22
B57: 50*40*5 | C57: 4 | D57: 2 | E57: 4.27 | F57: 3.35 | G57: 1.56 | H57: 1.07 | I57: 0.625 | J57: 10.4 | K57: 3.02 | L57: 1.56 | M57: 5.89 | N57: 2.01 | O57: 1.18 | P57: 13.3 | Q57: 1.76 | R57: 3.02 | S57: 0.84 | T57: 13 | U57: 11 | V57: 30 | W57: _ | X57: 22
B58: 60*40*7 | C58: 6 | D58: 3 | E58: 6.55 | F58: 5.14 | G58: 2.04 | H58: 1.05 | I58: 0.429 | J58: 23 | K58: 5.79 | L58: 1.87 | M58: 8.07 | N58: 2.74 | O58: 1.11 | P58: 26.3 | Q58: 2 | R58: 4.37 | S58: 0.85 | T58: 17 | U58: 11 | V58: 35 | W58: _ | X58: 22
B59: 65*50*7 | C59: 6 | D59: 3 | E59: 7.6 | F59: 5.97 | G59: 2.07 | H59: 1.33 | I59: 0.574 | J59: 31 | K59: 6.99 | L59: 2.02 | M59: 15.8 | N59: 4.31 | O59: 1.44 | P59: 38.4 | Q59: 2.25 | R59: 8.37 | S59: 1.05 | T59: 21 | U59: 13 | V59: 35 | W59: _ | X59: 30
B60: 65*50*9 | C60: 6 | D60: 3 | E60: 9.58 | F60: 7.52 | G60: 2.15 | H60: 1.41 | I60: 0.567 | J60: 38.2 | K60: 8.77 | L60: 2 | M60: 19.4 | N60: 5.39 | O60: 1.42 | P60: 47 | Q60: 2.22 | R60: 10.5 | S60: 1.05 | T60: 21 | U60: 13 | V60: 35 | W60: _ | X60: 30
B61: 75*50*9 | C61: 6.5 | D61: 3.5 | E61: 10.5 | F61: 8.23 | G61: 2.56 | H61: 1.32 | I61: 0.427 | J61: 57.4 | K61: 11.6 | L61: 2.34 | M61: 20.2 | N61: 5.49 | O61: 1.39 | P61: 65.7 | Q61: 2.5 | R61: 11.9 | S61: 1.07 | T61: 23 | U61: 13 | V61: 40 | W61: _ | X61: 30
B62: 75*55*5 | C62: 7 | D62: 3.5 | E62: 6.3 | F62: 4.95 | G62: 2.31 | H62: 1.33 | I62: 0.53 | J62: 35.5 | K62: 6.84 | L62: 2.37 | M62: 16.2 | N62: 3.89 | O62: 1.6 | P62: 43.1 | Q62: 2.61 | R62: 8.68 | S62: 1.17 | T62: 23 | U62: 17 | V62: 40 | W62: _ | X62: 30
B63: 75*55*7 | C63: 7 | D63: 3.5 | E63: 8.66 | F63: 6.8 | G63: 2.4 | H63: 1.41 | I63: 0.525 | J63: 47.9 | K63: 9.39 | L63: 2.35 | M63: 21.8 | N63: 5.32 | O63: 1.59 | P63: 57.9 | Q63: 2.59 | R63: 11.8 | S63: 1.17 | T63: 23 | U63: 17 | V63: 40 | W63: _ | X63: 30
B64: 75*55*9 | C64: 7 | D64: 3.5 | E64: 10.9 | F64: 8.59 | G64: 2.47 | H64: 1.48 | I64: 0.518 | J64: 59.4 | K64: 11.8 | L64: 2.33 | M64: 26.8 | N64: 6.66 | O64: 1.57 | P64: 71.3 | Q64: 2.55 | R64: 14.8 | S64: 1.16 | T64: 23 | U64: 17 | V64: 40 | W64: _ | X64: 30
B65: 80*65*6 | C65: 8 | D65: 4 | E65: 8.41 | F65: 6.6 | G65: 2.39 | H65: 1.65 | I65: 0.649 | J65: 52.8 | K65: 9.41 | L65: 2.51 | M65: 31.2 | N65: 6.44 | O65: 1.93 | P65: 68.5 | Q65: 2.85 | R65: 15.6 | S65: 1.36 | T65: 23 | U65: 21 | V65: 45 | W65: _ | X65: 35
B66: 80*65*8 | C66: 8 | D66: 4 | E66: 11 | F66: 8.66 | G66: 2.47 | H66: 1.73 | I66: 0.645 | J66: 68.1 | K66: 12.3 | L66: 2.49 | M66: 40.1 | N66: 8.41 | O66: 1.91 | P66: 88 | Q66: 2.82 | R66: 20.3 | S66: 1.36 | T66: 23 | U66: 21 | V66: 45 | W66: _ | X66: 35
B67: 80*65*10 | C67: 8 | D67: 4 | E67: 13.6 | F67: 10.7 | G67: 2.55 | H67: 1.81 | I67: 0.64 | J67: 82.2 | K67: 15.1 | L67: 2.46 | M67: 48.3 | N67: 10.3 | O67: 1.89 | P67: 106 | Q67: 2.79 | R67: 24.8 | S67: 1.35 | T67: 23 | U67: 21 | V67: 45 | W67: _ | X67: 35
B68: 90*60*6 | C68: 7 | D68: 3.5 | E68: 8.69 | F68: 6.82 | G68: 2.89 | H68: 1.41 | I68: 0.442 | J68: 71.7 | K68: 11.7 | L68: 2.87 | M68: 25.8 | N68: 5.61 | O68: 1.72 | P68: 82.8 | Q68: 3.09 | R68: 14.6 | S68: 1.3 | T68: 25 | U68: 17 | V68: 50 | W68: _ | X68: 35
B69: 90*60*8 | C69: 7 | D69: 3.5 | E69: 11.4 | F69: 8.96 | G69: 2.97 | H69: 1.49 | I69: 0.437 | J69: 92.5 | K69: 15.4 | L69: 2.85 | M69: 33 | N69: 7.31 | O69: 1.7 | P69: 107 | Q69: 3.06 | R69: 19 | S69: 1.29 | T69: 25 | U69: 17 | V69: 50 | W69: _ | X69: 35
B70: 100*50*10 | C70: 9 | D70: 4.5 | E70: 14.1 | F70: 11.1 | G70: 3.67 | H70: 1.2 | I70: 0.252 | J70: 141 | K70: 22.2 | L70: 3.16 | M70: 23.4 | N70: 6.17 | O70: 1.29 | P70: 149 | Q70: 3.25 | R70: 15.5 | S70: 1.04 | T70: 25 | U70: 13 | V70: 55 | W70: _ | X70: 30
B71: 100*65*9 | C71: 10 | D71: 5 | E71: 14.2 | F71: 11.1 | G71: 3.32 | H71: 1.59 | I71: 0.415 | J71: 141 | K71: 21 | L71: 3.15 | M71: 46.7 | N71: 9.52 | O71: 1.82 | P71: 160 | Q71: 3.36 | R71: 27.2 | S71: 1.39 | T71: 25 | U71: 21 | V71: 55 | W71: _ | X71: 35
B72: 100*65*11 | C72: 10 | D72: 5 | E72: 17.1 | F72: 13.4 | G72: 3.4 | H72: 1.67 | I72: 0.41 | J72: 167 | K72: 25.3 | L72: 3.13 | M72: 55.1 | N72: 11.4 | O72: 1.8 | P72: 190 | Q72: 3.34 | R72: 32.6 | S72: 1.38 | T72: 25 | U72: 21 | V72: 55 | W72: _ | X72: 35
B73: 100*75*7 | C73: 10 | D73: 5 | E73: 11.9 | F73: 9.32 | G73: 3.06 | H73: 1.83 | I73: 0.553 | J73: 118 | K73: 17 | L73: 3.15 | M73: 56.9 | N73: 10 | O73: 2.19 | P73: 145 | Q73: 3.49 | R73: 30.1 | S73: 1.59 | T73: 25 | U73: 23 | V73: 55 | W73: _ | X73: 40
B74: 100*75*9 | C74: 10 | D74: 5 | E74: 15.1 | F74: 11.8 | G74: 3.15 | H74: 1.91 | I74: 0.549 | J74: 148 | K74: 21.5 | L74: 3.13 | M74: 71 | N74: 12.7 | O74: 2.17 | P74: 181 | Q74: 3.47 | R74: 37.8 | S74: 1.59 | T74: 25 | U74: 23 | V74: 55 | W74: _ | X74: 40
B75: 100*75*11 | C75: 10 | D75: 5 | E75: 18.2 | F75: 14.3 | G75: 3.23 | H75: 1.99 | I75: 0.545 | J75: 176 | K75: 25.9 | L75: 3.11 | M75: 84 | N75: 15.3 | O75: 2.15 | P75: 214 | Q75: 3.44 | R75: 45.4 | S75: 1.58 | T75: 25 | U75: 23 | V75: 55 | W75: _ | X75: 40
B76: 120*80*14 | C76: 11 | D76: 5.5 | E76: 26.2 | F76: 20.5 | G76: 4.08 | H76: 2.1 | I76: 0.429 | J76: 368 | K76: 46.4 | L76: 3.75 | M76: 130 | N76: 22 | O76: 2.23 | P76: 421 | Q76: 4.01 | R76: 75.8 | S76: 1.7 | T76: 25 | U76: 23 | V76: 50 | W76: 80 | X76: 45
B77: 130*65*8 | C77: 11 | D77: 5.5 | E77: 15.1 | F77: 11.9 | G77: 4.56 | H77: 1.37 | I77: 0.263 | J77: 263 | K77: 31.1 | L77: 4.17 | M77: 44.8 | N77: 8.72 | O77: 1.72 | P77: 280 | Q77: 4.31 | R77: 28.6 | S77: 1.38 | T77: 25 | U77: 21 | V77: 50 | W77: 90 | X77: 35
B78: 130*65*10 | C78: 11 | D78: 5.5 | E78: 18.6 | F78: 14.6 | G78: 4.65 | H78: 1.45 | I78: 0.259 | J78: 321 | K78: 38.4 | L78: 4.15 | M78: 54.2 | N78: 10.7 | O78: 1.71 | P78: 340 | Q78: 4.27 | R78: 35 | S78: 1.37 | T78: 25 | U78: 21 | V78: 50 | W78: 90 | X78: 35
B79: 130*65*12 | C79: 11 | D79: 5.5 | E79: 22.1 | F79: 17.3 | G79: 4.74 | H79: 1.53 | I79: 0.255 | J79: 376 | K79: 45.5 | L79: 4.12 | M79: 63 | N79: 12.7 | O79: 1.69 | P79: 397 | Q79: 4.24 | R79: 41.2 | S79: 1.37 | T79: 25 | U79: 21 | V79: 50 | W79: 90 | X79: 35
B80: 130*90*12 | C80: 12 | D80: 6 | E80: 25.1 | F80: 19.7 | G80: 4.24 | H80: 2.26 | I80: 0.468 | J80: 420 | K80: 48 | L80: 4.09 | M80: 165 | N80: 24.4 | O80: 2.56 | P80: 492 | Q80: 4.43 | R80: 92.6 | S80: 1.92 | T80: 25 | U80: 25 | V80: 50 | W80: 90 | X80: 50
B81: 150*75*11 | C81: 10.5 | D81: 5.5 | E81: 23.6 | F81: 18.6 | G81: 5.37 | H81: 1.65 | I81: 0.261 | J81: 545 | K81: 56.6 | L81: 4.8 | M81: 93 | N81: 15.9 | O81: 1.98 | P81: 578 | Q81: 4.95 | R81: 59.8 | S81: 1.59 | T81: 28 | U81: 23 | V81: 60 | W81: 105 | X81: 40
B82: 150*90*11 | C82: 12 | D82: 6 | E82: 25.3 | F82: 19.9 | G82: 5.04 | H82: 2.08 | I82: 0.36 | J82: 581 | K82: 58.3 | L82: 4.79 | M82: 159 | N82: 22.9 | O82: 2.5 | P82: 644 | Q82: 5.04 | R82: 95.7 | S82: 1.94 | T82: 28 | U82: 25 | V82: 60 | W82: 105 | X82: 50
B83: 150*100*14 | C83: 13 | D83: 6.5 | E83: 33.2 | F83: 26.1 | G83: 4.97 | H83: 2.5 | I83: 0.435 | J83: 744 | K83: 74.1 | L83: 4.73 | M83: 264 | N83: 35.2 | O83: 2.82 | P83: 856 | Q83: 5.07 | R83: 152 | S83: 2.14 | T83: 28 | U83: 25 | V83: 60 | W83: 105 | X83: 55
B84: 160*80*10 | C84: 13 | D84: 6.5 | E84: 23.2 | F84: 18.2 | G84: 5.63 | H84: 1.69 | I84: 0.262 | J84: 611 | K84: 58.9 | L84: 5.14 | M84: 104 | N84: 16.5 | O84: 2.12 | P84: 649 | Q84: 5.29 | R84: 67 | S84: 1.7 | T84: 28 | U84: 23 | V84: 60 | W84: 115 | X84: 45
B85: 160*80*12 | C85: 13 | D85: 6.5 | E85: 27.5 | F85: 21.6 | G85: 5.72 | H85: 1.77 | I85: 0.259 | J85: 720 | K85: 70 | L85: 5.11 | M85: 122 | N85: 19.6 | O85: 2.1 | P85: 763 | Q85: 5.26 | R85: 78.9 | S85: 1.69 | T85: 28 | U85: 23 | V85: 60 | W85: 115 | X85: 45
B86: 180*90*10 | C86: 14 | D86: 7 | E86: 26.2 | F86: 20.6 | G86: 6.28 | H86: 1.85 | I86: 0.262 | J86: 880 | K86: 75.1 | L86: 5.8 | M86: 151 | N86: 21.2 | O86: 2.4 | P86: 934 | Q86: 5.97 | R86: 97.4 | S86: 1.93 | T86: 28 | U86: 25 | V86: 60 | W86: 135 | X86: 50
B87: 180*90*12 | C87: 14 | D87: 7 | E87: 31.2 | F87: 24.5 | G87: 6.37 | H87: 1.93 | I87: 0.261 | J87: 1040 | K87: 89.3 | L87: 5.77 | M87: 177 | N87: 25.1 | O87: 2.38 | P87: 1100 | Q87: 5.94 | R87: 114 | S87: 1.92 | T87: 28 | U87: 25 | V87: 60 | W87: 135 | X87: 50
B88: 200*100*14 | C88: 15 | D88: 7.5 | E88: 40.3 | F88: 31.6 | G88: 7.12 | H88: 2.18 | I88: 0.262 | J88: 1650 | K88: 128 | L88: 6.41 | M88: 282 | N88: 36.1 | O88: 2.65 | P88: 1760 | Q88: 6.6 | R88: 181 | S88: 2.12 | T88: 28 | U88: 25 | V88: 65 | W88: 150 | X88: 55
B89: 200*100*16 | C89: 15 | D89: 7.5 | E89: 45.7 | F89: 35.9 | G89: 7.2 | H89: 2.36 | I89: 0.259 | J89: 1860 | K89: 145 | L89: 6.38 | M89: 316 | N89: 40.8 | O89: 2.63 | P89: 1970 | Q89: 6.57 | R89: 204 | S89: 2.11 | T89: 28 | U89: 25 | V89: 65 | W89: 150 | X89: 55
B90: 250*90*10 | C90: 15 | D90: 7.5 | E90: 33.2 | F90: 26.1 | G90: 9.45 | H90: 1.56 | I90: 0.154 | J90: 2170 | K90: 140 | L90: 8.08 | M90: 161 | N90: 21.7 | O90: 2.2 | P90: 2220 | Q90: 8.17 | R90: 112 | S90: 1.84 | T90: 28 | U90: 25 | V90: 65 | W90: 200 | X90: 50
B91: 250*90*12 | C91: 15 | D91: 7.5 | E91: 39.6 | F91: 31.1 | G91: 9.55 | H91: 1.65 | I91: 0.153 | J91: 2570 | K91: 166 | L91: 8.05 | M91: 189 | N91: 25.8 | O91: 2.19 | P91: 2630 | Q91: 8.14 | R91: 132 | S91: 1.83 | T91: 28 | U91: 25 | V91: 65 | W91: 200 | X91: 50
B92: 250*90*14 | C92: 15 | D92: 7.5 | E92: 45.9 | F92: 36 | G92: 9.65 | H92: 1.73 | I92: 0.152 | J92: 2960 | K92: 192 | L92: 8.03 | M92: 216 | N92: 29.7 | O92: 2.17 | P92: 3020 | Q92: 8.11 | R92: 152 | S92: 1.82 | T92: 28 | U92: 25 | V92: 65 | W92: 200 | X92: 50
B93: 250*90*16 | C93: 15 | D93: 7.5 | E93: 52.1 | F93: 40.9 | G93: 9.74 | H93: 1.81 | I93: 0.15 | J93: 3330 | K93: 218 | L93: 8 | M93: 342 | N93: 33.6 | O93: 2.15 | P93: 3400 | Q93: 8.08 | R93: 171 | S93: 1.81 | T93: 28 | U93: 25 | V93: 65 | W93: 200 | X93: 50

Sheet نبشي_بال_مساوي
C1: اندازه به ميليمتر | J1: براي محور خمش
B2: a*s | C2: r₁ | D2: r₂ | E2: A | F2: G | J2: y-y=z-z | K2: y-y=z-z | L2: y-y=z-z | M2: ƞ-ƞ | N2: ƞ-ƞ | O2: ζ-ζ | P2: ζ-ζ | Q2: ζ-ζ | R2: d₁ | S2: w₁ | T2: w₂
B3: علامت اختصاري | G3: e | H3: w | I3: v₁ | J3: Iу=Iz | K3: Wy=Wz | L3: iy=iz | M3: Iƞ | N3: iƞ | O3: Iζ | P3: Wζ | Q3: iζ
C4: mm | D4: mm | E4: cm² | F4: kg/m | G4: cm | H4: cm | I4: cm | J4: cm⁴ | K4: cm³ | L4: cm | M4: cm⁴ | N4: cm | O4: cm⁴ | P4: cm³ | Q4: cm | R4: mm | S4: mm | T4: mm
A5: بال_مساوي | B5: 20*3 | C5: 3.5 | D5: 1.75 | E5: 1.12 | F5: 0.882 | G5: 0.598 | H5: 1.41 | I5: 0.846 | J5: 0.392 | K5: 0.279 | L5: 0.59 | M5: 0.618 | N5: 0.742 | O5: 0.165 | P5: 0.195 | Q5: 0.383 | R5: 4.3 | S5: 12
B6: 25*3 | C6: 3.5 | D6: 1.75 | E6: 1.42 | F6: 1.12 | G6: 0.723 | H6: 1.77 | I6: 1.02 | J6: 0.803 | K6: 0.452 | L6: 0.751 | M6: 1.27 | N6: 0.945 | O6: 0.334 | P6: 0.326 | Q6: 0.484 | R6: 6.4 | S6: 15
B7: 25*4 | C7: 3.5 | D7: 1.75 | E7: 1.85 | F7: 1.45 | G7: 0.762 | H7: 1.77 | I7: 1.08 | J7: 1.02 | K7: 0.586 | L7: 0.741 | M7: 1.61 | N7: 0.931 | O7: 0.43 | P7: 0.339 | Q7: 0.482 | R7: 6.4 | S7: 15
B8: 30*3 | C8: 5 | D8: 2.5 | E8: 1.74 | F8: 1.36 | G8: 0.835 | H8: 2.12 | I8: 1.18 | J8: 1.4 | K8: 0.649 | L8: 0.899 | M8: 2.22 | N8: 1.13 | O8: 0.585 | P8: 0.496 | Q8: 0.581 | R8: 8.4 | S8: 17
B9: 30*4 | C9: 5 | D9: 2.5 | E9: 2.27 | F9: 1.78 | G9: 0.878 | H9: 2.12 | I9: 1.24 | J9: 1.8 | K9: 0.85 | L9: 0.892 | M9: 2.85 | N9: 1.12 | O9: 0.754 | P9: 0.607 | Q9: 0.577 | R9: 8.4 | S9: 17
B10: 35*4 | C10: 5 | D10: 2.5 | E10: 2.67 | F10: 2.09 | G10: 1 | H10: 2.47 | I10: 1.42 | J10: 2.95 | K10: 1.18 | L10: 1.05 | M10: 4.68 | N10: 1.32 | O10: 1.23 | P10: 0.865 | Q10: 0.678 | R10: 11 | S10: 18
B11: 40*4 | C11: 6 | D11: 3 | E11: 3.08 | F11: 2.42 | G11: 1.12 | H11: 2.83 | I11: 1.58 | J11: 4.47 | K11: 1.55 | L11: 1.21 | M11: 7.09 | N11: 1.52 | O11: 1.86 | P11: 1.17 | Q11: 0.777 | R11: 11 | S11: 22
B12: 40*5 | C12: 6 | D12: 3 | E12: 3.79 | F12: 2.97 | G12: 1.16 | H12: 2.83 | I12: 1.64 | J12: 5.43 | K12: 1.91 | L12: 1.2 | M12: 8.6 | N12: 1.51 | O12: 2.26 | P12: 1.38 | Q12: 0.773 | R12: 11 | S12: 22
B13: 45*4.5 | C13: 7 | D13: 3.5 | E13: 3.9 | F13: 3.06 | G13: 1.25 | H13: 3.18 | I13: 1.78 | J13: 7.14 | K13: 2.2 | L13: 1.35 | M13: 11.4 | N13: 1.71 | O13: 2.94 | P13: 1.65 | Q13: 0.87 | R13: 13 | S13: 25
B14: 50*4 | C14: 7 | D14: 3.5 | E14: 3.89 | F14: 3.06 | G14: 1.36 | H14: 3.54 | I14: 1.92 | J14: 8.97 | K14: 2.46 | L14: 1.52 | M14: 14.2 | N14: 1.91 | O14: 3.73 | P14: 1.94 | Q14: 0.979 | R14: 13 | S14: 30
B15: 50*5 | C15: 7 | D15: 3.5 | E15: 4.8 | F15: 3.77 | G15: 1.4 | H15: 3.54 | I15: 1.99 | J15: 11 | K15: 3.05 | L15: 1.51 | M15: 17.4 | N15: 1.9 | O15: 4.55 | P15: 2.29 | Q15: 0.973 | R15: 13 | S15: 30
B16: 50*6 | C16: 7 | D16: 3.5 | E16: 5.69 | F16: 4.47 | G16: 1.45 | H16: 3.54 | I16: 2.04 | J16: 12.8 | K16: 3.61 | L16: 1.5 | M16: 20.3 | N16: 1.89 | O16: 5.34 | P16: 2.61 | Q16: 0.968 | R16: 13 | S16: 30
B17: 60*5 | C17: 8 | D17: 4 | E17: 5.82 | F17: 4.57 | G17: 1.64 | H17: 4.24 | I17: 2.32 | J17: 19.4 | K17: 4.45 | L17: 1.82 | M17: 30.7 | N17: 2.3 | O17: 8.03 | P17: 3.46 | Q17: 1.17 | R17: 17 | S17: 35
B18: 60*6 | C18: 8 | D18: 4 | E18: 6.91 | F18: 5.42 | G18: 1.69 | H18: 4.24 | I18: 2.39 | J18: 22.8 | K18: 5.29 | L18: 1.82 | M18: 36.1 | N18: 2.29 | O18: 9.44 | P18: 3.96 | Q18: 1.17 | R18: 17 | S18: 35
B19: 60*8 | C19: 8 | D19: 4 | E19: 9.03 | F19: 7.09 | G19: 1.77 | H19: 4.24 | I19: 2.5 | J19: 29.2 | K19: 6.89 | L19: 1.8 | M19: 46.1 | N19: 2.26 | O19: 12.2 | P19: 4.86 | Q19: 1.16 | R19: 17 | S19: 35
B20: 65*7 | C20: 9 | D20: 4.5 | E20: 8.7 | F20: 6.83 | G20: 1.85 | H20: 4.6 | I20: 2.62 | J20: 33.4 | K20: 7.18 | L20: 1.96 | M20: 53 | N20: 2.47 | O20: 13.8 | P20: 5.27 | Q20: 1.26 | R20: 21 | S20: 35
B21: 70*6 | C21: 9 | D21: 4.5 | E21: 8.13 | F21: 6.38 | G21: 1.93 | H21: 4.95 | I21: 2.73 | J21: 36.9 | K21: 7.27 | L21: 2.13 | M21: 58.5 | N21: 2.68 | O21: 15.3 | P21: 5.6 | Q21: 1.37 | R21: 21 | S21: 40
B22: 70*7 | C22: 9 | D22: 4.5 | E22: 9.4 | F22: 7.38 | G22: 1.97 | H22: 4.95 | I22: 2.79 | J22: 42.3 | K22: 8.41 | L22: 2.12 | M22: 67.1 | N22: 2.67 | O22: 17.5 | P22: 6.28 | Q22: 1.36 | R22: 21 | S22: 40
B23: 75*6 | C23: 9 | D23: 4.5 | E23: 8.73 | F23: 6.85 | G23: 2.05 | H23: 5.3 | I23: 2.9 | J23: 45.8 | K23: 8.41 | L23: 2.29 | M23: 72.7 | N23: 2.89 | O23: 18.9 | P23: 6.53 | Q23: 1.47 | R23: 23 | S23: 40
B24: 75*8 | C24: 9 | D24: 4.5 | E24: 11.4 | F24: 8.99 | G24: 2.14 | H24: 5.3 | I24: 3.02 | J24: 59.1 | K24: 11 | L24: 2.27 | M24: 93.8 | N24: 2.86 | O24: 24.5 | P24: 8.09 | Q24: 1.46 | R24: 23 | S24: 40
B25: 80*8 | C25: 10 | D25: 5 | E25: 12.3 | F25: 9.63 | G25: 2.26 | H25: 5.66 | I25: 3.19 | J25: 72.2 | K25: 12.6 | L25: 2.43 | M25: 115 | N25: 3.06 | O25: 29.9 | P25: 9.37 | Q25: 1.56 | R25: 23 | S25: 45
B26: 80*10 | C26: 10 | D26: 5 | E26: 15.1 | F26: 11.9 | G26: 2.34 | H26: 5.66 | I26: 3.3 | J26: 87.5 | K26: 15.4 | L26: 2.41 | M26: 139 | N26: 3.03 | O26: 36.4 | P26: 11 | Q26: 1.55 | R26: 23 | S26: 45
B27: 90*7 | C27: 11 | D27: 5.5 | E27: 12.2 | F27: 9.61 | G27: 2.45 | H27: 6.36 | I27: 3.47 | J27: 92.6 | K27: 14.1 | L27: 2.75 | M27: 147 | N27: 3.46 | O27: 38.3 | P27: 11 | Q27: 1.77 | R27: 25 | S27: 50
B28: 90*8 | C28: 11 | D28: 5.5 | E28: 13.9 | F28: 10.9 | G28: 2.5 | H28: 6.36 | I28: 3.53 | J28: 104 | K28: 16.1 | L28: 2.74 | M28: 166 | N28: 3.45 | O28: 43.1 | P28: 12.2 | Q28: 1.76 | R28: 25 | S28: 50
B29: 90*9 | C29: 11 | D29: 5.5 | E29: 15.5 | F29: 12.2 | G29: 2.54 | H29: 6.36 | I29: 3.59 | J29: 116 | K29: 17.9 | L29: 2.73 | M29: 184 | N29: 3.44 | O29: 47.9 | P29: 13.3 | Q29: 1.76 | R29: 25 | S29: 50
B30: 90*10 | C30: 11 | D30: 5.5 | E30: 17.1 | F30: 13.4 | G30: 2.58 | H30: 6.36 | I30: 3.65 | J30: 127 | K30: 19.8 | L30: 2.72 | M30: 201 | N30: 3.42 | O30: 52.6 | P30: 14.4 | Q30: 1.75 | R30: 25 | S30: 50
B31: 100*8 | C31: 12 | D31: 6 | E31: 15.5 | F31: 12.2 | G31: 2.74 | H31: 7.07 | I31: 3.87 | J31: 145 | K31: 19.9 | L31: 3.06 | M31: 230 | N31: 3.85 | O31: 59.9 | P31: 15.5 | Q31: 1.96 | R31: 25 | S31: 55
B32: 100*10 | C32: 12 | D32: 6 | E32: 19.2 | F32: 15 | G32: 2.82 | H32: 7.07 | I32: 3.99 | J32: 177 | K32: 24.6 | L32: 3.04 | M32: 280 | N32: 3.83 | O32: 73 | P32: 18.3 | Q32: 1.95 | R32: 25 | S32: 55
B33: 100*12 | C33: 12 | D33: 6 | E33: 22.7 | F33: 17.8 | G33: 2.9 | H33: 7.07 | I33: 4.11 | J33: 207 | K33: 29.1 | L33: 3.02 | M33: 328 | N33: 3.8 | O33: 85.7 | P33: 20.9 | Q33: 1.94 | R33: 25 | S33: 55
B34: 120*10 | C34: 13 | D34: 6.5 | E34: 23.2 | F34: 18.2 | G34: 3.31 | H34: 8.49 | I34: 4.69 | J34: 313 | K34: 36 | L34: 3.67 | M34: 497 | N34: 4.68 | O34: 129 | P34: 27.5 | Q34: 2.36 | R34: 25 | S34: 50
B35: 120*12 | C35: 13 | D35: 6.5 | E35: 27.5 | F35: 21.6 | G35: 3.4 | H35: 8.49 | I35: 4.8 | J35: 368 | K35: 42.7 | L35: 3.65 | M35: 584 | N35: 4.6 | O35: 152 | P35: 31.6 | Q35: 2.35 | R35: 25 | S35: 50
B36: 130*12 | C36: 14 | D36: 7 | E36: 30 | F36: 23.6 | G36: 3.64 | H36: 9.19 | I36: 5.15 | J36: 472 | K36: 50.4 | L36: 3.97 | M36: 750 | N36: 5 | O36: 194 | P36: 37.7 | Q36: 2.54 | R36: 25 | S36: 50
B37: 150*10 | C37: 16 | D37: 8 | E37: 29.3 | F37: 23 | G37: 4.03 | H37: 10.6 | I37: 5.71 | J37: 624 | K37: 56.9 | L37: 4.62 | M37: 990 | N37: 5.82 | O37: 258 | P37: 45.1 | Q37: 2.97 | R37: 28 | S37: 60
B38: 150*12 | C38: 16 | D38: 8 | E38: 34.8 | F38: 27.3 | G38: 4.12 | H38: 10.6 | I38: 5.83 | J38: 737 | K38: 67.7 | L38: 4.6 | M38: 1170 | N38: 5.8 | O38: 303 | P38: 52 | Q38: 2.95 | R38: 28 | S38: 60
B39: 150*15 | C39: 16 | D39: 8 | E39: 43 | F39: 33.8 | G39: 4.25 | H39: 10.6 | I39: 6.01 | J39: 898 | K39: 83.5 | L39: 4.57 | M39: 1430 | N39: 5.76 | O39: 370 | P39: 61.6 | Q39: 2.93 | R39: 28 | S39: 60
B40: 160*15 | C40: 17 | D40: 8.5 | E40: 46.1 | F40: 36.2 | G40: 4.49 | H40: 11.3 | I40: 6.35 | J40: 1100 | K40: 95.6 | L40: 4.88 | M40: 1750 | N40: 6.15 | O40: 453 | P40: 71.3 | Q40: 3.14 | R40: 28 | S40: 60
B41: 180*16 | C41: 18 | D41: 9 | E41: 55.4 | F41: 43.5 | G41: 5.02 | H41: 12.7 | I41: 7.11 | J41: 1680 | K41: 130 | L41: 5.51 | M41: 2690 | N41: 6.96 | O41: 679 | P41: 95.5 | Q41: 3.5 | R41: 28 | S41: 60
B42: 180*18 | C42: 18 | D42: 9 | E42: 61.9 | F42: 48.6 | G42: 5.1 | H42: 12.7 | I42: 7.22 | J42: 1870 | K42: 145 | L42: 5.49 | M42: 2960 | N42: 6.92 | O42: 768 | P42: 106 | Q42: 3.52 | R42: 28 | S42: 60
B43: 200*16 | C43: 18 | D43: 9 | E43: 61.8 | F43: 48.5 | G43: 5.52 | H43: 14.1 | I43: 7.81 | J43: 2340 | K43: 162 | L43: 6.16 | M43: 3720 | N43: 7.76 | O43: 960 | P43: 123 | Q43: 3.94 | R43: 28 | S43: 65
B44: 200*18 | C44: 18 | D44: 9 | E44: 69.1 | F44: 54.3 | G44: 5.6 | H44: 14.1 | I44: 7.92 | J44: 2600 | K44: 181 | L44: 6.13 | M44: 4150 | N44: 7.75 | O44: 1050 | P44: 133 | Q44: 3.9 | R44: 28 | S44: 65
B45: 200*20 | C45: 18 | D45: 9 | E45: 76.3 | F45: 59.9 | G45: 5.68 | H45: 14.1 | I45: 8.04 | J45: 2850 | K45: 199 | L45: 6.11 | M45: 4530 | N45: 7.7 | O45: 1170 | P45: 146 | Q45: 3.92 | R45: 28 | S45: 65
B46: 200*24 | C46: 18 | D46: 9 | E46: 90.6 | F46: 71.1 | G46: 5.84 | H46: 14.1 | I46: 8.26 | J46: 3300 | K46: 235 | L46: 6.06 | M46: 5280 | N46: 7.64 | O46: 1380 | P46: 167 | Q46: 3.9 | R46: 28 | S46: 65
B47: 250*28 | C47: 18 | D47: 9 | E47: 133 | F47: 104 | G47: 7.24 | H47: 17.7 | I47: 10.2 | J47: 7700 | K47: 433 | L47: 7.62 | M47: 12200 | N47: 9.61 | O47: 3170 | P47: 309 | Q47: 4.89 | R47: 28 | S47: 75
B48: 250*35 | C48: 18 | D48: 9 | E48: 163 | F48: 128 | G48: 7.5 | H48: 17.7 | I48: 10.6 | J48: 9260 | K48: 529 | L48: 7.54 | M48: 14700 | N48: 9.48 | O48: 3860 | P48: 364 | Q48: 4.87 | R48: 28 | S48: 75
A50: بال_مساوي_غيراستاندارد | B50: 30*5 | C50: 5 | D50: 2.5 | E50: 2.78 | F50: 2.18 | G50: 0.92 | H50: 2.12 | I50: 1.3 | J50: 2.16 | K50: 1.04 | L50: 0.88 | M50: 3.41 | N50: 1.11 | O50: 0.91 | P50: 0.7 | Q50: 0.57 | R50: 8.4 | S50: 17 | T50: _
B51: 35*5 | C51: 5 | D51: 2.5 | E51: 3.28 | F51: 2.57 | G51: 1.04 | H51: 2.47 | I51: 1.47 | J51: 3.56 | K51: 1.45 | L51: 1.04 | M51: 5.63 | N51: 1.31 | O51: 1.49 | P51: 1.01 | Q51: 0.67 | R51: 11 | S51: 18 | T51: _
B52: 45*4 | C52: 7 | D52: 3.5 | E52: 3.49 | F52: 2.74 | G52: 1.23 | H52: 3.18 | I52: 1.75 | J52: 6.43 | K52: 1.97 | L52: 1.36 | M52: 10.2 | N52: 1.71 | O52: 2.68 | P52: 1.53 | Q52: 0.88 | R52: 13 | S52: 25 | T52: _
B53: 45*5 | C53: 7 | D53: 3.5 | E53: 4.3 | F53: 3.38 | G53: 1.28 | H53: 3.18 | I53: 1.81 | J53: 7.83 | K53: 2.43 | L53: 1.35 | M53: 12.4 | N53: 1.7 | O53: 3.25 | P53: 1.8 | Q53: 0.87 | R53: 13 | S53: 25 | T53: _
B54: 50*7 | C54: 7 | D54: 3.5 | E54: 6.56 | F54: 5.15 | G54: 1.49 | H54: 3.54 | I54: 2.11 | J54: 14.6 | K54: 4.15 | L54: 1.49 | M54: 23.1 | N54: 1.88 | O54: 6.02 | P54: 2.85 | Q54: 0.96 | R54: 13 | S54: 30 | T54: _
B55: 55*6 | C55: 8 | D55: 4 | E55: 6.31 | F55: 4.95 | G55: 1.56 | H55: 3.89 | I55: 2.21 | J55: 17.3 | K55: 4.4 | L55: 1.66 | M55: 27.4 | N55: 2.08 | O55: 7.24 | P55: 3.28 | Q55: 1.07 | R55: 17 | S55: 30 | T55: _
B56: 70*9 | C56: 9 | D56: 4.5 | E56: 11.9 | F56: 9.34 | G56: 2.05 | H56: 4.95 | I56: 2.9 | J56: 52.6 | K56: 10.6 | L56: 2.1 | M56: 83.1 | N56: 2.64 | O56: 22 | P56: 7.59 | Q56: 1.36 | R56: 21 | S56: 40 | T56: _
B57: 75*7 | C57: 10 | D57: 5 | E57: 10.1 | F57: 7.94 | G57: 2.09 | H57: 5.3 | I57: 2.95 | J57: 52.4 | K57: 9.67 | L57: 2.28 | M57: 83.6 | N57: 2.88 | O57: 21.1 | P57: 7.15 | Q57: 1.45 | R57: 23 | S57: 40 | T57: _
B58: 80*6 | C58: 10 | D58: 5 | E58: 9.35 | F58: 7.34 | G58: 2.17 | H58: 5.66 | I58: 3.07 | J58: 55.8 | K58: 9.57 | L58: 2.44 | M58: 88.5 | N58: 3.08 | O58: 23.1 | P58: 7.54 | Q58: 1.57 | R58: 23 | S58: 45 | T58: _
B59: 100*14 | C59: 12 | D59: 6 | E59: 26.2 | F59: 20.6 | G59: 2.98 | H59: 7.07 | I59: 4.21 | J59: 235 | K59: 33.5 | L59: 3 | M59: 372 | N59: 3.77 | O59: 98.3 | P59: 23.4 | Q59: 1.94 | R59: 25 | S59: 55 | T59: _
B60: 110*10 | C60: 12 | D60: 6 | E60: 21.2 | F60: 16.6 | G60: 3.07 | H60: 7.78 | I60: 4.34 | J60: 239 | K60: 30.1 | L60: 3.36 | M60: 379 | N60: 4.23 | O60: 98.6 | P60: 22.7 | Q60: 2.16 | R60: 25 | S60: 45 | T60: 70
B61: 110*12 | C61: 13 | D61: 6.5 | E61: 25.1 | F61: 19.7 | G61: 3.15 | H61: 7.78 | I61: 4.45 | J61: 279 | K61: 35.5 | L61: 3.33 | M61: 443 | N61: 4.2 | O61: 115 | P61: 25.8 | Q61: 2.14 | R61: 25 | S61: 45 | T61: 70
B62: 120*11 | C62: 13 | D62: 6.5 | E62: 25.4 | F62: 19.9 | G62: 3.36 | H62: 8.49 | I62: 4.75 | J62: 341 | K62: 39.5 | L62: 3.66 | M62: 541 | N62: 4.62 | O62: 140 | P62: 29.5 | Q62: 2.35 | R62: 25 | S62: 50 | T62: 80
B63: 120*13 | C63: 13 | D63: 6.5 | E63: 29.7 | F63: 23.3 | G63: 3.44 | H63: 8.49 | I63: 4.86 | J63: 394 | K63: 46 | L63: 3.64 | M63: 626 | N63: 4.59 | O63: 162 | P63: 33.4 | Q63: 2.34 | R63: 25 | S63: 50 | T63: 80
B64: 120*15 | C64: 13 | D64: 6.5 | E64: 33.9 | F64: 26.6 | G64: 3.51 | H64: 8.49 | I64: 4.97 | J64: 445 | K64: 52.4 | L64: 3.62 | M64: 706 | N64: 4.56 | O64: 184 | P64: 37 | Q64: 2.33 | R64: 25 | S64: 50 | T64: 80
B65: 140*10 | E65: 27.2 | F65: 21.4 | G65: 3.79 | I65: 5.37 | J65: 504 | K65: 49.3 | L65: 4.3 | M65: 802 | N65: 5.43 | O65: 207 | P65: 38.5 | Q65: 2.76 | R65: 28 | S65: 55 | T65: 95
B66: 140*13 | C66: 15 | D66: 7.5 | E66: 35 | F66: 27.5 | G66: 3.92 | H66: 9.9 | I66: 5.54 | J66: 638 | K66: 63.3 | L66: 4.27 | M66: 1010 | N66: 5.38 | O66: 262 | P66: 47.3 | Q66: 2.74 | R66: 28 | S66: 55 | T66: 95
B67: 140*15 | C67: 15 | D67: 7.5 | E67: 40 | F67: 31.4 | G67: 4 | H67: 9.9 | I67: 5.66 | J67: 723 | K67: 72.3 | L67: 4.25 | M67: 1150 | N67: 5.36 | O67: 298 | P67: 52.7 | Q67: 2.73 | R67: 28 | S67: 55 | T67: 95
B68: 150*14 | C68: 16 | D68: 8 | E68: 40.3 | F68: 31.6 | G68: 4.21 | H68: 10.6 | I68: 5.95 | J68: 845 | K68: 78.2 | L68: 4.58 | M68: 1340 | N68: 5.77 | O68: 347 | P68: 58.3 | Q68: 2.94 | R68: 28 | S68: 60 | T68: 105
B69: 150*16 | C69: 16 | D69: 8 | E69: 45.7 | F69: 35.9 | G69: 4.29 | H69: 10.6 | I69: 6.07 | J69: 948 | K69: 88.7 | L69: 4.56 | M69: 1510 | N69: 5.74 | O69: 391 | P69: 64.4 | Q69: 2.93 | R69: 28 | S69: 60 | T69: 105
B70: 150*18 | C70: 16 | D70: 8 | E70: 51 | F70: 40.1 | G70: 4.36 | H70: 10.6 | I70: 6.17 | J70: 1050 | K70: 99.3 | L70: 4.54 | M70: 1670 | N70: 5.7 | O70: 438 | P70: 71 | Q70: 2.93 | R70: 28 | S70: 60 | T70: 105
B71: 150*20 | C71: 16 | D71: 8 | E71: 56.3 | F71: 44.2 | G71: 4.44 | H71: 10.6 | I71: 6.28 | J71: 1150 | K71: 100 | L71: 4.51 | M71: 1820 | N71: 5.68 | O71: 477 | P71: 76 | Q71: 2.91 | R71: 28 | S71: 60 | T71: 105
B72: 160*17 | C72: 17 | D72: 8.5 | E72: 51.8 | F72: 40.7 | G72: 4.57 | H72: 11.3 | I72: 6.46 | J72: 1230 | K72: 108 | L72: 4.86 | M72: 1950 | N72: 6.13 | O72: 506 | P72: 78.3 | Q72: 3.13 | R72: 28 | S72: 60 | T72: 115
B73: 160*19 | C73: 17 | D73: 8.5 | E73: 57.5 | F73: 45.1 | G73: 4.65 | H73: 11.3 | I73: 6.58 | J73: 1350 | K73: 118 | L73: 4.84 | M73: 2140 | N73: 6.16 | O73: 558 | P73: 84.8 | Q73: 3.12 | R73: 28 | S73: 60 | T73: 115
B74: 180*20 | C74: 18 | D74: 9 | E74: 68.4 | F74: 53.7 | G74: 5.18 | H74: 12.7 | I74: 7.33 | J74: 2040 | K74: 160 | L74: 5.47 | M74: 3260 | N74: 6.9 | O74: 830 | P74: 113 | Q74: 3.49 | R74: 28 | S74: 60 | T74: 135
B75: 180*22 | C75: 18 | D75: 9 | E75: 74.7 | F75: 58.6 | G75: 5.26 | H75: 12.7 | I75: 7.44 | J75: 2210 | K75: 174 | L75: 5.44 | M75: 3510 | N75: 6.86 | O75: 918 | P75: 123 | Q75: 3.5 | R75: 28 | S75: 60 | T75: 135
B76: 200*22 | C76: 18 | D76: 9 | E76: 83.5 | F76: 65.6 | G76: 5.76 | H76: 14.1 | I76: 8.14 | J76: 3094 | K76: 217 | L76: 6.09 | M76: 4913 | N76: 7.67 | O76: 1276 | P76: 156 | Q76: 3.91 | R76: 28 | S76: 65 | T76: 150
B77: 200*26 | C77: 18 | D77: 9 | E77: 97.6 | F77: 76.6 | G77: 5.91 | H77: 14.1 | I77: 8.36 | J77: 3560 | K77: 253 | L77: 6.04 | M77: 5642 | N77: 7.61 | O77: 1479 | P77: 176 | Q77: 3.89 | R77: 28 | S77: 70 | T77: 150
B78: 200*28 | C78: 18 | D78: 9 | E78: 105 | F78: 82 | G78: 5.99 | H78: 14.1 | I78: 8.47 | J78: 3780 | K78: 270 | L78: 6.02 | M78: 5990 | N78: 7.57 | O78: 1580 | P78: 186 | Q78: 3.89 | R78: 28 | S78: 70 | T78: 150
B79: 250*18 | C79: 20 | D79: 10 | E79: 87.2 | F79: 68.4 | G79: 6.84 | H79: 17.7 | I79: 9.67 | J79: 5213 | K79: 287 | L79: 7.73 | M79: 8294 | N79: 9.75 | O79: 2132 | P79: 220 | Q79: 4.95 | R79: 28 | S79: 70 | T79: 200
B80: 250*20 | C80: 20 | D80: 10 | E80: 96.4 | F80: 75.7 | G80: 6.92 | H80: 17.7 | I80: 9.79 | J80: 5732 | K80: 317 | L80: 7.71 | M80: 9118 | N80: 9.73 | O80: 2345 | P80: 240 | Q80: 4.93 | R80: 28 | S80: 70 | T80: 200
B81: 250*22 | C81: 20 | D81: 10 | E81: 106 | F81: 82.9 | G81: 7 | H81: 17.7 | I81: 9.9 | J81: 6237 | K81: 347 | L81: 7.69 | M81: 9921 | N81: 9.69 | O81: 2554 | P81: 257 | Q81: 4.92 | R81: 28 | S81: 70 | T81: 200
B82: 250*24 | C82: 20 | D82: 10 | E82: 115 | F82: 90 | G82: 7.08 | H82: 17.7 | I82: 10 | J82: 6732 | K82: 376 | L82: 7.66 | M82: 10703 | N82: 9.66 | O82: 2761 | P82: 276 | Q82: 4.91 | R82: 28 | S82: 70 | T82: 200
B83: 250*26 | C83: 20 | D83: 10 | E83: 124 | F83: 97.1 | G83: 7.16 | H83: 17.7 | I83: 10.1 | J83: 7214 | K83: 404 | L83: 7.64 | M83: 11464 | N83: 9.63 | O83: 2965 | P83: 293 | Q83: 4.9 | R83: 28 | S83: 75 | T83: 200

Sheet قوطي_مربع
B2: B | C2: T | D2: A | E2: M | F2: I | G2: W | H2: i
B3: mm | C3: mm | D3: cm² | E3: kg/m | F3: cm⁴ | G3: cm³ | H3: cm
A4: تــــولــيـــد_گــــــرم | B4: 40 | C4: 3 | D4: 4.34 | E4: 3.41 | F4: 9.78 | G4: 4.89 | H4: 1.5
B5: 40 | C5: 4 | D5: 5.59 | E5: 4.39 | F5: 11.8 | G5: 5.91 | H5: 1.45
B6: 50 | C6: 3 | D6: 5.54 | E6: 4.35 | F6: 20.2 | G6: 8.08 | H6: 1.91
B7: 50 | C7: 4 | D7: 7.19 | E7: 5.64 | F7: 25 | G7: 9.99 | H7: 1.86
B8: 60 | C8: 3 | D8: 6.74 | E8: 5.29 | F8: 36.2 | G8: 12.1 | H8: 2.32
B9: 60 | C9: 4 | D9: 8.79 | E9: 6.9 | F9: 45.4 | G9: 15.1 | H9: 2.27
B10: 60 | C10: 5 | D10: 10.7 | E10: 8.42 | F10: 53.3 | G10: 17.8 | H10: 2.23
B11: 70 | C11: 3 | D11: 7.94 | E11: 6.24 | F11: 59 | G11: 16.9 | H11: 2.73
B12: 70 | C12: 4 | D12: 10.4 | E12: 8.15 | F12: 74.7 | G12: 21.3 | H12: 2.68
B13: 70 | C13: 5 | D13: 12.7 | E13: 9.99 | F13: 88.5 | G13: 25.3 | H13: 2.64
B14: 80 | C14: 4 | D14: 12 | E14: 9.41 | F14: 114 | G14: 28.6 | H14: 3.09
B15: 80 | C15: 5 | D15: 14.7 | E15: 11.6 | F15: 137 | G15: 34.2 | H15: 3.05
B16: 80 | C16: 6.3 | D16: 18.1 | E16: 14.2 | F16: 156 | G16: 40.5 | H16: 2.99
B17: 90 | C17: 4 | D17: 13.6 | E17: 10.7 | F17: 166 | G17: 37 | H17: 3.5
B18: 90 | C18: 5 | D18: 16.7 | E18: 13.1 | F18: 200 | G18: 44.4 | H18: 3.45
B19: 90 | C19: 6.3 | D19: 20.7 | E19: 16.2 | F19: 238 | G19: 53 | H19: 3.4
B20: 100 | C20: 4 | D20: 15.2 | E20: 11.9 | F20: 232 | G20: 46.4 | H20: 3.91
B21: 100 | C21: 5 | D21: 18.7 | E21: 14.7 | F21: 279 | G21: 55.9 | H21: 3.86
B22: 100 | C22: 6.3 | D22: 23.2 | E22: 18.2 | F22: 336 | G22: 67.1 | H22: 3.8
B23: 120 | C23: 5 | D23: 22.7 | E23: 17.8 | F23: 498 | G23: 83 | H23: 4.68
B24: 120 | C24: 6.3 | D24: 28.2 | E24: 22.2 | F24: 603 | G24: 100 | H24: 4.62
B25: 120 | C25: 8 | D25: 35.2 | E25: 27.6 | F25: 726 | G25: 121 | H25: 4.55
B26: 120 | C26: 10 | D26: 42.9 | E26: 33.7 | F26: 852 | G26: 142 | H26: 4.46
B27: 140 | C27: 5 | D27: 26.7 | E27: 21 | F27: 805 | G27: 115 | H27: 5.5
B28: 140 | C28: 6.3 | D28: 33.3 | E28: 26.1 | F28: 984 | G28: 141 | H28: 5.44
B29: 140 | C29: 8 | D29: 41.6 | E29: 32.6 | F29: 1195 | G29: 171 | H29: 5.36
B30: 140 | C30: 10 | D30: 50.9 | E30: 40 | F30: 1416 | G30: 202 | H30: 5.27
B31: 150 | C31: 5 | D31: 28.7 | E31: 22.6 | F31: 1002 | G31: 134 | H31: 5.9
B32: 150 | C32: 6.3 | D32: 35.8 | E32: 28.1 | F32: 1223 | G32: 163 | H32: 5.85
B33: 150 | C33: 8 | D33: 44.8 | E33: 35.1 | F33: 1491 | G33: 199 | H33: 5.77
B34: 150 | C34: 10 | D34: 54.9 | E34: 43.1 | F34: 1773 | G34: 236 | H34: 5.68
B35: 160 | C35: 6.3 | D35: 38.3 | E35: 30.1 | F35: 1499 | G35: 187 | H35: 6.26
B36: 160 | C36: 8 | D36: 48 | E36: 37.6 | F36: 1831 | G36: 229 | H36: 6.18
B37: 160 | C37: 10 | D37: 58.9 | E37: 46.3 | F37: 2186 | G37: 273 | H37: 6.09
B38: 160 | C38: 12.5 | D38: 72.1 | E38: 56.6 | F38: 2576 | G38: 322 | H38: 5.98
B39: 180 | C39: 6.3 | D39: 43.3 | E39: 34 | F39: 2168 | G39: 241 | H39: 7.07
B40: 180 | C40: 8 | D40: 54.4 | E40: 42.7 | F40: 2661 | G40: 296 | H40: 7
B41: 180 | C41: 10 | D41: 66.9 | E41: 52.5 | F41: 3193 | G41: 355 | H41: 6.91
B42: 180 | C42: 12.5 | D42: 82.1 | E42: 64.4 | F42: 3790 | G42: 421 | H42: 6.8
B43: 200 | C43: 6.3 | D43: 48.4 | E43: 38 | F43: 3011 | G43: 301 | H43: 7.89
B44: 200 | C44: 8 | D44: 60.8 | E44: 47.7 | F44: 3709 | G44: 371 | H44: 7.81
B45: 200 | C45: 10 | D45: 74.9 | E45: 58.8 | F45: 4471 | G45: 447 | H45: 7.72
B46: 200 | C46: 12.5 | D46: 92.1 | E46: 72.3 | F46: 5336 | G46: 534 | H46: 7.61
B47: 220 | C47: 6.3 | D47: 53.4 | E47: 41.9 | F47: 4049 | G47: 368 | H47: 8.71
B48: 220 | C48: 8 | D48: 67.2 | E48: 52.7 | F48: 5002 | G48: 455 | H48: 8.63
B49: 220 | C49: 10 | D49: 82.9 | E49: 65.1 | F49: 6050 | G49: 550 | H49: 8.54
B50: 220 | C50: 12.5 | D50: 102 | E50: 80.1 | F50: 7254 | G50: 659 | H50: 8.43
B51: 250 | C51: 6.3 | D51: 61 | E51: 47.9 | F51: 6014 | G51: 481 | H51: 9.93
B52: 250 | C52: 8 | D52: 76.8 | E52: 60.3 | F52: 7455 | G52: 596 | H52: 9.86
B53: 250 | C53: 10 | D53: 94.9 | E53: 74.5 | F53: 9055 | G53: 724 | H53: 9.77
B54: 250 | C54: 16 | D54: 147 | E54: 115 | F54: 13267 | G54: 1061 | H54: 9.5
B55: 260 | C55: 8 | D55: 80 | E55: 62.8 | F55: 8423 | G55: 648 | H55: 10.3
B56: 260 | C56: 10 | D56: 89.9 | E56: 77.7 | F56: 10242 | G56: 788 | H56: 10.2
B57: 260 | C57: 12.5 | D57: 122 | E57: 95.8 | F57: 12365 | G57: 951 | H57: 10.1
B58: 260 | C58: 16 | D58: 153 | E58: 120 | F58: 15061 | G58: 159 | H58: 9.91
B59: 300 | C59: 8 | D59: 92.8 | E59: 72.8 | F59: 13128 | G59: 875 | H59: 11.9
B60: 300 | C60: 10 | D60: 115 | E60: 90.2 | F60: 16026 | G60: 1068 | H60: 11.8
B61: 300 | C61: 12.5 | D61: 142 | E61: 112 | F61: 19442 | G61: 1296 | H61: 11.7
B62: 300 | C62: 16 | D62: 179 | E62: 141 | F62: 23855 | G62: 1590 | H62: 11.5
B63: 350 | C63: 8 | D63: 109 | E63: 85.4 | F63: 21129 | G63: 1207 | H63: 13.9
B64: 350 | C64: 10 | D64: 135 | E64: 106 | F64: 25884 | G64: 1479 | H64: 13.9
B65: 350 | C65: 12.5 | D65: 167 | E65: 131 | F65: 31541 | G65: 1802 | H65: 13.7
B66: 350 | C66: 16 | D66: 211 | E66: 166 | F66: 38942 | G66: 2225 | H66: 13.6
B67: 400 | C67: 10 | D67: 155 | E67: 122 | F67: 39128 | G67: 1956 | H67: 15.9
B68: 400 | C68: 12.5 | D68: 192 | E68: 151 | F68: 47839 | G68: 2392 | H68: 15.8
B69: 400 | C69: 16 | D69: 243 | E69: 191 | F69: 59344 | G69: 2967 | H69: 15.6
B70: چهار گوش گرم
A71: تـــــــــوليــــــــــد_ســــــــــــــرد | B71: 20 | C71: 2 | D71: 1.34 | E71: 1.05 | F71: 0.69 | G71: 0.69 | H71: 0.72
B72: 30 | C72: 2 | D72: 2.14 | E72: 1.68 | F72: 2.72 | G72: 1.81 | H72: 1.13
B73: 40 | C73: 2 | D73: 2.94 | E73: 2.31 | F73: 6.94 | G73: 3.47 | H73: 1.54
B74: 40 | C74: 3 | D74: 4.21 | E74: 3.3 | F74: 9.32 | G74: 4.66 | H74: 1.49
B75: 40 | C75: 4 | D75: 5.35 | E75: 4.2 | F75: 11.1 | G75: 5.54 | H75: 1.44
B76: 50 | C76: 2 | D76: 3.74 | E76: 2.93 | F76: 14.1 | G76: 5.66 | H76: 1.95
B77: 50 | C77: 3 | D77: 5.41 | E77: 4.25 | F77: 19.5 | G77: 7.79 | H77: 1.9
B78: 50 | C78: 4 | D78: 6.95 | E78: 5.46 | F78: 23.7 | G78: 9.49 | H78: 1.85
B79: 50 | C79: 5 | D79: 8.36 | E79: 6.56 | F79: 27 | G79: 10.8 | H79: 1.8
B80: 60 | C80: 2 | D80: 4.54 | E80: 3.56 | F80: 25.1 | G80: 8.38 | H80: 2.35
B81: 60 | C81: 3 | D81: 6.61 | E81: 5.19 | F81: 35.1 | G81: 11.7 | H81: 2.31
B82: 60 | C82: 4 | D82: 8.55 | E82: 6.71 | F82: 43.6 | G82: 14.5 | H82: 2.26
B83: 60 | C83: 5 | D83: 10.4 | E83: 8.13 | F83: 50.5 | G83: 16.8 | H83: 2.21
B84: 70 | C84: 3 | D84: 7.81 | E84: 6.13 | F84: 57.5 | G84: 16.4 | H84: 2.71
B85: 70 | C85: 4 | D85: 10.1 | E85: 7.97 | F85: 72.1 | G85: 20.6 | H85: 2.67
B86: 70 | C86: 5 | D86: 12.4 | E86: 9.7 | F86: 84.6 | G86: 24.4 | H86: 2.62
B87: 80 | C87: 3 | D87: 9.01 | E87: 7.07 | F87: 87.8 | G87: 22 | H87: 3.12
B88: 80 | C88: 4 | D88: 11.7 | E88: 9.22 | F88: 111 | G88: 27.8 | H88: 3.07
B89: 80 | C89: 5 | D89: 14.4 | E89: 11.3 | F89: 131 | G89: 32.9 | H89: 3.03
B90: 80 | C90: 6.3 | D90: 17.2 | E90: 13.5 | F90: 149 | G90: 37.1 | H90: 2.94
B91: 90 | C91: 3 | D91: 10.2 | E91: 8.01 | F91: 127 | G91: 28.3 | H91: 3.53
B92: 90 | C92: 4 | D92: 13.3 | E92: 10.5 | F92: 162 | G92: 36 | H92: 3.48
B93: 90 | C93: 5 | D93: 16.4 | E93: 12.87 | F93: 193 | G93: 42.9 | H93: 3.43
B94: 90 | C94: 6.3 | D94: 19.7 | E94: 15.46 | F94: 221 | G94: 49.1 | H94: 3.35
B95: 100 | C95: 4 | D95: 14.9 | E95: 11.7 | F95: 226 | G95: 45.3 | H95: 3.89
B96: 100 | C96: 5 | D96: 18.4 | E96: 14.44 | F96: 271 | G96: 54.2 | H96: 3.84
B97: 100 | C97: 6.3 | D97: 22.2 | E97: 17.43 | F97: 314 | G97: 62.8 | H97: 3.76
B98: 120 | C98: 4 | D98: 18.1 | E98: 14.21 | F98: 402 | G98: 67 | H98: 4.71
B99: 120 | C99: 5 | D99: 22.4 | E99: 17.58 | F99: 485 | G99: 80.9 | H99: 4.66
B100: 120 | C100: 6.3 | D100: 27.3 | E100: 21.43 | F100: 572 | G100: 95.3 | H100: 4.58
B101: 120 | C101: 8 | D101: 33.6 | E101: 26.38 | F101: 677 | G101: 113 | H101: 4.49
B102: 140 | C102: 4 | D102: 21.3 | E102: 16.72 | F102: 652 | G102: 93.1 | H102: 5.52
B103: 140 | C103: 5 | D103: 26.4 | E103: 20.72 | F103: 791 | G103: 113 | H103: 5.48
B104: 140 | C104: 6.3 | D104: 32.3 | E104: 25.36 | F104: 941 | G104: 134 | H104: 5.39
B105: 140 | C105: 8 | D105: 40 | E105: 31.4 | F105: 1127 | G105: 161 | H105: 5.3
B106: 140 | C106: 10 | D106: 48.6 | E106: 38.15 | F106: 1312 | G106: 187 | H106: 5.2
B107: 150 | C107: 5 | D107: 28.4 | E107: 22.29 | F107: 882 | G107: 131 | H107: 5.89
B108: 150 | C108: 6.3 | D108: 34.8 | E108: 27.32 | F108: 1174 | G108: 156 | H108: 5.8
B109: 150 | C109: 8 | D109: 43.2 | E109: 33.91 | F109: 1412 | G109: 188 | H109: 5.71
B110: 150 | C110: 10 | D110: 52.6 | E110: 41.29 | F110: 1653 | G110: 220 | H110: 5.61
B111: 160 | C111: 4 | D111: 24.5 | E111: 19.23 | F111: 987 | G111: 123 | H111: 6.34
B112: 160 | C112: 5 | D112: 30.4 | E112: 23.86 | F112: 1202 | G112: 150 | H112: 6.29
B113: 160 | C113: 6.3 | D113: 37.4 | E113: 29.36 | F113: 1442 | G113: 180 | H113: 6.21
B114: 160 | C114: 8 | D114: 46.4 | E114: 36.42 | F114: 1741 | G114: 218 | H114: 6.12
B115: 160 | C115: 10 | D115: 56.6 | E115: 44.43 | F115: 2048 | G115: 256 | H115: 6.02
B116: 180 | C116: 6.3 | D116: 42.4 | E116: 33.28 | F116: 2096 | G116: 233 | H116: 7.03
B117: 180 | C117: 8 | D117: 52.8 | E117: 41.45 | F117: 2546 | G117: 283 | H117: 6.94
B118: 180 | C118: 10 | D118: 64.6 | E118: 50.71 | F118: 3017 | G118: 335 | H118: 6.84
B119: 180 | C119: 12.5 | D119: 77 | E119: 60.45 | F119: 3466 | G119: 378 | H119: 6.65
B120: 200 | C120: 6.3 | D120: 47.4 | E120: 37.21 | F120: 2922 | G120: 292 | H120: 7.85
B121: 200 | C121: 8 | D121: 59.2 | E121: 46.47 | F121: 3566 | G121: 357 | H121: 7.76
B122: 200 | C122: 10 | D122: 72.6 | E122: 56.99 | F122: 4251 | G122: 425 | H122: 7.65
B123: 200 | C123: 12.5 | D123: 87 | E123: 68.3 | F123: 4859 | G123: 486 | H123: 7.47
B124: 220 | C124: 8 | D124: 65.6 | E124: 51.5 | F124: 4828 | G124: 439 | H124: 8.58
B125: 220 | C125: 10 | D125: 80.6 | E125: 63.27 | F125: 5782 | G125: 526 | H125: 8.47
B126: 220 | C126: 12.5 | D126: 97 | E126: 76.15 | F126: 6674 | G126: 607 | H126: 8.29
B127: 250 | C127: 6.3 | D127: 60 | E127: 47.1 | F127: 5873 | G127: 470 | H127: 9.89
B128: 250 | C128: 8 | D128: 75.2 | E128: 59.03 | F128: 7229 | G128: 578 | H128: 9.8
B129: 250 | C129: 10 | D129: 92.6 | E129: 72.69 | F129: 8707 | G129: 697 | H129: 9.7
B130: 250 | C130: 12.5 | D130: 112 | E130: 87.92 | F130: 10161 | G130: 813 | H130: 9.52
B131: 260 | C131: 8 | D131: 78.4 | E131: 61.54 | F131: 8178 | G131: 629 | H131: 10.2
B132: 260 | C132: 10 | D132: 96.6 | E132: 75.83 | F132: 9865 | G132: 759 | H132: 10.1
B133: 260 | C133: 12.5 | D133: 117 | E133: 91.85 | F133: 11548 | G133: 888 | H133: 9.93
B134: 300 | C134: 6.3 | D134: 73.6 | E134: 57.78 | F134: 10342 | G134: 689 | H134: 11.9
B135: 300 | C135: 8 | D135: 91.2 | E135: 71.59 | F135: 12801 | G135: 853 | H135: 11.8
B136: 300 | C136: 10 | D136: 113 | E136: 88.71 | F136: 15519 | G136: 1035 | H136: 11.7
B137: 300 | C137: 12.5 | D137: 137 | E137: 107.55 | F137: 18348 | G137: 1223 | H137: 11.6
B138: 350 | C138: 8 | D138: 107 | E138: 84 | F138: 20681 | G138: 1182 | H138: 13.9
B139: 350 | C139: 10 | D139: 133 | E139: 104.41 | F139: 25189 | G139: 1439 | H139: 13.8
B140: 350 | C140: 12.5 | D140: 162 | E140: 127.17 | F140: 30045 | G140: 1717 | H140: 13.6
B141: 400 | C141: 10 | D141: 153 | E141: 120.11 | F141: 38216 | G141: 1911 | H141: 15.8
B142: 400 | C142: 12.5 | D142: 187 | E142: 146.8 | F142: 45877 | G142: 2294 | H142: 15.7

Sheet قوطي_مستطيل
B2: H*B | C2: T | D2: A | E2: M | F2: Iy | G2: Wy | H2: iy | I2: Iz | J2: Wz | K2: iz
B3: mm | C3: mm | D3: cm² | E3: kg/m | F3: cm⁴ | G3: cm³ | H3: cm | I3: cm⁴ | J3: cm³ | K3: cm
A4: تــــــــــوليــــــــــــــــد.گــــــــــــــــــــــــــــــــرم | B4: 50*30 | C4: 3 | D4: 4.34 | E4: 3.41 | F4: 13.6 | G4: 5.43 | H4: 1.77 | I4: 5.94 | J4: 3.96 | K4: 1.17
B5: 50*31 | C5: 4 | D5: 5.59 | E5: 4.39 | F5: 16.5 | G5: 6.6 | H5: 1.72 | I5: 7.08 | J5: 4.72 | K5: 1.13
B6: 60*40 | C6: 3 | D6: 5.54 | E6: 4.35 | F6: 26.5 | G6: 8.82 | H6: 2.18 | I6: 13.9 | J6: 6.95 | K6: 1.58
B7: 60*41 | C7: 4 | D7: 7.19 | E7: 5.64 | F7: 32.8 | G7: 10.9 | H7: 2.14 | I7: 17 | J7: 8.52 | K7: 1.54
B8: 80*40 | C8: 3 | D8: 6.74 | E8: 5.29 | F8: 54.2 | G8: 13.6 | H8: 2.84 | I8: 18 | J8: 9 | K8: 1.63
B9: 80*41 | C9: 4 | D9: 8.79 | E9: 6.9 | F9: 68.2 | G9: 17.1 | H9: 2.79 | I9: 22.2 | J9: 11.1 | K9: 1.59
B10: 80*42 | C10: 5 | D10: 10.7 | E10: 8.4 | F10: 80.3 | G10: 20.1 | H10: 2.74 | I10: 25.7 | J10: 12.9 | K10: 1.55
B11: 90*50 | C11: 3 | D11: 7.94 | E11: 6.23 | F11: 84.4 | G11: 18.8 | H11: 3.26 | I11: 33.5 | J11: 13.4 | K11: 2.05
B12: 90*51 | C12: 4 | D12: 10.4 | E12: 8.16 | F12: 107 | G12: 23.8 | H12: 3.21 | I12: 41.9 | J12: 16.8 | K12: 2.01
B13: 90*52 | C13: 5 | D13: 12.7 | E13: 9.97 | F13: 127 | G13: 28.3 | H13: 3.16 | I13: 49.2 | J13: 19.7 | K13: 1.97
B14: 100*50 | C14: 4 | D14: 11.2 | E14: 8.79 | F14: 140 | G14: 27.9 | H14: 3.53 | I14: 46.2 | J14: 18.5 | K14: 2.03
B15: 100*51 | C15: 5 | D15: 13.7 | E15: 10.75 | F15: 167 | G15: 33.3 | H15: 3.48 | I15: 54.3 | J15: 21.7 | K15: 1.99
B16: 100*52 | C16: 6.3 | D16: 16.9 | E16: 13.27 | F16: 197 | G16: 39.4 | H16: 3.42 | I16: 63 | J16: 25.2 | K16: 1.93
B17: 100*60 | C17: 4 | D17: 12 | E17: 9.42 | F17: 158 | G17: 31.6 | H17: 3.63 | I17: 70.5 | J17: 23.5 | K17: 2.43
B18: 100*61 | C18: 5 | D18: 14.7 | E18: 11.54 | F18: 189 | G18: 37.8 | H18: 3.58 | I18: 83.6 | J18: 27.9 | K18: 2.38
B19: 100*62 | C19: 6.3 | D19: 18.1 | E19: 14.21 | F19: 225 | G19: 45 | H19: 3.52 | I19: 98.1 | J19: 32.7 | K19: 2.33
B20: 120*60 | C20: 4 | D20: 13.6 | E20: 10.68 | F20: 249 | G20: 41.5 | H20: 4.28 | I20: 83.1 | J20: 27.7 | K20: 2.47
B21: 120*61 | C21: 5 | D21: 16.7 | E21: 13.11 | F21: 299 | G21: 49.9 | H21: 4.23 | I21: 98.8 | J21: 32.9 | K21: 2.43
B22: 120*62 | C22: 6.3 | D22: 20.7 | E22: 16.25 | F22: 358 | G22: 59.7 | H22: 4.16 | I22: 116 | J22: 38.8 | K22: 2.37
B23: 120*80 | C23: 4 | D23: 15.2 | E23: 11.93 | F23: 303 | G23: 50.4 | H23: 4.46 | I23: 161 | J23: 40.2 | K23: 3.25
B24: 120*81 | C24: 5 | D24: 18.7 | E24: 14.68 | F24: 365 | G24: 60.9 | H24: 4.42 | I24: 193 | J24: 48.2 | K24: 3.21
B25: 120*82 | C25: 6.3 | D25: 23.2 | E25: 18.21 | F25: 440 | G25: 73.3 | H25: 4.36 | I25: 230 | J25: 57.6 | K25: 3.15
B26: 140*80 | C26: 4 | D26: 16.8 | E26: 13.19 | F26: 441 | G26: 62.9 | H26: 5.12 | I26: 184 | J26: 46 | K26: 3.31
B27: 140*81 | C27: 5 | D27: 20.7 | E27: 16.25 | F27: 534 | G27: 76.3 | H27: 5.08 | I27: 222 | J27: 55.3 | K27: 3.27
B28: 140*82 | C28: 6.3 | D28: 25.7 | E28: 20.17 | F28: 646 | G28: 92.3 | H28: 5.01 | I28: 265 | J28: 66.2 | K28: 3.21
B29: 150*100 | C29: 6.3 | D29: 29.5 | E29: 23.16 | F29: 898 | G29: 120 | H29: 5.52 | I29: 474 | J29: 94.8 | K29: 4.01
B30: 150*101 | C30: 8 | D30: 36.8 | E30: 28.89 | F30: 1087 | G30: 145 | H30: 5.44 | I30: 569 | J30: 114 | K30: 3.94
B31: 150*102 | C31: 10 | D31: 44.9 | E31: 35.25 | F31: 1282 | G31: 171 | H31: 5.34 | I31: 665 | J31: 133 | K31: 3.85
B32: 160*80 | C32: 5 | D32: 22.7 | E32: 17.82 | F32: 744 | G32: 93 | H32: 5.72 | I32: 249 | J32: 62.3 | K32: 3.31
B33: 160*81 | C33: 6.3 | D33: 28.2 | E33: 22.14 | F33: 903 | G33: 113 | H33: 5.66 | I33: 299 | J33: 74.8 | K33: 3.26
B34: 160*82 | C34: 8 | D34: 35.2 | E34: 27.63 | F34: 1091 | G34: 136 | H34: 5.57 | I34: 356 | J34: 89 | K34: 3.18
B35: 160*83 | C35: 10 | D35: 42.9 | E35: 33.68 | F35: 1284 | G35: 161 | H35: 5.47 | I35: 411 | J35: 103 | K35: 3.1
B36: 180*100 | C36: 5 | D36: 26.7 | E36: 20.96 | F36: 1153 | G36: 128 | H36: 6.57 | I36: 460 | J36: 92 | K36: 4.15
B37: 180*101 | C37: 6.3 | D37: 33.3 | E37: 26.14 | F37: 1407 | G37: 156 | H37: 6.5 | I37: 557 | J37: 111 | K37: 4.09
B38: 180*102 | C38: 8 | D38: 41.6 | E38: 32.66 | F38: 1713 | G38: 190 | H38: 6.42 | I38: 671 | J38: 134 | K38: 4.02
B39: 180*103 | C39: 10 | D39: 50.9 | E39: 39.96 | F39: 2036 | G39: 226 | H39: 6.32 | I39: 787 | J39: 157 | K39: 3.93
B40: 200*100 | C40: 6.3 | D40: 35.8 | E40: 28.1 | F40: 1829 | G40: 183 | H40: 7.15 | I40: 613 | J40: 123 | K40: 4.14
B41: 200*101 | C41: 8 | D41: 44.8 | E41: 35.17 | F41: 2234 | G41: 223 | H41: 7.06 | I41: 739 | J41: 148 | K41: 4.06
B42: 200*102 | C42: 10 | D42: 54.9 | E42: 43.1 | F42: 2664 | G42: 266 | H42: 6.96 | I42: 869 | J42: 174 | K42: 3.98
B43: 200*103 | C43: 12.5 | D43: 67.1 | E43: 52.67 | F43: 3136 | G43: 314 | H43: 6.84 | I43: 1004 | J43: 201 | K43: 3.87
B44: 200*120 | C44: 6.3 | D44: 38.3 | E44: 30.07 | F44: 2065 | G44: 207 | H44: 7.34 | I44: 929 | J44: 155 | K44: 4.92
B45: 200*121 | C45: 8 | D45: 48 | E45: 37.68 | F45: 2529 | G45: 253 | H45: 7.26 | I45: 1128 | J45: 188 | K45: 4.85
B46: 200*122 | C46: 10 | D46: 58.9 | E46: 46.24 | F46: 3026 | G46: 303 | H46: 7.17 | I46: 1337 | J46: 223 | K46: 4.76
B47: 200*123 | C47: 12.5 | D47: 72.1 | E47: 56.6 | F47: 3576 | G47: 358 | H47: 7.04 | I47: 1562 | J47: 160 | K47: 4.66
B48: 250*150 | C48: 6.3 | D48: 48.4 | E48: 37.99 | F48: 4143 | G48: 331 | H48: 9.25 | I48: 1874 | J48: 250 | K48: 6.22
B49: 250*151 | C49: 8 | D49: 60.8 | E49: 47.73 | F49: 5111 | G49: 409 | H49: 9.17 | I49: 2298 | J49: 306 | K49: 6.15
B50: 250*152 | C50: 10 | D50: 74.9 | E50: 58.8 | F50: 6174 | G50: 494 | H50: 9.08 | I50: 2755 | J50: 367 | K50: 6.06
B51: 250*153 | C51: 12.5 | D51: 92.1 | E51: 72.3 | F51: 7378 | G51: 591 | H51: 8.96 | I51: 3265 | J51: 435 | K51: 5.96
B52: 260*180 | C52: 6.3 | D52: 53.4 | E52: 41.92 | F52: 5166 | G52: 397 | H52: 9.83 | I52: 2929 | J52: 325 | K52: 7.4
B53: 260*181 | C53: 8 | D53: 67.2 | E53: 52.75 | F53: 6390 | G53: 492 | H53: 9.75 | I53: 3608 | J53: 401 | K53: 7.33
B54: 260*182 | C54: 10 | D54: 82.9 | E54: 65.08 | F54: 7741 | G54: 595 | H54: 9.66 | I54: 4351 | J54: 483 | K54: 7.24
B55: 260*183 | C55: 12.5 | D55: 102 | E55: 80.07 | F55: 9299 | G55: 715 | H55: 9.54 | I55: 5196 | J55: 577 | K55: 7.13
B56: 300*200 | C56: 6.3 | D56: 61 | E56: 47.89 | F56: 7829 | G56: 522 | H56: 11.3 | I56: 4193 | J56: 419 | K56: 8.29
B57: 300*201 | C57: 8 | D57: 76.8 | E57: 60.29 | F57: 9717 | G57: 648 | H57: 11.3 | I57: 5184 | J57: 518 | K57: 8.22
B58: 300*202 | C58: 10 | D58: 94.9 | E58: 74.5 | F58: 11819 | G58: 788 | H58: 11.2 | I58: 6278 | J58: 628 | K58: 8.13
B59: 300*203 | C59: 12.5 | D59: 117 | E59: 91.85 | F59: 14273 | G59: 952 | H59: 11 | I59: 7537 | J59: 754 | K59: 8.02
B60: 350*250 | C60: 8 | D60: 92.8 | E60: 72.85 | F60: 16449 | G60: 940 | H60: 13.3 | I60: 9798 | J60: 784 | K60: 10.3
B61: 350*251 | C61: 10 | D61: 115 | E61: 90.28 | F61: 20102 | G61: 1149 | H61: 13.2 | I61: 11937 | J61: 955 | K61: 10.2
B62: 350*252 | C62: 12.5 | D62: 142 | E62: 111.47 | F62: 24419 | G62: 1395 | H62: 13.1 | I62: 14444 | J62: 1156 | K62: 10.1
B63: 350*253 | C63: 16 | D63: 179 | E63: 140.52 | F63: 30011 | G63: 1715 | H63: 12.9 | I63: 17654 | J63: 1412 | K63: 9.93
B64: 400*200 | C64: 8 | D64: 92.8 | E64: 72.85 | F64: 19562 | G64: 978 | H64: 14.5 | I64: 6660 | J64: 666 | K64: 8.47
B65: 400*201 | C65: 10 | D65: 115 | E65: 90.28 | F65: 23914 | G65: 1196 | H65: 14.4 | I65: 8084 | J65: 808 | K65: 8.39
B66: 400*202 | C66: 12.5 | D66: 142 | E66: 111.47 | F66: 29063 | G66: 1453 | H66: 14.3 | I66: 9738 | J66: 974 | K66: 8.28
B67: 400*203 | C67: 16 | D67: 179 | E67: 140.52 | F67: 35738 | G67: 1787 | H67: 14.1 | I67: 11824 | J67: 1182 | K67: 8.13
B68: 450*250 | C68: 8 | D68: 109 | E68: 85.57 | F68: 30082 | G68: 1337 | H68: 16.6 | I68: 12142 | J68: 971 | K68: 10.6
B69: 450*251 | C69: 10 | D69: 135 | E69: 105.98 | F69: 36895 | G69: 1640 | H69: 16.5 | I69: 14819 | J69: 1185 | K69: 10.5
B70: 450*252 | C70: 12.5 | D70: 167 | E70: 131.1 | F70: 45026 | G70: 2001 | H70: 16.4 | I70: 17973 | J70: 1438 | K70: 10.4
B71: 450*253 | C71: 16 | D71: 211 | E71: 165.64 | F71: 55705 | G71: 2476 | H71: 16.2 | I71: 22041 | J71: 1763 | K71: 10.2
B72: 500*300 | C72: 10 | D72: 155 | E72: 121.68 | F72: 53762 | G72: 2150 | H72: 18.6 | I72: 24439 | J72: 1629 | K72: 12.6
B73: 500*301 | C73: 12.5 | D73: 192 | E73: 150.72 | F73: 65813 | G73: 2633 | H73: 18.5 | I73: 29780 | J73: 1985 | K73: 12.5
B74: 500*302 | C74: 16 | D74: 243 | E74: 190.76 | F74: 81783 | G74: 3271 | H74: 18.3 | I74: 36768 | J74: 2451 | K74: 12.3
B75: 500*303 | C75: 20 | D75: 300 | E75: 235.5 | F75: 98777 | G75: 3951 | H75: 18.2 | I75: 44078 | J75: 2939 | K75: 12.1
A77: تــــــــــوليـــــــــــــــــــد.ســـــــــــــــــــــــــرد | B77: 40*20 | C77: 2 | D77: 2.14 | E77: 1.68 | F77: 4.05 | G77: 2.02 | H77: 1.38 | I77: 1.34 | J77: 1.34 | K77: 0.79
B78: 40*21 | C78: 2.5 | D78: 2.59 | E78: 2.03 | F78: 4.69 | G78: 2.35 | H78: 1.35 | I78: 1.54 | J78: 1.54 | K78: 0.77
B79: 50*28 | C79: 2 | D79: 2.94 | E79: 2.31 | F79: 9.54 | G79: 3.81 | H79: 1.8 | I79: 4.29 | J79: 2.86 | K79: 1.21
B80: 50*29 | C80: 3 | D80: 4.21 | E80: 3.3 | F80: 12.8 | G80: 5.13 | H80: 1.74 | I80: 5.7 | J80: 3.8 | K80: 1.16
B81: 50*30 | C81: 4 | D81: 5.35 | E81: 4.2 | F81: 15.3 | G81: 6.1 | H81: 1.69 | I81: 6.69 | J81: 4.46 | K81: 1.12
B82: 60*40 | C82: 2 | D82: 3.47 | E82: 2.72 | F82: 18.4 | G82: 6.14 | H82: 2.3 | I82: 9.83 | J82: 4.92 | K82: 1.68
B83: 60*41 | C83: 3 | D83: 5.41 | E83: 4.25 | F83: 25.4 | G83: 8.46 | H83: 2.17 | I83: 13.4 | J83: 6.72 | K83: 1.57
B84: 60*42 | C84: 4 | D84: 6.95 | E84: 5.46 | F84: 31 | G84: 10.3 | H84: 2.11 | I84: 16.3 | J84: 8.14 | K84: 1.53
B85: 60*43 | C85: 5 | D85: 8.36 | E85: 6.56 | F85: 35.3 | G85: 11.8 | H85: 2.05 | I85: 18.4 | J85: 9.21 | K85: 1.48
B86: 80*40 | C86: 2 | D86: 4.54 | E86: 3.56 | F86: 37.4 | G86: 9.34 | H86: 2.87 | I86: 12.7 | J86: 6.36 | K86: 1.67
B87: 80*41 | C87: 3 | D87: 6.61 | E87: 5.19 | F87: 52.3 | G87: 13.1 | H87: 2.81 | I87: 17.6 | J87: 8.78 | K87: 1.63
B88: 80*42 | C88: 4 | D88: 8.55 | E88: 6.71 | F88: 64.8 | G88: 16.2 | H88: 2.75 | I88: 21.5 | J88: 10.7 | K88: 1.59
B89: 80*43 | C89: 5 | D89: 10.4 | E89: 8.16 | F89: 75.1 | G89: 18.8 | H89: 2.69 | I89: 24.6 | J89: 12.3 | K89: 1.54
B90: 90*50 | C90: 3 | D90: 7.81 | E90: 6.13 | F90: 81.9 | G90: 18.2 | H90: 3.24 | I90: 32.7 | J90: 13.1 | K90: 2.05
B91: 90*51 | C91: 4 | D91: 10.1 | E91: 7.93 | F91: 103 | G91: 22.8 | H91: 3.19 | I91: 40.7 | J91: 16.3 | K91: 2.01
B92: 90*52 | C92: 5 | D92: 12.4 | E92: 9.73 | F92: 121 | G92: 26.8 | H92: 3.12 | I92: 47.4 | J92: 18.9 | K92: 1.96
B93: 100*50 | C93: 3 | D93: 8.41 | E93: 6.6 | F93: 106 | G93: 21.3 | H93: 3.55 | I93: 36.1 | J93: 14.4 | K93: 2.07
B94: 100*51 | C94: 5 | D94: 13.4 | E94: 10.52 | F94: 158 | G94: 31.6 | H94: 3.43 | I94: 52.5 | J94: 21 | K94: 1.98
B95: 100*60 | C95: 3 | D95: 9.01 | E95: 7.07 | F95: 121 | G95: 24.1 | H95: 3.66 | I95: 54.6 | J95: 18.2 | K95: 2.46
B96: 100*61 | C96: 4 | D96: 11.7 | E96: 9.18 | F96: 153 | G96: 30.5 | H96: 3.62 | I96: 68.7 | J96: 22.9 | K96: 2.42
B97: 100*62 | C97: 5 | D97: 14.4 | E97: 11.3 | F97: 181 | G97: 36.2 | H97: 3.55 | I97: 80.8 | J97: 26.9 | K97: 2.37
B98: 100*63 | C98: 6.3 | D98: 17.2 | E98: 13.5 | F98: 203 | G98: 40.7 | H98: 3.44 | I98: 90.9 | J98: 30.3 | K98: 2.3
B99: 120*60 | C99: 3 | D99: 10.2 | E99: 8.01 | F99: 189 | G99: 31.5 | H99: 4.3 | I99: 64.4 | J99: 21.5 | K99: 2.51
B100: 120*61 | C100: 4 | D100: 13.3 | E100: 10.44 | F100: 241 | G100: 40.1 | H100: 4.26 | I100: 81.2 | J100: 27.1 | K100: 2.47
B101: 120*62 | C101: 5 | D101: 16.4 | E101: 12.87 | F101: 287 | G101: 47.8 | H101: 4.18 | I101: 96 | J101: 32 | K101: 2.42
B102: 120*63 | C102: 6.3 | D102: 19.7 | E102: 15.46 | F102: 327 | G102: 54.5 | H102: 4.07 | I102: 109 | J102: 36.4 | K102: 2.35
B103: 120*80 | C103: 4 | D103: 14.9 | E103: 11.7 | F103: 295 | G103: 49.1 | H103: 4.45 | I103: 157 | J103: 39.3 | K103: 3.25
B104: 120*81 | C104: 5 | D104: 18.4 | E104: 14.44 | F104: 353 | G104: 58.9 | H104: 4.38 | I104: 188 | J104: 46.8 | K104: 3.2
B105: 120*82 | C105: 6.3 | D105: 22.2 | E105: 17.43 | F105: 408 | G105: 68.1 | H105: 4.29 | I105: 217 | J105: 54.3 | K105: 3.13
B106: 140*80 | C106: 4 | D106: 16.5 | E106: 12.95 | F106: 430 | G106: 61.4 | H106: 5.1 | I106: 180 | J106: 45.1 | K106: 3.3
B107: 140*81 | C107: 5 | D107: 20.4 | E107: 16.01 | F107: 517 | G107: 73.9 | H107: 5.03 | I107: 216 | J107: 54 | K107: 3.25
B108: 140*82 | C108: 6.3 | D108: 24.8 | E108: 19.47 | F108: 603 | G108: 86.1 | H108: 4.93 | I108: 251 | J108: 62.9 | K108: 3.18
B109: 150*100 | C109: 4 | D109: 18.9 | E109: 14.84 | F109: 595 | G109: 79.3 | H109: 5.61 | I109: 319 | J109: 63.7 | K109: 4.11
B110: 150*101 | C110: 5 | D110: 23.4 | E110: 18.37 | F110: 719 | G110: 95.9 | H110: 5.54 | I110: 384 | J110: 76.8 | K110: 4.05
B111: 150*102 | C111: 6.3 | D111: 28.5 | E111: 22.37 | F111: 848 | G111: 113 | H111: 5.45 | I111: 453 | J111: 90.5 | K111: 3.99
B112: 150*103 | C112: 8 | D112: 35.2 | E112: 27.63 | F112: 1008 | G112: 134 | H112: 5.35 | I112: 536 | J112: 107 | K112: 3.9
B113: 160*80 | C113: 4 | D113: 18.1 | E113: 14.21 | F113: 598 | G113: 74.7 | H113: 5.75 | I113: 204 | J113: 50.9 | K113: 3.36
B114: 160*81 | C114: 5 | D114: 22.4 | E114: 17.58 | F114: 722 | G114: 90.2 | H114: 5.68 | I114: 244 | J114: 61 | K114: 3.3
B115: 160*82 | C115: 6.3 | D115: 27.3 | E115: 21.43 | F115: 846 | G115: 106 | H115: 5.57 | I115: 286 | J115: 71.4 | K115: 3.24
B116: 160*83 | C116: 8 | D116: 33.6 | E116: 26.38 | F116: 1001 | G116: 125 | H116: 5.46 | I116: 335 | J116: 83.7 | K116: 3.16
B117: 180*100 | C117: 5 | D117: 26.4 | E117: 20.72 | F117: 1124 | G117: 125 | H117: 6.53 | I117: 452 | J117: 90.4 | K117: 4.14
B118: 180*101 | C118: 6.3 | D118: 32.3 | E118: 25.36 | F118: 1335 | G118: 148 | H118: 6.43 | I118: 536 | J118: 107 | K118: 4.07
B119: 180*102 | C119: 8 | D119: 40 | E119: 31.4 | F119: 1598 | G119: 178 | H119: 6.32 | I119: 637 | J119: 127 | K119: 3.99
B120: 180*103 | C120: 10 | D120: 48.6 | E120: 38.15 | F120: 1859 | G120: 207 | H120: 6.18 | I120: 736 | J120: 147 | K120: 3.89
B121: 200*100 | C121: 6.3 | D121: 34.8 | E121: 27.32 | F121: 1739 | G121: 174 | H121: 7.07 | I121: 591 | J121: 118 | K121: 4.12
B122: 200*101 | C122: 8 | D122: 43.2 | E122: 33.91 | F122: 2091 | G122: 209 | H122: 6.96 | I122: 705 | J122: 141 | K122: 4.04
B123: 200*102 | C123: 10 | D123: 52.6 | E123: 41.29 | F123: 2444 | G123: 244 | H123: 6.82 | I123: 818 | J123: 164 | K123: 3.94
B124: 200*120 | C124: 5 | D124: 30.4 | E124: 23.86 | F124: 1649 | G124: 165 | H124: 7.37 | I124: 750 | J124: 125 | K124: 4.97
B125: 200*121 | C125: 6.3 | D125: 37.4 | E125: 29.36 | F125: 1976 | G125: 198 | H125: 7.27 | I125: 898 | J125: 150 | K125: 4.9
B126: 200*122 | C126: 8 | D126: 46.4 | E126: 36.42 | F126: 2386 | G126: 239 | H126: 7.17 | I126: 1079 | J126: 180 | K126: 4.82
B127: 200*123 | C127: 10 | D127: 56.6 | E127: 44.43 | F127: 2806 | G127: 281 | H127: 7.04 | I127: 1262 | J127: 210 | K127: 4.72
B128: 250*150 | C128: 6.3 | D128: 47.4 | E128: 37.21 | F128: 4001 | G128: 320 | H128: 9.19 | I128: 1825 | J128: 243 | K128: 6.21
B129: 250*151 | C129: 8 | D129: 59.2 | E129: 46.47 | F129: 4886 | G129: 391 | H129: 9.08 | I129: 2219 | J129: 286 | K129: 6.12
B130: 250*152 | C130: 10 | D130: 72.6 | E130: 56.99 | F130: 5825 | G130: 466 | H130: 8.96 | I130: 2634 | J130: 351 | K130: 6.02
B131: 250*153 | C131: 12.5 | D131: 87 | E131: 68.3 | F131: 6633 | G131: 531 | H131: 8.73 | I131: 3002 | J131: 400 | K131: 5.87
B132: 300*100 | C132: 6.3 | D132: 47.4 | E132: 37.21 | F132: 4907 | G132: 327 | H132: 10.17 | I132: 868 | J132: 174 | K132: 4.28
B133: 300*101 | C133: 10 | D133: 72.6 | E133: 56.99 | F133: 7106 | G133: 474 | H133: 9.89 | I133: 1224 | J133: 245 | K133: 4.11
B134: 300*102 | C134: 12.5 | D134: 84.1 | E134: 66.02 | F134: 7808 | G134: 521 | H134: 9.64 | I134: 1343 | J134: 269 | K134: 4
B135: 300*200 | C135: 6.3 | D135: 60 | E135: 47.1 | F135: 7624 | G135: 508 | H135: 11.27 | I135: 4104 | J135: 410 | K135: 8.27
B136: 300*201 | C136: 8 | D136: 75.2 | E136: 59.03 | F136: 9389 | G136: 626 | H136: 11.17 | I136: 5142 | J136: 504 | K136: 8.27
B137: 300*202 | C137: 10 | D137: 92.6 | E137: 72.69 | F137: 11313 | G137: 754 | H137: 11.05 | I137: 6058 | J137: 606 | K137: 8.09
B138: 300*203 | C138: 12.5 | D138: 112 | E138: 87.92 | F138: 13179 | G138: 879 | H138: 10.85 | I138: 7066 | J138: 706 | K138: 7.94
B139: 350*250 | C139: 6.3 | D139: 72.6 | E139: 56.99 | F139: 12923 | G139: 738 | H139: 13.34 | I139: 7744 | J139: 620 | K139: 10.33
B140: 350*251 | C140: 8 | D140: 91.2 | E140: 71.59 | F140: 16001 | G140: 914 | H140: 13.25 | I140: 9573 | J140: 766 | K140: 10.25
B141: 350*252 | C141: 10 | D141: 113 | E141: 88.71 | F141: 19407 | G141: 1109 | H141: 13.11 | I141: 11588 | J141: 927 | K141: 10.13
B142: 350*253 | C142: 12 | D142: 132 | E142: 103.62 | F142: 22197 | G142: 1268 | H142: 12.97 | I142: 13261 | J142: 1061 | K142: 10.02
B143: 400*200 | C143: 8 | D143: 91.2 | E143: 71.59 | F143: 18974 | G143: 949 | H143: 14.42 | I143: 6517 | J143: 652 | K143: 8.45
B144: 400*201 | C144: 10 | D144: 113 | E144: 88.71 | F144: 23003 | G144: 1150 | H144: 14.27 | I144: 7864 | J144: 786 | K144: 8.34
B145: 400*202 | C145: 12.5 | D145: 137 | E145: 107.55 | F145: 27100 | G145: 1355 | H145: 14.06 | I145: 9260 | J145: 926 | K145: 8.22
B146: 400*300 | C146: 8 | D146: 107 | E146: 84 | F146: 25122 | G146: 1256 | H146: 15.32 | I146: 16212 | J146: 1081 | K146: 12.31
B147: 400*301 | C147: 10 | D147: 133 | E147: 104.41 | F147: 30609 | G147: 1530 | H147: 15.17 | I147: 19726 | J147: 1315 | K147: 12.18
B148: 400*302 | C148: 12 | D148: 156 | E148: 122.46 | F148: 35284 | G148: 1764 | H148: 15.04 | I148: 22747 | J148: 1516 | K148: 12.08

Sheet قوطي_دايره
B2: D | C2: T | D2: A | E2: M | F2: I | G2: W | H2: i
B3: mm | C3: mm | D3: cm² | E3: kg/m | F3: cm⁴ | G3: cm³ | H3: cm
B4: 33.7 | C4: 2.6 | I4: =ROUND(((PI()*POWER(B4/10,2))/2)-((PI()*POWER((B4-C4)/10,2))/2),2) -> 2.65 | J4: 2.54 | K4: =I4-J4 -> 0.11 | L4: =ROUND((PI()/2)*(ROUND(POWER(B4,1.991),0)-ROUND(POWER(B4-C4,1.991),0))/100,2) -> 2.54 | M4: =J4-L4 -> 0 | N4: =((PI()*POWER(B4/10,2))/2)-((PI()*POWER((B4-C4)/10,2))/2) -> 2.646477651 | Q4: =PI()*POWER(AVERAGE(B4,B4-C4)/20,3) -> 13.35656913 | R4: =(PI()/64)*(POWER(B4,4)-POWER(B4-C4,4)) -> 17391.49329 | S4: =R4*2/10000 -> 3.478298658
B5: 33.7 | C5: 3.2 | I5: =ROUND(((PI()*POWER(B5/10,2))/2)-((PI()*POWER((B5-C5)/10,2))/2),2) -> 3.23 | J5: 3.07 | K5: =I5-J5 -> 0.16 | L5: =ROUND((3/2)*(ROUND(POWER(B5,2),0)-ROUND(POWER(B5-C5,2),0))/100,2) -> 3.09 | M5: =J5-L5 -> -0.02 | N5: =((PI()*POWER(B5/10,2))/2)-((PI()*POWER((B5-C5)/10,2))/2) -> 3.227043974 | Q5: =PI()*POWER(AVERAGE(B5,B5-C5)/20,3) -> 12.98897805 | R5: =(PI()/64)*(POWER(B5,4)-POWER(B5-C5,4)) -> 20833.99758 | S5: 4.166799517
B6: 33.7 | C6: 4 | I6: 3.98 | J6: 3.73 | K6: 0.25 | L6: 3.81 | M6: -0.08 | N6: =((PI()*POWER(B6/10,2))/2)-((PI()*POWER((B6-C6)/10,2))/2) -> 3.983539485 | Q6: =PI()*POWER(AVERAGE(B6,B6-C6)/20,3) -> 12.50943435 | R6: =(PI()/64)*(POWER(B6,4)-POWER(B6-C6,4)) -> 25118.45719 | S6: 5.023691438
B7: 42.4 | C7: 2.6 | I7: 3.36 | J7: 3.25 | K7: 0.11 | L7: 3.21 | M7: 0.04 | N7: =((PI()*POWER(B7/10,2))/2)-((PI()*POWER((B7-C7)/10,2))/2) -> 3.35710591 | Q7: =PI()*POWER(AVERAGE(B7,B7-C7)/20,3) -> 27.26373497 | R7: =(PI()/64)*(POWER(B7,4)-POWER(B7-C7,4)) -> 35478.31489 | S7: 7.095662978
B8: 42.4 | C8: 3.2 | I8: =ROUND(((PI()*POWER(B8/10,2))/2)-((PI()*POWER((B8-C8)/10,2))/2),2) -> 4.1 | J8: 3.94 | K8: 0.16 | L8: 3.92 | M8: 0.02 | R8: =(PI()/64)*(POWER(B8,4)-POWER(B8-C8,4)) -> 42739.3323 | S8: 8.54786646
B9: 42.4 | C9: 4 | I9: 5.08 | J9: 4.83 | K9: 0.25 | L9: 4.85 | M9: -0.02 | S9: 0
B10: 48.3 | C10: 2.6 | I10: 3.84 | J10: 3.73 | K10: 0.11 | L10: 3.68 | M10: 0.05
B11: 48.3 | C11: 3.2 | I11: 4.69 | J11: 4.53 | K11: 0.16 | L11: 4.49 | M11: 0.04
B12: 48.3 | C12: 4 | I12: 5.82 | J12: 5.57 | K12: 0.25 | L12: 5.57 | M12: 0
B13: 60.3 | C13: 3.2 | I13: 5.9 | J13: 5.74 | K13: 0.16 | L13: 5.64 | M13: 0.1
B14: 60.3 | C14: 4 | I14: 7.33 | J14: 7.07 | K14: 0.26 | L14: 6.99 | M14: 0.08
B15: 60.3 | C15: 5 | I15: 9.08 | J15: 8.69 | K15: 0.39 | L15: 8.67 | M15: 0.02
B16: 76.1 | C16: 3.2 | I16: 7.49 | J16: 7.33 | K16: 0.16 | L16: =ROUND((3/2)*(POWER(B16,2)-POWER(B16-C16,2))/100,2) -> 7.15 | M16: 0.18 | N16: =ROUND((3/2)*(POWER(D16,2)-POWER(D16-E16,2))/100,2) -> 0
B17: 76.1 | C17: 4 | I17: 9.31 | K17: 9.31 | L17: 8.9 | M17: -8.9
B18: 76.1 | C18: 5 | I18: 11.56 | J18: 11.2 | K18: 0.36 | L18: 11.04 | M18: 0.16
B19: 88.9 | C19: 3.2 | I19: 8.78 | K19: 8.78 | L19: 8.39 | M19: -8.39
B20: 88.9 | C20: 4 | I20: 10.92 | K20: 10.92 | L20: 10.43 | M20: -10.43
B21: 88.9 | C21: 5 | I21: 13.57 | K21: 13.57 | L21: 12.96 | M21: -12.96
B22: 88.9 | C22: 6 | I22: =ROUND(((PI()*POWER(B22/10,2))/2)-((PI()*POWER((B22-C22)/10,2))/2),2) -> 16.19 | J22: 15.6 | K22: 0.59 | L22: 15.47 | M22: 0.13
B23: 88.9 | C23: 6.3 | I23: 16.97 | J23: 16.3 | K23: 0.67 | L23: 16.2 | M23: 0.1
B24: 101.6 | C24: 4 | I24: 12.52 | K24: 12.52 | L24: 11.96 | M24: -11.96
B25: 101.6 | C25: 5 | I25: 15.57 | K25: 15.57 | L25: 14.87 | M25: -14.87
B26: 101.6 | C26: 6.3 | I26: =ROUND(((PI()*POWER(B26/10,2))/2)-((PI()*POWER((B26-C26)/10,2))/2),2) -> 19.49 | J26: 18.9 | K26: 0.59 | L26: 18.62 | M26: 0.28
B27: 114.3 | C27: 4 | I27: 14.11 | K27: 14.11 | L27: 13.47 | M27: -13.47
B28: 114.3 | C28: 5 | I28: 17.56 | K28: 17.56 | L28: 16.77 | M28: -16.77
B29: 114.3 | C29: 6.3 | I29: 22 | J29: 21.4 | K29: 0.6 | L29: 21 | M29: 0.4
B30: 114.3 | C30: 8 | I30: 27.72 | K30: 27.72 | L30: 26.46 | M30: -26.46
B31: 139.7 | C31: 4 | I31: 17.3 | K31: 17.3 | L31: 16.53 | M31: -16.53
B32: 139.7 | C32: 5 | I32: 21.55 | K32: 21.55 | L32: 20.58 | M32: -20.58
B33: 139.7 | C33: 6.3 | I33: =ROUND(((PI()*POWER(B33/10,2))/2)-((PI()*POWER((B33-C33)/10,2))/2),2) -> 27.03 | J33: 26.4 | K33: 0.63 | L33: 25.8 | M33: 0.6
B34: 139.7 | C34: 8 | I34: 34.11 | J34: 26 | K34: 8.11 | L34: 32.57 | M34: -6.57
B35: 139.7 | C35: 12.5 | I35: 52.41 | K35: 52.41 | L35: 50.04 | M35: -50.04
B36: 168.3 | C36: 5 | I36: 26.04 | K36: 26.04 | L36: 24.87 | M36: -24.87
B37: 168.3 | C37: 6.3 | I37: =ROUND(((PI()*POWER(B37/10,2))/2)-((PI()*POWER((B37-C37)/10,2))/2),2) -> 32.69 | K37: 32.69 | L37: 31.22 | M37: -31.22
B38: 168.3 | C38: 8 | I38: 41.29 | J38: 40.3 | K38: 0.99 | L38: 39.44 | M38: 0.86
B39: 168.3 | C39: 10 | I39: 51.3 | K39: 51.3 | L39: 48.99 | M39: -48.99
B40: 168.3 | C40: 12.5 | I40: 63.64 | K40: 63.64 | L40: 60.77 | M40: -60.77
B41: 177.8 | C41: 6.3 | I41: 34.57 | K41: 34.57 | L41: 33.02 | M41: -33.02
B42: 177.8 | C42: 8 | I42: 43.68 | K42: 43.68 | L42: 41.72 | M42: -41.72
B43: 177.8 | C43: 10 | I43: 54.29 | K43: 54.29 | L43: 51.84 | M43: -51.84
B44: 177.8 | C44: 12.5 | I44: 67.37 | K44: 67.37 | L44: 64.34 | M44: -64.34
B45: 193.7 | C45: 6.3 | I45: 37.71 | K45: 37.71 | L45: 36.02 | M45: -36.02
B46: 193.7 | C46: 8 | I46: =ROUND(((PI()*POWER(B46/10,2))/2)-((PI()*POWER((B46-C46)/10,2))/2),2) -> 47.68 | K46: 47.68 | L46: 45.54 | M46: -45.54
B47: 193.7 | C47: 10 | I47: 59.28 | K47: 59.28 | L47: 56.61 | M47: -56.61
B48: 193.7 | C48: 16 | I48: 93.34 | K48: 93.34 | L48: 89.15 | M48: -89.15
B49: 219.1 | C49: 6.3 | I49: 42.74 | K49: 42.74 | L49: 40.82 | M49: -40.82
B50: 219.1 | C50: 8 | I50: =ROUND(((PI()*POWER(B50/10,2))/2)-((PI()*POWER((B50-C50)/10,2))/2),2) -> 54.06 | K50: 54.06 | L50: 51.63 | M50: -51.63
B51: 219.1 | C51: 10 | I51: 67.26 | K51: 67.26 | L51: 64.23 | M51: -64.23
B52: 219.1 | C52: 16 | I52: 106.11 | K52: 106.11 | L52: 101.33 | M52: -101.33
B53: 219.1 | C53: 20 | I53: 131.38 | K53: 131.38 | L53: 125.46 | M53: -125.46
B54: 244.5 | C54: 6.3 | I54: 47.77 | K54: 47.77 | L54: 45.62 | M54: -45.62
B55: 244.5 | C55: 8 | I55: 60.44 | K55: 60.44 | L55: 57.72 | M55: -57.72
B56: 244.5 | C56: 10 | I56: =ROUND(((PI()*POWER(B56/10,2))/2)-((PI()*POWER((B56-C56)/10,2))/2),2) -> 75.24 | K56: 75.24 | L56: 71.85 | M56: -71.85
B57: 244.5 | C57: 12.5 | I57: 93.56 | K57: 93.56 | L57: 89.34 | M57: -89.34
B58: 244.5 | C58: 16 | I58: 118.88 | K58: 118.88 | L58: 113.52 | M58: -113.52
B59: 244.5 | C59: 20 | I59: 147.34 | K59: 147.34 | L59: 140.7 | M59: -140.7
B60: 244.5 | C60: 25 | I60: =ROUND(((PI()*POWER(B60/10,2))/2)-((PI()*POWER((B60-C60)/10,2))/2),2) -> 182.21 | K60: 182.21 | L60: 174 | M60: -174
B61: 273 | C61: 6.3 | I61: 53.41 | K61: 53.41 | L61: 51 | M61: -51
B62: 273 | C62: 8 | I62: 67.61 | K62: 67.61 | L62: 64.56 | M62: -64.56
B63: 273 | C63: 10 | I63: 84.19 | K63: 84.19 | L63: 80.4 | M63: -80.4
B64: 273 | C64: 12.5 | I64: 104.75 | K64: 104.75 | L64: 100.04 | M64: -100.04
B65: 273 | C65: 16 | I65: 133.2 | K65: 133.2 | L65: 127.2 | M65: -127.2
B66: 273 | C66: 20 | I66: 165.25 | K66: 165.25 | L66: 157.8 | M66: -157.8
B67: 273 | C67: 25 | I67: 204.6 | K67: 204.6 | L67: 195.38 | M67: -195.38
B68: 323.9 | C68: 8 | I68: 80.4 | K68: 80.4 | L68: 76.77 | M68: -76.77
B69: 323.9 | C69: 10 | I69: =ROUND(((PI()*POWER(B69/10,2))/2)-((PI()*POWER((B69-C69)/10,2))/2),2) -> 100.19 | K69: =I69-J69 -> 100.19 | L69: =ROUND((3/2)*(ROUND(POWER(B69,2),0)-ROUND(POWER(B69-C69,2),0))/100,2) -> 95.67 | M69: =J69-L69 -> -95.67
B70: 323.9 | C70: 12.5 | I70: =ROUND(((PI()*POWER(B70/10,2))/2)-((PI()*POWER((B70-C70)/10,2))/2),2) -> 124.74 | K70: 124.74 | L70: 119.12 | M70: -119.12
B71: 323.9 | C71: 16 | I71: =ROUND(((PI()*POWER(B71/10,2))/2)-((PI()*POWER((B71-C71)/10,2))/2),2) -> 158.79 | K71: 158.79 | L71: 151.64 | M71: -151.64
B72: 323.9 | C72: 20 | I72: =ROUND(((PI()*POWER(B72/10,2))/2)-((PI()*POWER((B72-C72)/10,2))/2),2) -> 197.23 | K72: 197.23 | L72: 188.34 | M72: -188.34
B73: 323.9 | C73: 25 | I73: =ROUND(((PI()*POWER(B73/10,2))/2)-((PI()*POWER((B73-C73)/10,2))/2),2) -> 244.57 | K73: 244.57 | L73: 233.55 | M73: -233.55
B74: 355.6 | C74: 8 | I74: =ROUND(((PI()*POWER(B74/10,2))/2)-((PI()*POWER((B74-C74)/10,2))/2),2) -> 88.37 | K74: 88.37 | L74: 84.38 | M74: -84.38
B75: 355.6 | C75: 10 | I75: 110.14 | K75: 110.14 | L75: 105.18 | M75: -105.18
B76: 355.6 | C76: 12.5 | I76: 137.19 | K76: 137.19 | L76: 131 | M76: -131
B77: 355.6 | C77: 16 | I77: 174.72 | K77: 174.72 | L77: 166.85 | M77: -166.85
B78: 355.6 | C78: 20 | I78: 217.15 | K78: 217.15 | L78: 207.36 | M78: -207.36
B79: 355.6 | C79: 25 | I79: 269.47 | K79: 269.47 | L79: 257.33 | M79: -257.33
B80: 406.4 | C80: 10 | I80: 126.1 | K80: 126.1 | L80: 120.42 | M80: -120.42
B81: 406.4 | C81: 12.5 | I81: 157.14 | K81: 157.14 | L81: 150.06 | M81: -150.06
B82: 406.4 | C82: 16 | I82: 200.26 | K82: 200.26 | L82: 191.24 | M82: -191.24
B83: 406.4 | C83: 20 | I83: 249.07 | K83: 249.07 | L83: 237.84 | M83: -237.84
B84: 406.4 | C84: 25 | I84: 309.37 | K84: 309.37 | L84: 295.43 | M84: -295.43
B85: 406.4 | C85: 30 | I85: 368.89 | K85: 368.89 | L85: 352.26 | M85: -352.26
B86: 406.4 | C86: 40 | I86: 485.56 | K86: 485.56 | L86: 463.68 | M86: -463.68
B87: 457 | C87: 10 | I87: 142 | K87: 142 | L87: 135.6 | M87: -135.6
B88: 457 | C88: 12.5 | I88: 177.01 | K88: 177.01 | L88: 169.04 | M88: -169.04
B89: 457 | C89: 16 | I89: 225.69 | K89: 225.69 | L89: 215.52 | M89: -215.52
B90: 457 | C90: 20 | I90: 280.86 | K90: 280.86 | L90: 268.2 | M90: -268.2
B91: 457 | C91: 25 | I91: 349.11 | K91: 349.11 | L91: 333.38 | M91: -333.38
B92: 457 | C92: 30 | I92: 416.58 | K92: 416.58 | L92: 397.8 | M92: -397.8
B93: 457 | C93: 40 | I93: 549.15 | K93: 549.15 | L93: 524.4 | M93: -524.4
B94: 457 | C94: 50 | I94: 678.58 | K94: 678.58 | L94: 648 | M94: -648
B95: 508 | C95: 10 | I95: 158.02 | K95: 158.02 | L95: 150.9 | M95: -150.9
B96: 508 | C96: 12.5 | I96: 197.04 | K96: 197.04 | L96: 188.16 | M96: -188.16
B97: 508 | C97: 16 | I97: 251.33 | K97: 251.33 | L97: 240 | M97: -240
B98: 508 | C98: 20 | I98: 312.9 | K98: 312.9 | L98: 298.8 | M98: -298.8
B99: 508 | C99: 25 | I99: 389.16 | K99: 389.16 | L99: 371.63 | M99: -371.63
B100: 508 | C100: 30 | I100: 464.64 | K100: 464.64 | L100: 443.7 | M100: -443.7
B101: 508 | C101: 40 | I101: 613.24 | K101: 613.24 | L101: 585.6 | M101: -585.6
B102: 508 | C102: 50 | I102: 758.69 | K102: 758.69 | L102: 724.5 | M102: -724.5
B103: 610 | C103: 10 | I103: 190.07 | K103: 190.07 | L103: 181.5 | M103: -181.5
B104: 610 | C104: 12.5 | I104: 237.09 | K104: 237.09 | L104: 226.41 | M104: -226.41
B105: 610 | C105: 16 | I105: 302.6 | K105: 302.6 | L105: 288.96 | M105: -288.96
B106: 610 | C106: 20 | I106: 376.99 | K106: 376.99 | L106: 360 | M106: -360
B107: 610 | C107: 25 | I107: 469.28 | K107: 469.28 | L107: 448.13 | M107: -448.13
B108: 610 | C108: 30 | I108: 560.77 | K108: 560.77 | L108: 535.5 | M108: -535.5
B109: 610 | C109: 40 | I109: 741.42 | K109: 741.42 | L109: 708 | M109: -708
B110: 610 | C110: 50 | I110: 918.92 | K110: 918.92 | L110: 877.5 | M110: -877.5
B111: 711 | C111: 10 | I111: 221.8 | K111: 221.8 | L111: 211.8 | M111: -211.8
B112: 711 | C112: 20 | I112: 440.45 | K112: 440.45 | L112: 420.6 | M112: -420.6
B113: 711 | C113: 25 | I113: 548.6 | K113: 548.6 | L113: 523.88 | M113: -523.88
B114: 711 | C114: 30 | I114: 655.96 | K114: 655.96 | L114: 626.4 | M114: -626.4
B115: 711 | C115: 40 | I115: 868.34 | K115: 868.34 | L115: 829.2 | M115: -829.2
B116: 711 | C116: 50 | I116: 1077.57 | K116: 1077.57 | L116: 1029 | M116: -1029
B117: 711 | C117: 60 | I117: 1283.65 | K117: 1283.65 | L117: 1225.8 | M117: -1225.8
B118: 762 | C118: 10 | I118: 237.82 | K118: 237.82 | L118: 227.1 | M118: -227.1
B119: 762 | C119: 16 | I119: 379 | K119: 379 | L119: 361.92 | M119: -361.92
B120: 762 | C120: 20 | I120: 472.5 | K120: 472.5 | L120: 451.2 | M120: -451.2
B121: 762 | C121: 25 | I121: 588.66 | K121: 588.66 | L121: 562.13 | M121: -562.13
B122: 762 | C122: 30 | I122: 704.03 | K122: 704.03 | L122: 672.3 | M122: -672.3
B123: 762 | C123: 40 | I123: 932.42 | K123: 932.42 | L123: 890.4 | M123: -890.4
B124: 762 | C124: 50 | I124: 1157.68 | K124: 1157.68 | L124: 1105.5 | M124: -1105.5
B125: 813 | C125: 10 | I125: 253.84 | K125: 253.84 | L125: 242.4 | M125: -242.4
B126: 813 | C126: 16 | I126: 404.64 | K126: 404.64 | L126: 386.4 | M126: -386.4
B127: 813 | C127: 20 | I127: 504.54 | K127: 504.54 | L127: 481.8 | M127: -481.8
B128: 813 | C128: 25 | I128: 628.71 | K128: 628.71 | L128: 600.38 | M128: -600.38
B129: 813 | C129: 30 | I129: 752.1 | K129: 752.1 | L129: 718.2 | M129: -718.2
B130: 914 | C130: 10 | I130: 285.57 | K130: 285.57 | L130: 272.7 | M130: -272.7
B131: 914 | C131: 16 | I131: 455.41 | K131: 455.41 | L131: 434.88 | M131: -434.88
B132: 914 | C132: 25 | I132: 708.04 | K132: 708.04 | L132: 676.13 | M132: -676.13
B133: 914 | C133: 30 | I133: 847.29 | K133: =I133-J133 -> 847.29 | L133: =ROUND((3/2)*(ROUND(POWER(B133,2),0)-ROUND(POWER(B133-C133,2),0))/100,2) -> 809.1 | M133: =J133-L133 -> -809.1
B134: 1016 | C134: 10 | I134: 317.62 | K134: 317.62 | L134: 303.3 | M134: -303.3
B135: 1016 | C135: 16 | I135: 506.68 | K135: 506.68 | L135: 483.84 | M135: -483.84
B136: 1016 | C136: 25 | I136: 788.15 | K136: 788.15 | L136: 752.63 | M136: -752.63
B137: 1016 | C137: 30 | I137: 943.42 | K137: 943.42 | L137: 900.9 | M137: -900.9
B138: 1067 | C138: 10 | I138: =ROUND(((PI()*POWER(B138/10,2))/2)-((PI()*POWER((B138-C138)/10,2))/2),2) -> 333.64 | K138: 333.64 | L138: 318.6 | M138: -318.6
B139: 1067 | C139: 16 | I139: 532.31 | K139: 532.31 | L139: 508.32 | M139: -508.32
B140: 1067 | C140: 25 | I140: 828.2 | K140: 828.2 | L140: 790.88 | M140: -790.88
B141: 1067 | C141: 30 | I141: 991.49 | K141: 991.49 | L141: 946.8 | M141: -946.8
B142: 1168 | C142: 10 | I142: 365.37 | J142: 364 | K142: 1.37 | L142: =ROUND(ROUND((PI()/2),5)*(ROUND(POWER(B142,2),0)-ROUND(POWER(B142-C142,2),0))/100,2) -> 365.37 | M142: =J142-L142 -> -1.37
B143: 1168 | C143: 16 | I143: 583.08 | K143: 583.08 | L143: =ROUND(ROUND((PI()/2),5)*(ROUND(POWER(B143,2),0)-ROUND(POWER(B143-C143,2),0))/100,2) -> 583.08 | M143: -583.08
B144: 1168 | C144: 25 | I144: 907.53 | K144: 907.53 | L144: 866.63 | M144: -866.63
B145: 1219 | C145: 10 | I145: 381.39 | J145: 380 | K145: 1.39 | L145: =ROUND((PI()/2)*(ROUND(POWER(B4,1.991),0)-ROUND(POWER(B4-C4,1.991),0))/100,2) -> 2.54 | M145: 377.46
B146: 1219 | C146: 16 | I146: 608.71 | K146: 608.71 | L146: 581.28 | M146: -581.28
B147: 1219 | C147: 25 | I147: 947.58 | K147: 947.58 | L147: 904.88 | M147: -904.88

Sheet zشكل
L1: براي محور خمش
L2: y-y | M2: y-y | N2: y-y | O2: z-z | P2: z-z | Q2: z-z | R2: ƞ-ƞ | S2: ƞ-ƞ | T2: ƞ-ƞ | U2: ζ-ζ | V2: ζ-ζ | W2: ζ-ζ
C3: h | D3: b | E3: ts | F3: tg | G3: r2 | H3: c | I3: A | J3: G | L3: I | M3: W | N3: i | O3: I | P3: W | Q3: i | R3: I | S3: W | T3: i | U3: I | V3: W | W3: i | X3: d1 | Y3: w1
C4: mm | D4: mm | E4: mm | F4: mm | G4: mm | H4: mm | I4: cm² | J4: kg/m | K4: tan a | L4: cm⁴ | M4: cm³ | N4: cm | O4: cm⁴ | P4: cm³ | Q4: cm | R4: cm⁴ | S4: cm³ | T4: cm | U4: cm⁴ | V4: cm³ | W4: cm | X4: mm | Y4: mm
B5: 30 | C5: 30 | D5: 38 | E5: 4 | F5: 4.5 | G5: 2.5 | H5: 9 | I5: 4.32 | J5: 3.39 | K5: 1.655 | L5: 5.96 | M5: 3.97 | N5: 1.17 | O5: 13.7 | P5: 3.8 | Q5: 1.78 | R5: 18.1 | S5: 4.69 | T5: 2.04 | U5: 1.54 | V5: 1.11 | W5: 0.6 | X5: 11 | Y5: 20
B6: 40 | C6: 40 | D6: 40 | E6: 4.5 | F6: 5 | G6: 2.5 | H6: 10 | I6: 5.43 | J6: 4.26 | K6: 1.181 | L6: 13.5 | M6: 6.75 | N6: 1.58 | O6: 17.6 | P6: 4.66 | Q6: 1.8 | R6: 28 | S6: 6.72 | T6: 2.27 | U6: 3.05 | V6: 1.83 | W6: 0.75 | X6: 11 | Y6: 22
B7: 50 | C7: 50 | D7: 43 | E7: 5 | F7: 5.5 | G7: 3 | H7: 11 | I7: 6.77 | J7: 5.31 | K7: 0.939 | L7: 26.3 | M7: 10.5 | N7: 1.97 | O7: 23.8 | P7: 5.88 | Q7: 1.88 | R7: 44.9 | S7: 9.76 | T7: 2.57 | U7: 5.23 | V7: 2.76 | W7: 0.88 | X7: 11 | Y7: 25
B8: 60 | C8: 60 | D8: 45 | E8: 5 | F8: 6 | G8: 3 | H8: 12 | I8: 7.91 | J8: 6.21 | K8: 0.779 | L8: 44.7 | M8: 14.9 | N8: 2.38 | O8: 30.1 | P8: 7.09 | Q8: 1.95 | R8: 67.2 | S8: 13.5 | T8: 2.81 | U8: 7.6 | V8: 3.73 | W8: 0.98 | X8: 13 | Y8: 25
B9: 80 | C9: 80 | D9: 50 | E9: 6 | F9: 7 | G9: 3.5 | H9: 14 | I9: 11.1 | J9: 8.71 | K9: 0.588 | L9: 109 | M9: 27.3 | N9: 3.13 | O9: 47.4 | P9: 10.1 | Q9: 2.07 | R9: 142 | S9: 24.4 | T9: 3.58 | U9: 14.7 | V9: 6.44 | W9: 1.15 | X9: 13 | Y9: 30
B10: 100 | C10: 100 | D10: 55 | E10: 6.5 | F10: 8 | G10: 4 | H10: 16 | I10: 14.5 | J10: 11.4 | K10: 0.492 | L10: 222 | M10: 44.4 | N10: 3.91 | O10: 72.5 | P10: 14 | Q10: 2.24 | R10: 270 | S10: 39.8 | T10: 4.31 | U10: 24.6 | V10: 9.26 | W10: 1.3 | X10: 17 | Y10: 30
B11: 120 | C11: 120 | D11: 60 | E11: 7 | F11: 9 | G11: 4.5 | H11: 18 | I11: 18.2 | J11: 14.3 | K11: 0.433 | L11: 402 | M11: 67 | N11: 4.7 | O11: 106 | P11: 18.8 | Q11: 2.42 | R11: 470 | S11: 60.6 | T11: 5.08 | U11: 37.7 | V11: 12.5 | W11: 1.44 | X11: 17 | Y11: 35
B12: 140 | C12: 140 | D12: 65 | E12: 8 | F12: 10 | G12: 5 | H12: 20 | I12: 22.9 | J12: 18 | K12: 0.385 | L12: 676 | M12: 96.6 | N12: 5.43 | O12: 148 | P12: 24.3 | Q12: 2.54 | R12: 768 | S12: 88 | T12: 5.79 | U12: 56.4 | V12: 16.6 | W12: 1.57 | X12: 17 | Y12: 35
B13: 160 | C13: 160 | D13: 70 | E13: 8.5 | F13: 11 | G13: 5.5 | H13: 22 | I13: 27.5 | J13: 21.6 | K13: 0.357 | L13: 1060 | M13: 132 | N13: 6.2 | O13: 204 | P13: 31 | Q13: 2.72 | R13: 1180 | S13: 121 | T13: 6.57 | U13: 79.5 | V13: 21.4 | W13: 1.7 | X13: 17 | Y13: 35
